Service Area,Service Division,Expense Type,Expense Code,Detailed Expense Type,Payment Date,Transaction Number,Amount Exc Vat,Supplier Name
Resources,Legal & Democratic Services,Supplies and Services,338042,Services,02-May-2017,3276320-213685,"1,800.00",39 ESSEX CHAMBERS.
Resources,Legal & Democratic Services,Supplies and Services,342051,Computers and Communications,02-May-2017,3276327-PSI0011610,"7,784.24",ADARE INSPIRED COMMUNICATIONS.
Regeneration and Local Services,Technical Services,Supplies and Services,372009,Subscriptions,02-May-2017,3276328-2016205,"2,040.00",ADEPT GRP LTD.
Children and Young Peoples Services,Education,Transport,230008,Contract Hire,02-May-2017,3276331-07/17A,"1,340.00",ADVANCE TRAVEL.
Regeneration and Local Services,Technical Services,Supplies and Services,304221,Equipment and Materials,02-May-2017,3276332-24551609,500.00,AGGREGATE INDUSTRIES UK LTD.
Regeneration and Local Services,Technical Services,Supplies and Services,304221,Equipment and Materials,02-May-2017,3276332-24667073,"1,238.95",AGGREGATE INDUSTRIES UK LTD.
Regeneration and Local Services,Technical Services,Supplies and Services,304221,Equipment and Materials,02-May-2017,3276332-24667074,"1,221.40",AGGREGATE INDUSTRIES UK LTD.
Regeneration and Local Services,Technical Services,Supplies and Services,304221,Equipment and Materials,02-May-2017,3276332-24685507,"1,252.75",AGGREGATE INDUSTRIES UK LTD.
Regeneration and Local Services,Technical Services,Supplies and Services,304221,Equipment and Materials,02-May-2017,3276332-24685508,"2,455.67",AGGREGATE INDUSTRIES UK LTD.
Regeneration and Local Services,Technical Services,Supplies and Services,304221,Equipment and Materials,02-May-2017,3276333-24685509,"11,047.47",AGGREGATE INDUSTRIES UK LTD.
Regeneration and Local Services,Technical Services,Supplies and Services,304221,Equipment and Materials,02-May-2017,3276333-24685510,"1,992.61",AGGREGATE INDUSTRIES UK LTD.
Regeneration and Local Services,Technical Services,Supplies and Services,304221,Equipment and Materials,02-May-2017,3276333-24685512,501.60,AGGREGATE INDUSTRIES UK LTD.
Regeneration and Local Services,Technical Services,Supplies and Services,304221,Equipment and Materials,02-May-2017,3276333-24685514,"2,548.35",AGGREGATE INDUSTRIES UK LTD.
Regeneration and Local Services,Technical Services,Supplies and Services,304221,Equipment and Materials,02-May-2017,3276333-24693121,"1,326.24",AGGREGATE INDUSTRIES UK LTD.
Regeneration and Local Services,Technical Services,Supplies and Services,304221,Equipment and Materials,02-May-2017,3276333-24693123,790.02,AGGREGATE INDUSTRIES UK LTD.
Regeneration and Local Services,Technical Services,Supplies and Services,304221,Equipment and Materials,02-May-2017,3276333-24698674,"1,038.31",AGGREGATE INDUSTRIES UK LTD.
Children and Young Peoples Services,Childrens Services Operational Support,Supplies and Services,338089,Services,02-May-2017,3276334-2581,"2,283.44",AIM PROJECT.
Regeneration and Local Services,Culture & Sport,Supplies and Services,384302,Miscellaneous Expenses,02-May-2017,3276337-4357,"1,491.00",ALINGTON HOUSE COMMUNITY ASSOCIATION.
Regeneration and Local Services,Culture & Sport,Supplies and Services,338047,Services,02-May-2017,3276340-2017-122-141-007890,"4,002.00",AMERICAN EXPRESS SERVICES EUROPE LTD.
Children and Young Peoples Services,Children Looked After,Supplies and Services,342053,Computers and Communications,02-May-2017,3276340-2017-122-141-007895,"1,573.57",AMERICAN EXPRESS SERVICES EUROPE LTD.
Regeneration and Local Services,Transport and Contracted Services,Third Party Payments,430100,Rendered by Private Contractors,02-May-2017,3276351-CONCFAREPAY17-1APRV1,"697,315.00",ARRIVA DURHAM COUNTY LTD.
Regeneration and Local Services,Transport and Contracted Services,Third Party Payments,430100,Rendered by Private Contractors,02-May-2017,3276352-CONCFAREPAY17-1APRV1,"1,835.13",ARRIVA RAIL NORTH LTD T/A NORTHERN.
Children and Young Peoples Services,Children Looked After,Third Party Payments,425021,Rendered by Voluntary Organisations,02-May-2017,3276353-INV-0677,"11,600.00",ARTEMIS SUPPORT LTD.
Regeneration and Local Services,Culture & Sport,Supplies and Services,312013,Newspapers Books and Periodicals,02-May-2017,3276355-5361669,541.35,ASKEWS & HOLTS LIBRARY SERVICES LTD.
Regeneration and Local Services,Culture & Sport,Supplies and Services,312013,Newspapers Books and Periodicals,02-May-2017,3276355-5361734,563.14,ASKEWS & HOLTS LIBRARY SERVICES LTD.
Regeneration and Local Services,Culture & Sport,Supplies and Services,312013,Newspapers Books and Periodicals,02-May-2017,3276355-5365282,562.34,ASKEWS & HOLTS LIBRARY SERVICES LTD.
Adult and Health Services,Public Health,Third Party Payments,460802,Contract Payments,02-May-2017,3276356-A83021/MAR2017HC,750.00,AUCKLAND MEDICAL GROUP.
Regeneration and Local Services,Culture & Sport,Supplies and Services,384199,Miscellaneous Expenses,02-May-2017,3276359-BCB170401-01,"2,700.00",BACK CHAT BRASS.
Adult and Health Services,Public Health,Third Party Payments,460802,Contract Payments,02-May-2017,3276361-A83046/MAR2017HC,"2,305.00",BARNARD CASTLE SURGERY.
Regeneration and Local Services,Direct Services,Third Party Payments,430100,Rendered by Private Contractors,02-May-2017,3276362-DCC/170010,"1,285.00",BEACON BUILDING & ASSOCIATED SERVICES LTD.
Adult and Health Services,Public Health,Third Party Payments,460802,Contract Payments,02-May-2017,3276365-A83037/MAR2017HC,"1,595.00",BEWICK CRESCENT SURGERY.
Regeneration and Local Services,Direct Services,Supplies and Services,304221,Equipment and Materials,02-May-2017,3276370-9302590290,576.60,BRADY CORP LTD T/A SETON.
Regeneration and Local Services,Culture & Sport,Premises,145023,Cleaning and Domestic Supplies,02-May-2017,3276372-22SI2224836,989.45,BRENNTAG UK LTD.
Regeneration and Local Services,Culture & Sport,Premises,145023,Cleaning and Domestic Supplies,02-May-2017,3276372-22SI2224837,859.00,BRENNTAG UK LTD.
Children and Young Peoples Services,Children Looked After,Supplies and Services,344033,Telephones,02-May-2017,3276375-NE19493805Q054H4,884.29,BRITISH TELECOMMUNICATIONS PLC.
Resources,I.C.T. Services,Supplies and Services,344039,Telephones,02-May-2017,3276375-VP71577270Q04901,"111,080.42",BRITISH TELECOMMUNICATIONS PLC.
Children and Young Peoples Services,Education,Third Party Payments,440999,Other Third Party Payments,02-May-2017,3276382-172,"1,076.53",CAPITAL 4 TRAINING LTD
Children and Young Peoples Services,Education,Third Party Payments,440999,Other Third Party Payments,02-May-2017,3276382-173,663.39,CAPITAL 4 TRAINING LTD
Regeneration and Local Services,Direct Services,Supplies and Services,304221,Equipment and Materials,02-May-2017,3276386-851700851,"2,903.04",CARLISLE CONSTRUCTION MATERIALS LTD.
Regeneration and Local Services,Technical Services,Supplies and Services,304221,Equipment and Materials,02-May-2017,3276395-3009525682,606.95,CEMEX UK MATERIALS LTD.
Regeneration and Local Services,Technical Services,Supplies and Services,304358,Equipment and Materials,02-May-2017,3276398-1645,"11,477.91",CG SIMPSON & SON.
Resources,Internal Audit and Insurance,Supplies and Services,352001,Conference Expenses,02-May-2017,3276400-3127269,"2,900.00",CIPFA LTD.
Regeneration and Local Services,Economic Development and Housing,Supplies and Services,338035,Services,02-May-2017,3276401-804472214,642.00,CITY & GUILDS OF LONDON INSTITUTE.
Children and Young Peoples Services,Education,Transport,230008,Contract Hire,02-May-2017,3276403-INV-004,760.00,CLARE LYNSEY STEWART T/A K&C TAXIS.
Adult and Health Services,Public Health,Third Party Payments,460802,Contract Payments,02-May-2017,3276404-A83011/MAR2017HC,815.00,CLAYPATH & UNIVERSITY MEDICAL GROUP.
Resources,Legal & Democratic Services,Supplies and Services,338025,Services,02-May-2017,3276406-S44995-01325,"1,420.00",CO-OPERATIVE FUNERAL CARE.
Regeneration and Local Services,Culture & Sport,Supplies and Services,338047,Services,02-May-2017,3276408-8655/M,"2,497.33",COMEDY STORE MANAGEMENT T/A THE COMEDY STORE LTD.
Regeneration and Local Services,Direct Services,Supplies and Services,304221,Equipment and Materials,02-May-2017,3276418-3010004,"4,804.20",CRAEMER UK LTD.
Regeneration and Local Services,Transport and Contracted Services,Third Party Payments,430100,Rendered by Private Contractors,02-May-2017,3276421-CONCFAREPAY17-1APRV1,894.67,CUMBRIA CLASSIC COACHES LTD.
Children and Young Peoples Services,Early Help,Third Party Payments,440001,Other Third Party Payments,02-May-2017,3276424-CAS-04-2017-167,512.12,REDACTED - PAYMENT TO INDIVIDUAL
Resources,I.C.T. Services,Stock,926900,Stock in hand-Inventory system,02-May-2017,3276426-7402357035,"1,699.12",DELL COMPUTER CORPORATION LTD.
Resources,Legal & Democratic Services,Supplies and Services,338042,Services,02-May-2017,3276428-329120/INVSU259,"1,500.00",DERE STREET BARRISTERS.
Adult and Health Services,Public Health,Third Party Payments,460802,Contract Payments,02-May-2017,3276435-A83004/MAR2017HC,760.00,DR A KAPOOR (DENESIDE MEDICAL CENTRE).
Adult and Health Services,Public Health,Third Party Payments,460802,Contract Payments,02-May-2017,3276437-A83075/MAR2017HC,700.00,DR KV REDDY (DENESIDE MEDICAL CENTRE).
Adult and Health Services,Commissioning inc Supporting People,Third Party Payments,479101,Purchase of Care,02-May-2017,3276443-289,"20,519.50",DURHAM COUNTY CARERS SUPPORT.
Resources,Legal & Democratic Services,Creditors,952027,Creditor-lab grp-deds frm memb all,02-May-2017,3276445-RES-04-2017-168,"1,255.95",DURHAM COUNTY COUNCIL LABOUR GROUP.*
Dedicated Schools Grant,Dedicated Schools Grant,Third Party Payments,440080,Other Third Party Payments,02-May-2017,3276451-0000040347,"35,231.45",EAST DURHAM COLLEGE.
Regeneration and Local Services,Projects and Business services,Supplies and Services,352001,Conference Expenses,02-May-2017,3276459-EIN0034838,"1,110.00",EMAP PUBLISHING LTD.
Regeneration and Local Services,Culture & Sport,Supplies and Services,384199,Miscellaneous Expenses,02-May-2017,3276460-IN-13168,"2,000.00",EMPTY SHOP.
Regeneration and Local Services,Direct Services,Transfer Payments,525030,Other,02-May-2017,3276464-NEI=EXP-04-2017-029,500.00,EVENWOOD GARDENING CLUB.
Adult and Health Services,Public Health,Third Party Payments,460802,Contract Payments,02-May-2017,3276470-A83045/MAR2017HC,"1,935.00",FERRYHILL & CHILTON MEDICAL PRACTICE.
Children and Young Peoples Services,Early Help,Supplies and Services,308011,Furniture,02-May-2017,3276474-242139,"1,044.00",FRANKS FACTORY FLOORING.
Regeneration and Local Services,Economic Development and Housing,Cap Exp on Grants & Other Financial Assistance (REFCUS),918401,Capital grants,02-May-2017,3276476-RED-04-2017-225,624.00,CUMMINGS ARCHITECTS LTD.
Regeneration and Local Services,Technical Services,Supplies and Services,304358,Equipment and Materials,02-May-2017,3276483-10675,"2,898.25",GEORGE VARDY HAULAGE.
Regeneration and Local Services,Technical Services,Supplies and Services,304358,Equipment and Materials,02-May-2017,3276483-10699,690.00,GEORGE VARDY HAULAGE.
Regeneration and Local Services,Technical Services,Supplies and Services,304358,Equipment and Materials,02-May-2017,3276483-10704,"1,060.00",GEORGE VARDY HAULAGE.
Regeneration and Local Services,Technical Services,Supplies and Services,304358,Equipment and Materials,02-May-2017,3276483-10705,690.00,GEORGE VARDY HAULAGE.
Regeneration and Local Services,Technical Services,Supplies and Services,304358,Equipment and Materials,02-May-2017,3276483-10706,690.00,GEORGE VARDY HAULAGE.
Regeneration and Local Services,Technical Services,Supplies and Services,304358,Equipment and Materials,02-May-2017,3276483-10715,750.00,GEORGE VARDY HAULAGE.
Regeneration and Local Services,Technical Services,Supplies and Services,304358,Equipment and Materials,02-May-2017,3276483-10717,510.00,GEORGE VARDY HAULAGE.
Regeneration and Local Services,Transport and Contracted Services,Third Party Payments,430100,Rendered by Private Contractors,02-May-2017,3276486-CONCFAREPAY17-1APRV1,"705,479.00",GO GATESHEAD LTD.
Regeneration and Local Services,Direct Services,Supplies and Services,304259,Equipment and Materials,02-May-2017,3276488-INV056529,"1,052.00",GOTT TECHNICAL SERVICES LTD.
Adult and Health Services,Public Health,Supplies and Services,384899,Miscellaneous Expenses,02-May-2017,3276491-49128,"2,500.00",GREENFIELD COMMUNITY & ARTS CENTRE.
Regeneration and Local Services,Economic Development and Housing,Supplies and Services,384899,Miscellaneous Expenses,02-May-2017,3276513-INV-0049,"2,500.00",INNOVATE NE LTD.
Regeneration and Local Services,Technical Services,Stock,926900,Stock in hand-Inventory system,02-May-2017,3276514-577465,"3,064.88",INSTARMAC GROUP PLC.
Regeneration and Local Services,Direct Services,Supplies and Services,304259,Equipment and Materials,02-May-2017,3276517-279219,"1,198.00",IWS (INDUSTRIAL & WELDING SUPPLIES).
Regeneration and Local Services,Technical Services,Supplies and Services,304358,Equipment and Materials,02-May-2017,3276518-0008/2017,724.00,J & JG GILL & SONS LTD.
Regeneration and Local Services,Technical Services,Third Party Payments,430100,Rendered by Private Contractors,02-May-2017,3276520-20285,"14,712.72",JACK COUPE & SONS LTD T/A COUPE LINE.
Regeneration and Local Services,Direct Services,Premises,108099,Service Repairs and Maintenance,02-May-2017,3276526-00501,"1,065.00",JN KEARTON.
Regeneration and Local Services,Transport and Contracted Services,Third Party Payments,430100,Rendered by Private Contractors,02-May-2017,3276527-CONCFAREPAY17-1APRV1,"1,727.15",JOHN JAMES BRUNSKILL.
Regeneration and Local Services,Culture & Sport,Supplies and Services,304259,Equipment and Materials,02-May-2017,3276531-844474,628.17,JP LENNARD LTD.
Regeneration and Local Services,Technical Services,Supplies and Services,304221,Equipment and Materials,02-May-2017,3276533-ASI781724,"2,525.40",JT DOVE LTD.
Regeneration and Local Services,Direct Services,Supplies and Services,304221,Equipment and Materials,02-May-2017,3276533-B11220201,"1,237.65",JT DOVE LTD.
Adult and Health Services,Public Health,Third Party Payments,460802,Contract Payments,02-May-2017,3276534-A83066/MAR2017HC,610.00,JUBILEE MEDICAL GROUP.
Regeneration and Local Services,Spatial Policy Planning Assets & Environment,Supplies and Services,384199,Miscellaneous Expenses,02-May-2017,3276535-786,"4,200.00",JW BAINBRIDGE CONTRACTORS LTD.
Regeneration and Local Services,Culture & Sport,Supplies and Services,304259,Equipment and Materials,02-May-2017,3276540-2017/UK02421,"2,769.23",LAERDAL MEDICAL LTD.
Children and Young Peoples Services,Education,Supplies and Services,384199,Miscellaneous Expenses,02-May-2017,3276543-3378,"2,364.00",LEE`S COACHES LTD.
Resources,Legal & Democratic Services,Supplies and Services,384927,Miscellaneous Expenses,02-May-2017,3276546-JUR,527.58,REDACTED - PAYMENT TO INDIVIDUAL
Children and Young Peoples Services,Childrens Services Operational Support,Supplies and Services,338089,Services,02-May-2017,3276547-LATS/17/003,"1,200.00",LOCAL GOVERNMENT OMBUDSMAN.
Regeneration and Local Services,Direct Services,Supplies and Services,304221,Equipment and Materials,02-May-2017,3276549-4000202A,"1,963.65",LONDON GENERAL SALES LTD.
Regeneration and Local Services,Direct Services,Supplies and Services,304221,Equipment and Materials,02-May-2017,3276549-4003451,778.73,LONDON GENERAL SALES LTD.
Regeneration and Local Services,Technical Services,Supplies and Services,304221,Equipment and Materials,02-May-2017,3276556-ZBB1207094,"5,178.00",MARSHALLS MONO LTD.
Regeneration and Local Services,Spatial Policy Planning Assets & Environment,Supplies and Services,384700,Miscellaneous Expenses,02-May-2017,3276560-BURSARY270317-070417,720.00,MAYA HORTON.
Children and Young Peoples Services,Education,Supplies and Services,384199,Miscellaneous Expenses,02-May-2017,3276563-2472,"2,250.00",MID NITE EXPRESS.
Regeneration and Local Services,Culture & Sport,Supplies and Services,338099,Services,02-May-2017,3276577-0012836,800.00,MTELECOM LTD.
Regeneration and Local Services,Direct Services,Third Party Payments,430100,Rendered by Private Contractors,02-May-2017,3276582-NC1/C521/BW,"8,592.94",NEDCO CONTRACTS (NE) LTD.
Regeneration and Local Services,Culture & Sport,Supplies and Services,338047,Services,02-May-2017,3276583-TOWNHALL8/4/17,500.00,NEIL JOHNSON.
Children and Young Peoples Services,Education,Supplies and Services,338094,Services,02-May-2017,3276589-2195,546.75,NEWTON AYCLIFFE YOUTH & COMMUNITY CENTRE.
Regeneration and Local Services,Technical Services,Supplies and Services,384194,Miscellaneous Expenses,02-May-2017,3276591-81224,"1,470.00",NIRAMAX GROUP LTD.
Children and Young Peoples Services,Education,Transport,230008,Contract Hire,02-May-2017,3276594-M0007423189,"1,520.00",NORTH TYNESIDE COUNCIL.
Regeneration and Local Services,Direct Services,Supplies and Services,304999,Equipment and Materials,02-May-2017,3276596-2326754,748.00,NORTHERN TOOLS & ACCESSORIES.
Regeneration and Local Services,Direct Services,Supplies and Services,304999,Equipment and Materials,02-May-2017,3276596-2329289,"1,189.00",NORTHERN TOOLS & ACCESSORIES.
Children and Young Peoples Services,Early Help,Supplies and Services,304259,Equipment and Materials,02-May-2017,3276601-CN19425117,792.96,OCS GROUP UK LTD T/A CANNON HYGIENE.
Regeneration and Local Services,Direct Services,Transport,215022,Running Costs of Vehicles,02-May-2017,3276602-238812,"1,415.36",OIL NRG LTD.
Regeneration and Local Services,Direct Services,Transport,215005,Running Costs of Vehicles,02-May-2017,3276602-238849,"16,904.48",OIL NRG LTD.
Regeneration and Local Services,Direct Services,Transport,215005,Running Costs of Vehicles,02-May-2017,3276602-238872,"12,119.90",OIL NRG LTD.
Regeneration and Local Services,Direct Services,Transport,215022,Running Costs of Vehicles,02-May-2017,3276602-238873,"1,884.00",OIL NRG LTD.
Regeneration and Local Services,Technical Services,Third Party Payments,460224,Contract Payments,02-May-2017,3276606-SIN200463,"18,436.41",OWEN PUGH GDC LTD.*
Regeneration and Local Services,Technical Services,Third Party Payments,430100,Rendered by Private Contractors,02-May-2017,3276606-SIN7049521,"3,250.00",OWEN PUGH GDC LTD.*
Children and Young Peoples Services,Children Looked After,Third Party Payments,486043,Service Level Agreements,02-May-2017,3276608-16295,920.00,PAC-UK LTD  (POST ADOPTION CENTRE).
Regeneration and Local Services,Culture & Sport,Supplies and Services,324117,Provisions,02-May-2017,3276609-22/2191969,640.24,PALMER & HARVEY MCLANE LTD.
Adult and Health Services,Public Health,Third Party Payments,460802,Contract Payments,02-May-2017,3276614-A83074/MAR2017HC,850.00,PEASEWAY PARTNERSHIP.
Regeneration and Local Services,Spatial Policy Planning Assets & Environment,Creditors,952146,Creditor-Section 106 agreement,02-May-2017,3276616-RED-04-2017-035,876.00,PELTON FELL COMMUNITY PARTNERSHIP.
Adult and Health Services,Commissioning inc Supporting People,Third Party Payments,470103,Purchase of Care,02-May-2017,3276617-04,"1,126.24",PERFECT CARE LTD T/A BELMONT GRANGE CARE HOME.
Adult and Health Services,Commissioning inc Supporting People,Debtors,930138,Debtor IC+ Residential Care Voids - CCG,02-May-2017,3276617-PERIOD11,"3,163.08",PERFECT CARE LTD T/A BELMONT GRANGE CARE HOME.
Children and Young Peoples Services,Education,Transport,230008,Contract Hire,02-May-2017,3276620-19939,"1,524.00",PHOENIX TAXIS T/A PRATT`S TAXIS.
Regeneration and Local Services,Economic Development and Housing,Income,720721,Fees and Charges,02-May-2017,3276626-10458,"1,130.00",PLAIN LANGUAGE COMMISSION.
Regeneration and Local Services,Direct Services,Transfer Payments,525030,Other,02-May-2017,3276627-NEI=EXP-04-2017-031,500.00,POSITIVE HORIZONS.
Regeneration and Local Services,Technical Services,Supplies and Services,304999,Equipment and Materials,02-May-2017,3276631-70125,"3,390.00",PRECISION GEOMATICS LTD.
Regeneration and Local Services,Technical Services,Stock,926900,Stock in hand-Inventory system,02-May-2017,3276632-40974,954.40,PREFORMED MARKINGS LTD.
Regeneration and Local Services,Technical Services,Supplies and Services,304221,Equipment and Materials,02-May-2017,3276635-97961,550.00,PROTECTOR SECURITY GROUP LTD.
Regeneration and Local Services,Technical Services,Third Party Payments,430100,Rendered by Private Contractors,02-May-2017,3276635-98261,550.00,PROTECTOR SECURITY GROUP LTD.
Regeneration and Local Services,Spatial Policy Planning Assets & Environment,Supplies and Services,384899,Miscellaneous Expenses,02-May-2017,3276648-RED-04-2017-045,"2,387.47",ROYAL SOCIETY FOR THE PROTECTION OF BIRDS (RSPB).*
Regeneration and Local Services,Direct Services,Vehicles Equipment Furniture and Fittings,912529,Purchase-equipment,02-May-2017,3276649-992261,"4,574.00",RTC SAFETY SURFACES LTD.
Regeneration and Local Services,Technical Services,Supplies and Services,304358,Equipment and Materials,02-May-2017,3276651-1140,838.00,S & R LANDSCAPES.
Regeneration and Local Services,Technical Services,Supplies and Services,304358,Equipment and Materials,02-May-2017,3276651-1141,"1,014.00",S & R LANDSCAPES.
Regeneration and Local Services,Technical Services,Supplies and Services,304358,Equipment and Materials,02-May-2017,3276651-1142,"1,254.00",S & R LANDSCAPES.
Regeneration and Local Services,Technical Services,Supplies and Services,304358,Equipment and Materials,02-May-2017,3276651-1149,"1,014.00",S & R LANDSCAPES.
Regeneration and Local Services,Technical Services,Supplies and Services,304358,Equipment and Materials,02-May-2017,3276651-1150,"1,750.00",S & R LANDSCAPES.
Regeneration and Local Services,Technical Services,Supplies and Services,304358,Equipment and Materials,02-May-2017,3276651-1151,"1,950.00",S & R LANDSCAPES.
Regeneration and Local Services,Economic Development and Housing,Premises,108099,Service Repairs and Maintenance,02-May-2017,3276653-6894,575.25,SAFEGUARD SECURITY (NE) LTD.
Regeneration and Local Services,Transport and Contracted Services,Third Party Payments,430100,Rendered by Private Contractors,02-May-2017,3276658-CONCFAREPAY17-1APRV1,"10,014.62",SB TRAVEL.
Regeneration and Local Services,Transport and Contracted Services,Third Party Payments,430100,Rendered by Private Contractors,02-May-2017,3276659-CONCFAREPAY17-1APRV1,"19,003.72",SCARLET BAND BUS & COACH LTD.
Regeneration and Local Services,Technical Services,Supplies and Services,304221,Equipment and Materials,02-May-2017,3276669-714560049163,966.00,SIG TRADING LTD.
Adult and Health Services,Commissioning inc Supporting People,Third Party Payments,479111,Purchase of Care,02-May-2017,3276676-2443,"16,834.60",SKILLS FOR PEOPLE.
Regeneration and Local Services,Transport and Contracted Services,Third Party Payments,430100,Rendered by Private Contractors,02-May-2017,3276678-CT1/4/17,"1,056.00",SLAM COMMUNITY DEVELOPMENT TRUST (CDT).
Regeneration and Local Services,Technical Services,Stock,926900,Stock in hand-Inventory system,02-May-2017,3276681-SI17003171,690.60,SOLON SECURITY LTD.
Regeneration and Local Services,Projects and Business services,Third Party Payments,430100,Rendered by Private Contractors,02-May-2017,3276684-0001089505,"1,007.75",SRCL LTD.
Adult and Health Services,Commissioning inc Supporting People,Third Party Payments,473111,Purchase of Care,02-May-2017,3276687-LH447,"40,953.00",ST MARGARETS CENTRE.
Regeneration and Local Services,Transport and Contracted Services,Third Party Payments,430100,Rendered by Private Contractors,02-May-2017,3276688-CONCFAREPAY17-1APRV1,"6,142.60",STANLEY TRAVEL (NORTH EAST) LTD.
Adult and Health Services,Public Health,Third Party Payments,460802,Contract Payments,02-May-2017,3276689-A83015/MAR2017HC,565.00,STATION VIEW MEDICAL CENTRE.
Regeneration and Local Services,Technical Services,Supplies and Services,304221,Equipment and Materials,02-May-2017,3276694-092113,"2,024.40",STONEGRAVE AGGREGATES LTD.
Regeneration and Local Services,Technical Services,Supplies and Services,304221,Equipment and Materials,02-May-2017,3276694-092344,"1,191.48",STONEGRAVE AGGREGATES LTD.
Regeneration and Local Services,Technical Services,Supplies and Services,304221,Equipment and Materials,02-May-2017,3276694-092507,590.56,STONEGRAVE AGGREGATES LTD.
Adult and Health Services,Public Health,Third Party Payments,460803,Contract Payments,02-May-2017,3276696-141,"5,000.00",SUCCESS NORTH EAST COMMUNITY INTEREST COMPANY (CIC).
Resources,I.C.T. Services,Supplies and Services,304999,Equipment and Materials,02-May-2017,3276702-125604,980.00,SWITCHSHOP LTD.
Regeneration and Local Services,Direct Services,Supplies and Services,304221,Equipment and Materials,02-May-2017,3276703-2329078,"3,092.30",T CROSSLING & CO LTD.
Regeneration and Local Services,Direct Services,Supplies and Services,304221,Equipment and Materials,02-May-2017,3276703-2329359,"1,953.80",T CROSSLING & CO LTD.
Regeneration and Local Services,Technical Services,Supplies and Services,304221,Equipment and Materials,02-May-2017,3276705-9036044540,686.00,TARMAC TRADING LTD.
Regeneration and Local Services,Spatial Policy Planning Assets & Environment,Supplies and Services,384199,Miscellaneous Expenses,02-May-2017,3276711-037,"1,150.00",TELFORD`S COUNTRYSIDE & LANDSCAPE CONTRACTORS.
Children and Young Peoples Services,Central Charges (CYPS),Supplies and Services,372009,Subscriptions,02-May-2017,3276715-600828,"26,082.16",THE COPYRIGHT LICENSING AGENCY LTD.
Adult and Health Services,Public Health,Supplies and Services,338094,Services,02-May-2017,3276717-4526,513.50,THE DURHAM CENTRE LTD.
Dedicated Schools Grant,Dedicated Schools Grant,Third Party Payments,440080,Other Third Party Payments,02-May-2017,3276723-6381,"3,104.45",THE ROYAL NATIONAL COLLEGE FOR THE BLIND.
Dedicated Schools Grant,Dedicated Schools Grant,Third Party Payments,440080,Other Third Party Payments,02-May-2017,3276723-6382,"2,834.00",THE ROYAL NATIONAL COLLEGE FOR THE BLIND.
Adult and Health Services,Public Health,Third Party Payments,460802,Contract Payments,02-May-2017,3276726-A83035/MAR2017HC,"1,460.00",THE WEARDALE PRACTICE.
Children and Young Peoples Services,Education,Transport,230007,Contract Hire,02-May-2017,3276730-3347,"2,687.50",TM TRAVEL.
Regeneration and Local Services,Technical Services,Stock,926900,Stock in hand-Inventory system,02-May-2017,3276734-100095,"1,188.00",TOTAL RENTAL SOLUTIONS.
Children and Young Peoples Services,Education,Transport,230008,Contract Hire,02-May-2017,3276736-92,"1,030.00",TRIDENT TAXIS.
Regeneration and Local Services,Technical Services,Supplies and Services,304221,Equipment and Materials,02-May-2017,3276739-172343,557.41,TYNEDALE ROADSTONE LTD.
Regeneration and Local Services,Technical Services,Supplies and Services,342215,Computers and Communications,02-May-2017,3276740-35592,"3,521.70",UK TELEMATICS LTD.
Regeneration and Local Services,Direct Services,Third Party Payments,430100,Rendered by Private Contractors,02-May-2017,3276741-INV-0236,513.00,UK VENTILATION LTD.
Regeneration and Local Services,Direct Services,Supplies and Services,304221,Equipment and Materials,02-May-2017,3276741-INV-0237,659.00,UK VENTILATION LTD.
Regeneration and Local Services,Direct Services,Supplies and Services,304221,Equipment and Materials,02-May-2017,3276741-INV-0238,846.00,UK VENTILATION LTD.
Regeneration and Local Services,Direct Services,Supplies and Services,304221,Equipment and Materials,02-May-2017,3276741-INV-0239,684.00,UK VENTILATION LTD.
Regeneration and Local Services,Direct Services,Supplies and Services,304221,Equipment and Materials,02-May-2017,3276741-INV-0240,971.00,UK VENTILATION LTD.
Regeneration and Local Services,Technical Services,Third Party Payments,430100,Rendered by Private Contractors,02-May-2017,3276744-INV041867,"1,896.60",URBIS SCHREDER LTD.
Regeneration and Local Services,Technical Services,Supplies and Services,304221,Equipment and Materials,02-May-2017,3276744-INV041868,684.91,URBIS SCHREDER LTD.
Regeneration and Local Services,Technical Services,Supplies and Services,304221,Equipment and Materials,02-May-2017,3276744-INV041869,509.01,URBIS SCHREDER LTD.
Regeneration and Local Services,Technical Services,Stock,926900,Stock in hand-Inventory system,02-May-2017,3276744-INV041870,"26,000.00",URBIS SCHREDER LTD.
Regeneration and Local Services,Direct Services,Transfer Payments,525030,Other,02-May-2017,3276745-NEI=EXP-04-2017-030,500.00,VEG OUT IN BARNEY.
Regeneration and Local Services,Technical Services,Supplies and Services,304221,Equipment and Materials,02-May-2017,3276750-20554,"2,044.62",WARD TIMBER LTD.
Regeneration and Local Services,Transport and Contracted Services,Third Party Payments,430100,Rendered by Private Contractors,02-May-2017,3276751-CONCFAREPAY17,"2,121.84",WEARDALE MOTOR SERVICES LTD.
Regeneration and Local Services,Transport and Contracted Services,Third Party Payments,430100,Rendered by Private Contractors,02-May-2017,3276751-CONCFAREPAY17X21,"15,664.10",WEARDALE MOTOR SERVICES LTD.
Resources,Legal & Democratic Services,Supplies and Services,338025,Services,02-May-2017,3276753-MISC239/2016-17,650.00,WHITEHOUSE FUNERAL SERVICES.
Adult and Health Services,Public Health,Third Party Payments,460802,Contract Payments,02-May-2017,3276755-A83003/MAR2017HC,"1,130.00",WILLINGTON MEDICAL GROUP.
Regeneration and Local Services,Direct Services,Supplies and Services,304221,Equipment and Materials,02-May-2017,3276758-42036605,"4,448.00",WOLSELEY UK LTD.
Regeneration and Local Services,Culture & Sport,Supplies and Services,304259,Equipment and Materials,02-May-2017,3276760-8622,"1,074.00",WORLD OF RIDES.
Resources,I.C.T. Services,Stock,926900,Stock in hand-Inventory system,02-May-2017,3276761-BK55254,"1,540.00",XMA LTD.
Regeneration and Local Services,Direct Services,Third Party Payments,430100,Rendered by Private Contractors,03-May-2017,306859-88312879,"26,523.00",GEZE UK LTD.
Resources,Legal & Democratic Services,Supplies and Services,338042,Services,03-May-2017,306866-243494,780.00,MISS FIONA MCCRAE.
Resources - C A C,Centrally Administered costs,Third Party Payments,440999,Other Third Party Payments,03-May-2017,306882-FN349650,"6,000.00",NORTH KESTEVEN DISTRICT COUNCIL.
Regeneration and Local Services,Culture & Sport,Construction Work,908105,Construction work,03-May-2017,3276764-1LIFE18657,"2,808.54",1LIFE MANAGEMENT SOLUTIONS LTD.
Regeneration and Local Services,Technical Services,Supplies and Services,304221,Equipment and Materials,03-May-2017,3276765-24678108,"1,256.51",AGGREGATE INDUSTRIES UK LTD.
Regeneration and Local Services,Technical Services,Supplies and Services,304221,Equipment and Materials,03-May-2017,3276765-24702196,"1,238.95",AGGREGATE INDUSTRIES UK LTD.
Regeneration and Local Services,Technical Services,Supplies and Services,304221,Equipment and Materials,03-May-2017,3276765-24702198,"1,481.46",AGGREGATE INDUSTRIES UK LTD.
Regeneration and Local Services,Technical Services,Third Party Payments,430100,Rendered by Private Contractors,03-May-2017,3276766-J1530/17/C/08,"2,310.00",AK (LIGHTING & SIGNS) LTD.
Regeneration and Local Services,Technical Services,Third Party Payments,430100,Rendered by Private Contractors,03-May-2017,3276766-J1530/17/C/09,"7,520.00",AK (LIGHTING & SIGNS) LTD.
Regeneration and Local Services,Technical Services,Third Party Payments,430100,Rendered by Private Contractors,03-May-2017,3276766-J1530/17/C/10,"5,920.00",AK (LIGHTING & SIGNS) LTD.
Regeneration and Local Services,Technical Services,Third Party Payments,430100,Rendered by Private Contractors,03-May-2017,3276766-J1530/17/C/11,"9,440.00",AK (LIGHTING & SIGNS) LTD.
Regeneration and Local Services,Technical Services,Third Party Payments,430100,Rendered by Private Contractors,03-May-2017,3276766-J1530/17/C/12,"8,000.00",AK (LIGHTING & SIGNS) LTD.
Regeneration and Local Services,Technical Services,Construction Work,908105,Construction work,03-May-2017,3276766-J1661/17/C,"10,605.07",AK (LIGHTING & SIGNS) LTD.
Children and Young Peoples Services,Children Looked After,Premises,108099,Service Repairs and Maintenance,03-May-2017,3276767-47115,612.00,ALARM RADIO MONITORING LTD.
Regeneration and Local Services,Culture & Sport,Supplies and Services,384199,Miscellaneous Expenses,03-May-2017,3276773-2017-123-141-009383,"6,653.83",AMERICAN EXPRESS SERVICES EUROPE LTD.
Regeneration and Local Services,Direct Services,Fees,901002,Professional fees,03-May-2017,3276775-ANL2017/38,"12,519.00",AURA NEWCASTLE LTD.
Regeneration and Local Services,Technical Services,Employees,040149,Recruitment Instruction and Training,03-May-2017,3276777-NSK000521,"1,123.20",BASIS (REGISTRATION) LTD.
Regeneration and Local Services,Direct Services,Premises,120037,Energy Costs,03-May-2017,3276778-0000033190,979.50,BILLINGTON BIOENERGY LTD.
Regeneration and Local Services,Technical Services,Supplies and Services,338066,Services,03-May-2017,3276783-4967,"27,038.06",BLOOM PROCUREMENT SERVICES LTD (FORMERLY NEPRO LTD).
Regeneration and Local Services,Culture & Sport,Premises,145023,Cleaning and Domestic Supplies,03-May-2017,3276789-22SI2224466,"1,194.10",BRENNTAG UK LTD.
Children and Young Peoples Services,Education,Construction Work,908105,Construction work,03-May-2017,3276799-2531,"1,553.02",CATHEDRAL LOCK & SAFE SERVICES LTD.
Regeneration and Local Services,Direct Services,Third Party Payments,430100,Rendered by Private Contractors,03-May-2017,3276800-243,"3,186.47",CEILINGS DIRECT LTD.
Regeneration and Local Services,Direct Services,Transport,210057,Repair and Maintenance of Vehicles,03-May-2017,3276801-550271502,"1,475.06",CHEMETALL PLC.
Regeneration and Local Services,Economic Development and Housing,Premises,106082,Centrally Controlled Rep and Maint,03-May-2017,3276805-5011,678.40,CITY FABRICATIONS LTD.
Children and Young Peoples Services,Education,Employees,040149,Recruitment Instruction and Training,03-May-2017,3276807-120417,"1,600.00",CLAIRE OSBOURNE T/A LEGO IN MIND.
Regeneration and Local Services,Economic Development and Housing,Supplies and Services,304335,Equipment and Materials,03-May-2017,3276813-RED-05-2017-004,"1,000.00",CURIOUS 12 LTD.
Regeneration and Local Services,Transport and Contracted Services,Construction Work,908105,Construction work,03-May-2017,3276820-3097797,"57,129.94",DARLINGTON BOROUGH COUNCIL.
Resources,Legal & Democratic Services,Supplies and Services,338042,Services,03-May-2017,3276823-329510/INVTD406,550.00,DERE STREET BARRISTERS.
Regeneration and Local Services,Economic Development and Housing,Cap Exp on Grants & Other Financial Assistance (REFCUS),918401,Capital grants,03-May-2017,3276829-RED-05-2017-006,"5,150.00",DUNELM FINE ART LTD.
Regeneration and Local Services,Technical Services,Premises,120009,Energy Costs,03-May-2017,3276830-306142,880.76,DURHAM UNIVERSITY.
Resources,I.C.T. Services,Supplies and Services,372009,Subscriptions,03-May-2017,3276832-INV-0434,"6,000.00",DYNAMO NORTH EAST CIC.
Regeneration and Local Services,Technical Services,Employees,040149,Recruitment Instruction and Training,03-May-2017,3276833-0000040343,"1,540.00",EAST DURHAM COLLEGE.
Regeneration and Local Services,Direct Services,Supplies and Services,384956,Miscellaneous Expenses,03-May-2017,3276841-Y01184904,"5,206.00",ENVIRONMENT AGENCY.
Regeneration and Local Services,Direct Services,Supplies and Services,384956,Miscellaneous Expenses,03-May-2017,3276841-Y01184905,"5,206.00",ENVIRONMENT AGENCY.
Regeneration and Local Services,Direct Services,Supplies and Services,384956,Miscellaneous Expenses,03-May-2017,3276841-Y01184909,"5,206.00",ENVIRONMENT AGENCY.
Children and Young Peoples Services,Education,Transfer Payments,510026,School Children,03-May-2017,3276842-STH-BA-10934,760.00,EYPS LTD.
Regeneration and Local Services,Economic Development and Housing,Supplies and Services,344033,Telephones,03-May-2017,3276847-135904,"1,093.69",FREEDOM COMMUNICATIONS (UK) LTD.
Regeneration and Local Services,Culture & Sport,Premises,145023,Cleaning and Domestic Supplies,03-May-2017,3276857-08/529191,583.02,GREENHAM TRADING LTD.
Regeneration and Local Services,Technical Services,Employees,040149,Recruitment Instruction and Training,03-May-2017,3276860-171,"4,995.00",HEALTH & SAFETY NORTH EAST.
Regeneration and Local Services,Economic Development and Housing,Cap Exp on Grants & Other Financial Assistance (REFCUS),918401,Capital grants,03-May-2017,3276861-RED-05-2017-011,"2,815.00",HES GROUP UK LTD.
Regeneration and Local Services,Direct Services,Construction Work,908105,Construction work,03-May-2017,3276872-00503,"2,215.00",JN KEARTON.
Regeneration and Local Services,Spatial Policy Planning Assets & Environment,Supplies and Services,384700,Miscellaneous Expenses,03-May-2017,3276899-RED-05-2017-005,"1,045.50",MR STEPHEN LAMB.
Regeneration and Local Services,Economic Development and Housing,Supplies and Services,304259,Equipment and Materials,03-May-2017,3276905-2017026562,"1,106.67",NEOPOST FINANCE LTD.
Regeneration and Local Services,Culture & Sport,Supplies and Services,304259,Equipment and Materials,03-May-2017,3276907-SALE-0571703,685.56,NEWITT & CO LTD.
Regeneration and Local Services,Direct Services,Supplies and Services,304259,Equipment and Materials,03-May-2017,3276915-CN19459422,632.76,OCS GROUP UK LTD T/A CANNON HYGIENE.
Regeneration and Local Services,Direct Services,Transport,215005,Running Costs of Vehicles,03-May-2017,3276917-237631,"15,192.00",OIL NRG LTD.
Regeneration and Local Services,Direct Services,Transport,215022,Running Costs of Vehicles,03-May-2017,3276917-237632,"1,005.80",OIL NRG LTD.
Regeneration and Local Services,Direct Services,Transport,215022,Running Costs of Vehicles,03-May-2017,3276917-237701,502.40,OIL NRG LTD.
Regeneration and Local Services,Projects and Business services,Third Party Payments,430100,Rendered by Private Contractors,03-May-2017,3276918-S12871,730.00,O`BRIEN WASTE RECYCLING SOLUTIONS LTD.
Regeneration and Local Services,Technical Services,Stock,926900,Stock in hand-Inventory system,03-May-2017,3276919-XL197234,802.08,PARK ELECTRICAL DISTRIBUTORS LTD.
Regeneration and Local Services,Technical Services,Stock,926900,Stock in hand-Inventory system,03-May-2017,3276919-XL197237,"1,286.40",PARK ELECTRICAL DISTRIBUTORS LTD.
Regeneration and Local Services,Economic Development and Housing,Cap Exp on Grants & Other Financial Assistance (REFCUS),918401,Capital grants,03-May-2017,3276923-RED-05-2017-010,"1,575.00",PEART ACCESS RAMPS.
Regeneration and Local Services,Technical Services,Third Party Payments,430100,Rendered by Private Contractors,03-May-2017,3276924-3136,"12,406.00",PELL & BALDWIN FABRICATION LTD.
Regeneration and Local Services,Culture & Sport,Supplies and Services,304259,Equipment and Materials,03-May-2017,3276925-5144929,"4,023.38",PERFORMING RIGHT SOCIETY LTD T/A PRS FOR MUSIC.
Regeneration and Local Services,Culture & Sport,Supplies and Services,384956,Miscellaneous Expenses,03-May-2017,3276925-5144936,"2,618.52",PERFORMING RIGHT SOCIETY LTD T/A PRS FOR MUSIC.
Regeneration and Local Services,Culture & Sport,Supplies and Services,384956,Miscellaneous Expenses,03-May-2017,3276925-5144937,"1,765.97",PERFORMING RIGHT SOCIETY LTD T/A PRS FOR MUSIC.
Regeneration and Local Services,Culture & Sport,Supplies and Services,384199,Miscellaneous Expenses,03-May-2017,3276932-144340,"6,790.00",PREMIER TRAFFIC MANAGEMENT LTD.
Adult and Health Services,Head of Adults,Third Party Payments,478151,Purchase of Care,03-May-2017,3276934-1300005046,"1,057.05",PROGRESS CARE HOUSING ASSOCIATION LTD.
Regeneration and Local Services,Technical Services,Third Party Payments,430100,Rendered by Private Contractors,03-May-2017,3276938-2580/170417,"48,274.28",RAINTON CONSTRUCTION LTD.
Resources,Legal & Democratic Services,Premises,125009,Rents,03-May-2017,3276942-9117,546.16,RIVERGREEN DEVELOPMENTS PLC.
Regeneration and Local Services,Business Support,Supplies and Services,340001,Postages,03-May-2017,3276944-9054207972,"1,175.85",ROYAL MAIL GROUP PLC.
Transformation and Partnerships,Partnerships & Community Engagement Div.,Cap Exp on Grants & Other Financial Assistance (REFCUS),918004,Contributions to other bodies,03-May-2017,3276947-VOUCHER16NB,"2,141.00",SATLEY PARISH COUNCIL.
Regeneration and Local Services,Culture & Sport,Supplies and Services,384199,Miscellaneous Expenses,03-May-2017,3276960-24133-2017,"3,760.00",STANLEY TRAVEL (NORTH EAST) LTD.
Regeneration and Local Services,Technical Services,Supplies and Services,304221,Equipment and Materials,03-May-2017,3276962-092294,"1,051.88",STONEGRAVE AGGREGATES LTD.
Regeneration and Local Services,Technical Services,Supplies and Services,304221,Equipment and Materials,03-May-2017,3276962-092389,"1,826.20",STONEGRAVE AGGREGATES LTD.
Regeneration and Local Services,Technical Services,Supplies and Services,304221,Equipment and Materials,03-May-2017,3276962-092509,"2,254.20",STONEGRAVE AGGREGATES LTD.
Regeneration and Local Services,Direct Services,Third Party Payments,430115,Rendered by Private Contractors,03-May-2017,3276962-093017,"6,555.00",STONEGRAVE AGGREGATES LTD.
Children and Young Peoples Services,Early Help,Transport,230007,Contract Hire,03-May-2017,3276967-6990,"1,329.26",SUPPORTIVE SRC LTD.
Regeneration and Local Services,Projects and Business services,Third Party Payments,430103,Rendered by Private Contractors,03-May-2017,3276970-NEI-EXP-05-2017-001,"5,830.90",TEESDALE CONSERVATION VOLUNTEERS.
Regeneration and Local Services,Economic Development and Housing,Third Party Payments,440999,Other Third Party Payments,03-May-2017,3276972-SI1000000253,"7,500.00",THE CYRENIANS LTD T/A CHANGING LIVES.
Regeneration and Local Services,Technical Services,Stock,926900,Stock in hand-Inventory system,03-May-2017,3276974-N/IN195111,"1,230.63",THOMAS OWEN & SONS (NEWCASTLE) LTD.
Regeneration and Local Services,Economic Development and Housing,Cap Exp on Grants & Other Financial Assistance (REFCUS),918401,Capital grants,03-May-2017,3276975-RED-05-2017-007,"2,842.00",THYSSENKRUPP ENCASA A DIVISION OF THYSSENKRUPP ACCESS LTD.
Regeneration and Local Services,Economic Development and Housing,Cap Exp on Grants & Other Financial Assistance (REFCUS),918401,Capital grants,03-May-2017,3276975-RED-05-2017-008,"4,182.10",THYSSENKRUPP ENCASA A DIVISION OF THYSSENKRUPP ACCESS LTD.
Regeneration and Local Services,Direct Services,Supplies and Services,304221,Equipment and Materials,03-May-2017,3276977-31029,"1,375.00",TOTAL PUMP SOLUTIONS LTD.
Regeneration and Local Services,Economic Development and Housing,Supplies and Services,336005,Advertising,03-May-2017,3276981-3347524,"1,000.00",TRINITY MIRROR PUBLISHING LTD.*
Regeneration and Local Services,Technical Services,Stock,926900,Stock in hand-Inventory system,03-May-2017,3276992-42086851,618.20,WOLSELEY UK LTD.
Children and Young Peoples Services,Children Looked After,Third Party Payments,440027,Other Third Party Payments,03-May-2017,3277107-1186987,605.34,REDACTED - PAYMENT TO INDIVIDUAL
Children and Young Peoples Services,Children Looked After,Third Party Payments,440027,Other Third Party Payments,03-May-2017,3277127-1185566,706.23,REDACTED - PAYMENT TO INDIVIDUAL
Children and Young Peoples Services,Children Looked After,Third Party Payments,440027,Other Third Party Payments,03-May-2017,3277138-1186981,706.23,REDACTED - PAYMENT TO INDIVIDUAL
Children and Young Peoples Services,Early Help,Third Party Payments,440015,Other Third Party Payments,03-May-2017,3277463-1186524,837.17,REDACTED - PAYMENT TO INDIVIDUAL
Children and Young Peoples Services,Children Looked After,Third Party Payments,440002,Other Third Party Payments,03-May-2017,3277509-1186118,"1,126.15",REDACTED - PAYMENT TO INDIVIDUAL
Children and Young Peoples Services,Children Looked After,Third Party Payments,440002,Other Third Party Payments,03-May-2017,3277509-1186119,"1,126.15",REDACTED - PAYMENT TO INDIVIDUAL
Children and Young Peoples Services,Children Looked After,Third Party Payments,440027,Other Third Party Payments,03-May-2017,3277651-1185234,672.60,REDACTED - PAYMENT TO INDIVIDUAL
Regeneration and Local Services,Culture & Sport,Third Party Payments,430100,Rendered by Private Contractors,04-May-2017,3277698-1LIFE18675,"58,786.82",1LIFE MANAGEMENT SOLUTIONS LTD.
Regeneration and Local Services,Technical Services,Supplies and Services,304221,Equipment and Materials,04-May-2017,3277702-24709317,"1,020.01",AGGREGATE INDUSTRIES UK LTD.
Regeneration and Local Services,Technical Services,Supplies and Services,304221,Equipment and Materials,04-May-2017,3277702-24709318,523.40,AGGREGATE INDUSTRIES UK LTD.
Resources,I.C.T. Services,Supplies and Services,304252,Equipment and Materials,04-May-2017,3277704-8685,"1,990.00",ALPHATEC 2000 LTD.
Children and Young Peoples Services,Early Help,Supplies and Services,384199,Miscellaneous Expenses,04-May-2017,3277708-252,"4,720.00",ARMSTRONG DECORATORS.
Regeneration and Local Services,Culture & Sport,Supplies and Services,338047,Services,04-May-2017,3277711-AMP201711,"9,054.72",ASPIREMEDIA PRODUCTIONS LTD.
Regeneration and Local Services,Direct Services,Stock,926004,Stock,04-May-2017,3277714-36050,"1,261.50",AUTO ELECTRICAL SOLUTIONS LTD.
Regeneration and Local Services,Direct Services,Supplies and Services,304259,Equipment and Materials,04-May-2017,3277716-96660810,"1,400.88",BALL COLEGRAVE LTD.
Regeneration and Local Services,Direct Services,Third Party Payments,430100,Rendered by Private Contractors,04-May-2017,3277720-DCC/170009,"1,197.50",BEACON BUILDING & ASSOCIATED SERVICES LTD.
Regeneration and Local Services,Direct Services,Transport,210057,Repair and Maintenance of Vehicles,04-May-2017,3277721-35136078,934.45,BELL TRUCK SALES LTD.
Regeneration and Local Services,Technical Services,Supplies and Services,304221,Equipment and Materials,04-May-2017,3277728-BMPR/067/LW,600.00,BISHOP MIDDLEHAM PLANT & RECYCLING LTD.
Resources,Corporate Finance,Supplies and Services,338066,Services,04-May-2017,3277731-4882,"49,545.43",BLOOM PROCUREMENT SERVICES LTD (FORMERLY NEPRO LTD).
Regeneration and Local Services,Direct Services,Third Party Payments,430100,Rendered by Private Contractors,04-May-2017,3277738-82582918,773.26,BRISTOL STREET MOTORS.
Regeneration and Local Services,Direct Services,Third Party Payments,430100,Rendered by Private Contractors,04-May-2017,3277738-82582972,928.53,BRISTOL STREET MOTORS.
Regeneration and Local Services,Direct Services,Third Party Payments,430100,Rendered by Private Contractors,04-May-2017,3277738-82582973,"1,321.03",BRISTOL STREET MOTORS.
Regeneration and Local Services,Direct Services,Third Party Payments,430100,Rendered by Private Contractors,04-May-2017,3277738-82582974,"1,133.74",BRISTOL STREET MOTORS.
Regeneration and Local Services,Direct Services,Third Party Payments,430100,Rendered by Private Contractors,04-May-2017,3277738-82582975,"1,966.98",BRISTOL STREET MOTORS.
Regeneration and Local Services,Direct Services,Supplies and Services,304221,Equipment and Materials,04-May-2017,3277742-1660/0730334,523.76,BSS GROUP PLC.
Regeneration and Local Services,Technical Services,Supplies and Services,304221,Equipment and Materials,04-May-2017,3277748-3009514448,612.35,CEMEX UK MATERIALS LTD.
Regeneration and Local Services,Technical Services,Supplies and Services,304221,Equipment and Materials,04-May-2017,3277748-3009518772,787.48,CEMEX UK MATERIALS LTD.
Regeneration and Local Services,Technical Services,Supplies and Services,304221,Equipment and Materials,04-May-2017,3277748-3009533247,848.45,CEMEX UK MATERIALS LTD.
Regeneration and Local Services,Culture & Sport,Supplies and Services,384199,Miscellaneous Expenses,04-May-2017,3277749-1182,"1,240.00",CENTRE STAGE ENGINEERING LTD.
Resources,Legal & Democratic Services,Supplies and Services,384927,Miscellaneous Expenses,04-May-2017,3277755-JUROREXPENSES,651.68,REDACTED - PAYMENT TO INDIVIDUAL
Adult and Health Services,Public Health,Third Party Payments,460802,Contract Payments,04-May-2017,3277759-A83011,"1,550.00",CLAYPATH & UNIVERSITY MEDICAL GROUP.
Regeneration and Local Services,Direct Services,Third Party Payments,430100,Rendered by Private Contractors,04-May-2017,3277760-8118283,"1,100.00",CLOVER CONTROLS LTD.
Regeneration and Local Services,Culture & Sport,Supplies and Services,384199,Miscellaneous Expenses,04-May-2017,3277761-INV-5002,"1,800.00",CLOWN & BEAR LTD.
Regeneration and Local Services,Direct Services,Third Party Payments,460305,Contract Payments,04-May-2017,3277762-3387,"1,260.00",CO-WHEELS CAR CLUB CIC.
Regeneration and Local Services,Culture & Sport,Third Party Payments,430100,Rendered by Private Contractors,04-May-2017,3277763-PSINV01876,"25,896.93",COMPETITION LINE UK LTD.
Regeneration and Local Services,Culture & Sport,Income,720810,Fees and Charges,04-May-2017,3277763-PSINV01878,"26,212.00",COMPETITION LINE UK LTD.
Regeneration and Local Services,Culture & Sport,Income,720810,Fees and Charges,04-May-2017,3277763-PSINV01880,"5,055.83",COMPETITION LINE UK LTD.
Regeneration and Local Services,Culture & Sport,Income,720810,Fees and Charges,04-May-2017,3277763-PSINV01881,"19,719.85",COMPETITION LINE UK LTD.
Regeneration and Local Services,Culture & Sport,Third Party Payments,430100,Rendered by Private Contractors,04-May-2017,3277763-PSINV01882,"8,180.33",COMPETITION LINE UK LTD.
Adult and Health Services,Commissioning inc Supporting People,Supplies and Services,384999,Miscellaneous Expenses,04-May-2017,3277766-17/18001,"6,250.00",CORNFORTH PARTNERSHIP.
Children and Young Peoples Services,Early Help,Employees,080025,Agency Staff,04-May-2017,3277774-1000269,"144,508.62",DE POEL MANAGED SERVICES LTD.
Resources,I.C.T. Services,Vehicles Equipment Furniture and Fittings,912701,Computer equipment,04-May-2017,3277775-7402357657,910.74,DELL COMPUTER CORPORATION LTD.
Resources,I.C.T. Services,Stock,926900,Stock in hand-Inventory system,04-May-2017,3277775-7402357724,"1,063.00",DELL COMPUTER CORPORATION LTD.
Regeneration and Local Services,Direct Services,Transport,210057,Repair and Maintenance of Vehicles,04-May-2017,3277776-DE11034267,750.56,DENNIS EAGLE LTD.
Dedicated Schools Grant,Dedicated Schools Grant,Third Party Payments,440080,Other Third Party Payments,04-May-2017,3277777-60000387,"30,000.00",DERWENTSIDE COLLEGE.
Regeneration and Local Services,Direct Services,Third Party Payments,430101,Rendered by Private Contractors,04-May-2017,3277779-IV874267,"1,857.85",DIRECT TYRE MANAGEMENT (DTM).
Regeneration and Local Services,Technical Services,Third Party Payments,430100,Rendered by Private Contractors,04-May-2017,3277786-6736,"3,825.50",DUNELM GEOTECHNICAL & ENVIRONMENTAL LTD.
Children and Young Peoples Services,Education,Transport,230007,Contract Hire,04-May-2017,3277788-24482,"1,401.60",DURHAM CITY COACHES.
Children and Young Peoples Services,Education,Transport,230003,Contract Hire,04-May-2017,3277788-24483,"1,350.00",DURHAM CITY COACHES.
Regeneration and Local Services,Transport and Contracted Services,Third Party Payments,430100,Rendered by Private Contractors,04-May-2017,3277789-003,680.00,DURHAM CITY SHOPMOBILITY.
Adult and Health Services,Commissioning inc Supporting People,Third Party Payments,479111,Purchase of Care,04-May-2017,3277790-290,"188,212.62",DURHAM COUNTY CARERS SUPPORT.
Adult and Health Services,Commissioning inc Supporting People,Third Party Payments,479101,Purchase of Care,04-May-2017,3277790-291,"54,930.50",DURHAM COUNTY CARERS SUPPORT.
Regeneration and Local Services,Culture & Sport,Supplies and Services,338047,Services,04-May-2017,3277791-CAROUSEL21/25MAR17,"27,805.74",DURHAM MUSICAL THEATRE CO.
Regeneration and Local Services,Culture & Sport,Supplies and Services,384199,Miscellaneous Expenses,04-May-2017,3277792-187,"2,226.90",DURHAM SCENIC WORKSHOPS LTD.
Regeneration and Local Services,Direct Services,Transport,230005,Contract Hire,04-May-2017,3277796-418329,"1,072.47",ENTERPRISE FLEX-E-RENT T/A BURNT TREE GROUP LTD.
Regeneration and Local Services,Direct Services,Transport,230005,Contract Hire,04-May-2017,3277796-8136153,597.68,ENTERPRISE FLEX-E-RENT T/A BURNT TREE GROUP LTD.
Regeneration and Local Services,Direct Services,Transport,230005,Contract Hire,04-May-2017,3277796-8136158,597.68,ENTERPRISE FLEX-E-RENT T/A BURNT TREE GROUP LTD.
Regeneration and Local Services,Direct Services,Transport,230005,Contract Hire,04-May-2017,3277796-8136163,"1,173.35",ENTERPRISE FLEX-E-RENT T/A BURNT TREE GROUP LTD.
Regeneration and Local Services,Direct Services,Transport,230005,Contract Hire,04-May-2017,3277796-8136166,"1,173.35",ENTERPRISE FLEX-E-RENT T/A BURNT TREE GROUP LTD.
Regeneration and Local Services,Direct Services,Transport,230005,Contract Hire,04-May-2017,3277796-8136169,"1,173.35",ENTERPRISE FLEX-E-RENT T/A BURNT TREE GROUP LTD.
Regeneration and Local Services,Direct Services,Transport,230005,Contract Hire,04-May-2017,3277796-8136170,"1,173.35",ENTERPRISE FLEX-E-RENT T/A BURNT TREE GROUP LTD.
Regeneration and Local Services,Direct Services,Transport,230005,Contract Hire,04-May-2017,3277796-8136187,567.75,ENTERPRISE FLEX-E-RENT T/A BURNT TREE GROUP LTD.
Children and Young Peoples Services,Early Help,Supplies and Services,338099,Services,04-May-2017,3277801-0131,"1,000.00",FEEL GOOD FACTORY CIC.
Children and Young Peoples Services,Early Help,Supplies and Services,384199,Miscellaneous Expenses,04-May-2017,3277801-0138,"1,400.00",FEEL GOOD FACTORY CIC.
Children and Young Peoples Services,Education,Transport,230008,Contract Hire,04-May-2017,3277808-008,975.00,GMC TAXIS NORTH EAST.
Children and Young Peoples Services,Education,Transport,230008,Contract Hire,04-May-2017,3277808-051,634.50,GMC TAXIS NORTH EAST.
Children and Young Peoples Services,Education,Transport,230008,Contract Hire,04-May-2017,3277809-000031,675.00,GP TAXIS.
Regeneration and Local Services,Direct Services,Transport,210057,Repair and Maintenance of Vehicles,04-May-2017,3277812-136972,620.33,GREENLAY (GRASS MACHINERY) LTD.
Regeneration and Local Services,Technical Services,Third Party Payments,430100,Rendered by Private Contractors,04-May-2017,3277814-41240,"25,358.75",HALL CONSTRUCTION SERVICES LTD.
Regeneration and Local Services,Technical Services,Supplies and Services,338027,Services,04-May-2017,3277816-0040224323,"7,619.52",HARTLEPOOL BOROUGH COUNCIL.
Regeneration and Local Services,Economic Development and Housing,Supplies and Services,384999,Miscellaneous Expenses,04-May-2017,3277819-RED-04-2017-226,500.00,HOUSING HARTLEPOOL.
Adult and Health Services,Head of Adults,Supplies and Services,338099,Services,04-May-2017,3277820-21JANUARY2017,"1,080.00",HUNWICK BOARDING KENNELS & CATTERY.
Adult and Health Services,Head of Adults,Transport,230005,Contract Hire,04-May-2017,3277821-225,598.40,I CLYDESDALE T/A BURNOPFIELD TAXIS.
Resources,I.C.T. Services,Vehicles Equipment Furniture and Fittings,912701,Computer equipment,04-May-2017,3277825-3338572,"3,844.08",INSIGHT DIRECT (UK) LTD.
Regeneration and Local Services,Direct Services,Supplies and Services,304259,Equipment and Materials,04-May-2017,3277836-23717,"4,895.00",JD GARAGE EQUIPMENT T/A JD ENGINEERING  (NORTHERN) LTD.
Regeneration and Local Services,Direct Services,Supplies and Services,304259,Equipment and Materials,04-May-2017,3277836-23718,"4,895.00",JD GARAGE EQUIPMENT T/A JD ENGINEERING  (NORTHERN) LTD.
Children and Young Peoples Services,Education,Transport,230007,Contract Hire,04-May-2017,3277837-2637,724.90,JEFF ANDERSON COACHES LTD.
Children and Young Peoples Services,Education,Transport,230012,Contract Hire,04-May-2017,3277839-N078-28/4/17,500.00,JMR TAXIS.
Regeneration and Local Services,Technical Services,Stock,926900,Stock in hand-Inventory system,04-May-2017,3277841-NI032846,"15,756.44",JOHN MACLEAN & SONS ELECTRICAL (DINGWALL) LTD.
Children and Young Peoples Services,Education,Transport,230007,Contract Hire,04-May-2017,3277843-62,500.00,JOHN WARE T/A J & K TAXIS.
Children and Young Peoples Services,Education,Transport,230009,Contract Hire,04-May-2017,3277845-723108,800.00,JOVIAL PRIVATE HIRE.
Adult and Health Services,Head of Adults,Transport,230005,Contract Hire,04-May-2017,3277845-DM14919,684.00,JOVIAL PRIVATE HIRE.
Children and Young Peoples Services,Education,Transport,230008,Contract Hire,04-May-2017,3277845-N03030,830.00,JOVIAL PRIVATE HIRE.
Regeneration and Local Services,Technical Services,Supplies and Services,304221,Equipment and Materials,04-May-2017,3277848-BI1220539,964.81,JT DOVE LTD.
Regeneration and Local Services,Technical Services,Supplies and Services,304221,Equipment and Materials,04-May-2017,3277848-BI1220546,"1,758.40",JT DOVE LTD.
Regeneration and Local Services,Direct Services,Supplies and Services,304221,Equipment and Materials,04-May-2017,3277848-NB1187561,683.04,JT DOVE LTD.
Regeneration and Local Services,Technical Services,Supplies and Services,304221,Equipment and Materials,04-May-2017,3277848-STI455618,616.24,JT DOVE LTD.
Regeneration and Local Services,Technical Services,Stock,926900,Stock in hand-Inventory system,04-May-2017,3277848-STI455624,893.20,JT DOVE LTD.
Children and Young Peoples Services,Education,Transport,230008,Contract Hire,04-May-2017,3277853-4C-30/4/17,680.00,L & R PRIVATE HIRE.
Children and Young Peoples Services,Education,Transport,230006,Contract Hire,04-May-2017,3277855-1111,950.00,LD TAXIS.
Children and Young Peoples Services,Education,Transport,230008,Contract Hire,04-May-2017,3277855-1113,825.00,LD TAXIS.
Children and Young Peoples Services,Education,Transport,230008,Contract Hire,04-May-2017,3277857-179,"1,182.32",LEE`S TAXIS (SACRISTON).
Resources,Legal & Democratic Services,Supplies and Services,384927,Miscellaneous Expenses,04-May-2017,3277859-ALLOWANCES11/4/17,527.58,REDACTED - PAYMENT TO INDIVIDUAL
Children and Young Peoples Services,Children Looked After,Supplies and Services,308011,Furniture,04-May-2017,3277861-2698,"1,592.00",LINK DESIGN LTD.
Dedicated Schools Grant,Dedicated Schools Grant,Transport,230010,Contract Hire,04-May-2017,3277868-05,800.00,M&C`S CABS LTD.
Regeneration and Local Services,Culture & Sport,Supplies and Services,338047,Services,04-May-2017,3277869-04-2017,"2,137.08",MACCA INTERNATIONAL LTD.
Children and Young Peoples Services,Education,Transport,230008,Contract Hire,04-May-2017,3277870-29,700.00,MALCOLM CARR T/A CARLY CABS.
Children and Young Peoples Services,Education,Transport,230008,Contract Hire,04-May-2017,3277874-380417,790.00,MARK MUSGROVE T/A MARKS TAXIS.
Children and Young Peoples Services,Education,Transport,230012,Contract Hire,04-May-2017,3277874-480417,510.00,MARK MUSGROVE T/A MARKS TAXIS.
Adult and Health Services,Head of Adults,Transport,230005,Contract Hire,04-May-2017,3277874-590417,650.00,MARK MUSGROVE T/A MARKS TAXIS.
Regeneration and Local Services,Technical Services,Supplies and Services,304221,Equipment and Materials,04-May-2017,3277876-ZBB1210811,"1,773.84",MARSHALLS MONO LTD.
Children and Young Peoples Services,Education,Third Party Payments,440999,Other Third Party Payments,04-May-2017,3277879-1293,"2,080.00",MBC CERAMICS.
Children and Young Peoples Services,Education,Transport,230008,Contract Hire,04-May-2017,3277880-MCD36117,"1,110.00",MCDONALD TRAVEL.
Adult and Health Services,Head of Adults,Transport,230005,Contract Hire,04-May-2017,3277880-MCD36118,"1,012.00",MCDONALD TRAVEL.
Regeneration and Local Services,Culture & Sport,Supplies and Services,338027,Services,04-May-2017,3277881-MGBRASSAFE07042017,"1,125.00",MENISHA GELA.
Children and Young Peoples Services,Education,Transport,230006,Contract Hire,04-May-2017,3277886-0022,522.00,MR PM MULLEN T/A CATHEDRAL TAXIS.
Children and Young Peoples Services,Education,Transport,230003,Contract Hire,04-May-2017,3277886-0023,500.00,MR PM MULLEN T/A CATHEDRAL TAXIS.
Children and Young Peoples Services,Education,Transport,230006,Contract Hire,04-May-2017,3277891-008,594.00,MT`S CABS.
Regeneration and Local Services,Direct Services,Stock,926004,Stock,04-May-2017,3277895-INVDUR00312822,854.78,NE TRUCK SPARES LTD.
Regeneration and Local Services,Culture & Sport,Supplies and Services,338047,Services,04-May-2017,3277896-01/17,"2,000.00",NEIL ARMSTRONG..
Children and Young Peoples Services,Education,Transport,230008,Contract Hire,04-May-2017,3277897-30,765.00,NEIL PASSMOOR T/A NEIL`S TAXI.
Adult and Health Services,Head of Adults,Third Party Payments,472101,Purchase of Care,04-May-2017,3277900-27876,"1,320.00",NEURO PARTNERS LTD.
Dedicated Schools Grant,Dedicated Schools Grant,Third Party Payments,440080,Other Third Party Payments,04-May-2017,3277902-M0021199,"7,092.04",NEWCASTLE COLLEGE.
Regeneration and Local Services,Culture & Sport,Supplies and Services,304259,Equipment and Materials,04-May-2017,3277904-SALE-0571964,"1,100.00",NEWITT & CO LTD.
Regeneration and Local Services,Economic Development and Housing,Supplies and Services,336005,Advertising,04-May-2017,3277905-19511415,"1,000.00",NEWSQUEST (YORKSHIRE & NORTH EAST) LTD.
Regeneration and Local Services,Technical Services,Third Party Payments,430100,Rendered by Private Contractors,04-May-2017,3277914-DI20268300,535.01,NORTHERN POWERGRID (NORTHEAST) LTD.
Regeneration and Local Services,Direct Services,Transport,230005,Contract Hire,04-May-2017,3277915-SL04368220INV,647.90,NORTHGATE VEHICLE HIRE LTD.
Regeneration and Local Services,Economic Development and Housing,Premises,120009,Energy Costs,04-May-2017,3277918-NNO7X722,"1,729.39",NPOWER.
Regeneration and Local Services,Direct Services,Supplies and Services,304221,Equipment and Materials,04-May-2017,3277926-BR567155,870.72,PARK ELECTRICAL DISTRIBUTORS LTD.
Children and Young Peoples Services,Education,Transport,230008,Contract Hire,04-May-2017,3277929-DCC145,"1,400.00",PAUL`S TAXIS..
Adult and Health Services,Public Health,Third Party Payments,460802,Contract Payments,04-May-2017,3277931-A83074,510.00,PEASEWAY PARTNERSHIP.
Adult and Health Services,Commissioning inc Supporting People,Third Party Payments,470103,Purchase of Care,04-May-2017,3277933-10,662.04,PERFECT CARE LTD T/A BELMONT GRANGE CARE HOME.
Regeneration and Local Services,Culture & Sport,Supplies and Services,372009,Subscriptions,04-May-2017,3277934-5161649,"3,783.11",PERFORMING RIGHT SOCIETY LTD T/A PRS FOR MUSIC.
Resources,I.C.T. Services,Supplies and Services,332029,Printing Stationery and Gen Off Exps,04-May-2017,3277943-37543,614.20,PLASTIC DATA CARD LTD.
Resources,I.C.T. Services,Supplies and Services,332029,Printing Stationery and Gen Off Exps,04-May-2017,3277944-643304,606.00,POTTS PRINTERS LTD.
Regeneration and Local Services,Direct Services,Stock,926004,Stock,04-May-2017,3277946-812560,"1,879.90",QUICKCO.
Dedicated Schools Grant,Dedicated Schools Grant,Central Support and Capital,689996,Unclassified,04-May-2017,3277950-CAS-05-2017-005,"11,212.80",RIBBON ACADEMY TRUST.
Regeneration and Local Services,Culture & Sport,Supplies and Services,338047,Services,04-May-2017,3277952-3039,"4,461.02",RIP PRODUCTIONS LTD.
Adult and Health Services,Head of Adults,Supplies and Services,308011,Furniture,04-May-2017,3277960-1/10/16,"1,149.00",SCOTT WALKER T/A WALKERS FURNITURE.
Regeneration and Local Services,Technical Services,Stock,926900,Stock in hand-Inventory system,04-May-2017,3277967-190270,"1,990.56",SNAPFAST.
Regeneration and Local Services,Technical Services,Stock,926900,Stock in hand-Inventory system,04-May-2017,3277967-190271,"1,893.60",SNAPFAST.
Children and Young Peoples Services,Education,Third Party Payments,440999,Other Third Party Payments,04-May-2017,3277971-75,"4,356.80",STANLEY EVENTS LTD.
Regeneration and Local Services,Technical Services,Supplies and Services,304221,Equipment and Materials,04-May-2017,3277975-092580,"1,532.88",STONEGRAVE AGGREGATES LTD.
Children and Young Peoples Services,Children Looked After,Employees,080025,Agency Staff,04-May-2017,3277982-2057350,"1,025.00",TEACHING PERSONNEL LTD.
Regeneration and Local Services,Direct Services,Supplies and Services,304259,Equipment and Materials,04-May-2017,3277984-291908,"1,156.49",THE HELPING HAND CO (LEDBURY) LTD.
Regeneration and Local Services,Culture & Sport,Supplies and Services,338047,Services,04-May-2017,3277989-00005382,846.67,TRAFALGAR RELEASING LTD T/A PICTUREHOUSE ENTERTAINMENT LTD.
Regeneration and Local Services,Technical Services,Stock,926900,Stock in hand-Inventory system,04-May-2017,3278004-42122076,"1,112.02",WOLSELEY UK LTD.
Regeneration and Local Services,Technical Services,Stock,926900,Stock in hand-Inventory system,04-May-2017,3278004-42123047,582.45,WOLSELEY UK LTD.
Children and Young Peoples Services,Early Help,Transport,230005,Contract Hire,05-May-2017,3278017-L13/ZM,665.00,AABAT TAXIS.
Children and Young Peoples Services,Early Help,Transport,230005,Contract Hire,05-May-2017,3278017-Z57/ZH,"1,150.00",AABAT TAXIS.
Children and Young Peoples Services,Children Looked After,Transport,230005,Contract Hire,05-May-2017,3278017-Z58/ZA,960.00,AABAT TAXIS.
Regeneration and Local Services,Economic Development and Housing,Premises,106082,Centrally Controlled Rep and Maint,05-May-2017,3278024-33563934-61,534.00,ADT FIRE & SECURITY PLC.
Regeneration and Local Services,Technical Services,Supplies and Services,304221,Equipment and Materials,05-May-2017,3278026-24717806,"1,220.14",AGGREGATE INDUSTRIES UK LTD.
Regeneration and Local Services,Technical Services,Supplies and Services,304221,Equipment and Materials,05-May-2017,3278026-24717808,737.90,AGGREGATE INDUSTRIES UK LTD.
Resources,Legal & Democratic Services,Supplies and Services,338057,Services,05-May-2017,3278030-0000026852,"1,810.00",ALERE FORENSICS.
Regeneration and Local Services,Culture & Sport,Supplies and Services,304337,Equipment and Materials,05-May-2017,3278031-10237,555.95,ALISON BLACK LTD T/A SPORTMAX.
Regeneration and Local Services,Technical Services,Stock,926900,Stock in hand-Inventory system,05-May-2017,3278052-INV113646,556.50,AZTEC CHEMICALS LTD.
Children and Young Peoples Services,Education,Supplies and Services,384540,Miscellaneous Expenses,05-May-2017,3278055-398693,"2,440.13",BAUER RADIO LTD.
Children and Young Peoples Services,Education,Supplies and Services,384540,Miscellaneous Expenses,05-May-2017,3278055-400171,"3,520.19",BAUER RADIO LTD.
Children and Young Peoples Services,Education,Construction Work,908105,Construction work,05-May-2017,3278088-2545,"2,730.04",CATHEDRAL LOCK & SAFE SERVICES LTD.
Regeneration and Local Services,Economic Development and Housing,Premises,106082,Centrally Controlled Rep and Maint,05-May-2017,3278088-2627,"1,137.00",CATHEDRAL LOCK & SAFE SERVICES LTD.
Children and Young Peoples Services,Early Help,Transport,230005,Contract Hire,05-May-2017,3278105-CLUB1710O,690.00,CLUBMAN CABS.
Children and Young Peoples Services,Early Help,Transport,230005,Contract Hire,05-May-2017,3278105-CLUB1711U,660.00,CLUBMAN CABS.
Children and Young Peoples Services,Early Help,Transport,230005,Contract Hire,05-May-2017,3278105-CLUB1712R,660.00,CLUBMAN CABS.
Children and Young Peoples Services,Early Help,Transport,230005,Contract Hire,05-May-2017,3278105-CLUB1713F,535.00,CLUBMAN CABS.
Adult and Health Services,Head of Adults,Supplies and Services,338005,Services,05-May-2017,3278107-0615,560.00,COMMERCIAL ENERGY ASSESSMENT NORTH EAST LTD.
Children and Young Peoples Services,Early Help,Transport,230005,Contract Hire,05-May-2017,3278126-7066,668.88,CROFT BUSINESS SERVICES (UK) LTD T/A CROFT TAXIS.
Dedicated Schools Grant,Dedicated Schools Grant,Third Party Payments,440080,Other Third Party Payments,05-May-2017,3278134-SLINV/00001379,"1,634.21",DARLINGTON COLLEGE.
Resources,I.C.T. Services,Receipts In Advance,954011,Capital grants-receipts in advance,05-May-2017,3278139-4100,"389,513.00",DCMS (DEPARTMENT FOR CULTURE MEDIA & SPORT).
Regeneration and Local Services,Direct Services,Third Party Payments,430101,Rendered by Private Contractors,05-May-2017,3278144-IV874268,"1,724.58",DIRECT TYRE MANAGEMENT (DTM).
Regeneration and Local Services,Direct Services,Third Party Payments,430101,Rendered by Private Contractors,05-May-2017,3278144-IV874270,"2,879.13",DIRECT TYRE MANAGEMENT (DTM).
Regeneration and Local Services,Direct Services,Third Party Payments,430101,Rendered by Private Contractors,05-May-2017,3278144-IV877103,"1,016.80",DIRECT TYRE MANAGEMENT (DTM).
Regeneration and Local Services,Direct Services,Third Party Payments,430101,Rendered by Private Contractors,05-May-2017,3278144-IV877106,"1,414.00",DIRECT TYRE MANAGEMENT (DTM).
Regeneration and Local Services,Direct Services,Third Party Payments,430101,Rendered by Private Contractors,05-May-2017,3278144-IV877109,535.60,DIRECT TYRE MANAGEMENT (DTM).
Children and Young Peoples Services,Children Looked After,Employees,080025,Agency Staff,05-May-2017,3278154-0000040393,562.50,EAST DURHAM COLLEGE.
Regeneration and Local Services,Direct Services,Supplies and Services,304259,Equipment and Materials,05-May-2017,3278155-7040219,"1,604.00",EAST RIDING HORTICULTURE LTD.
Regeneration and Local Services,Direct Services,Third Party Payments,430100,Rendered by Private Contractors,05-May-2017,3278168-SIN/17-079207-BD,920.00,ENGINEERING PRECISION SOLUTIONS LTD T/A CYRUS-BRADFORD.
Regeneration and Local Services,Culture & Sport,Supplies and Services,372009,Subscriptions,05-May-2017,3278179-0570,"4,100.00",FOOTBALL FOUNDATION TRADING LTD.
Children and Young Peoples Services,Early Help,Third Party Payments,486022,Service Level Agreements,05-May-2017,3278183-6579,686.50,FSO FLEXIBLE SUPPORT OPTIONS UK (DOMICILARY) LTD.
Regeneration and Local Services,Direct Services,Supplies and Services,304259,Equipment and Materials,05-May-2017,3278191-0001,"3,000.00",GRAEME HOPPER LTD.
Dedicated Schools Grant,Dedicated Schools Grant,Employees,080025,Agency Staff,05-May-2017,3278199-0040224295,"13,460.00",HARTLEPOOL BOROUGH COUNCIL.
Regeneration and Local Services,Technical Services,Third Party Payments,430128,Rendered by Private Contractors,05-May-2017,3278209-GRIT/SNOW01-16/17,815.00,HT DAVIES & PARTNERS.
Regeneration and Local Services,Technical Services,Stock,926900,Stock in hand-Inventory system,05-May-2017,3278217-578424,"2,424.80",INSTARMAC GROUP PLC.
Children and Young Peoples Services,Education,Supplies and Services,304259,Equipment and Materials,05-May-2017,3278229-0000000963,"1,598.60",JCM SEATING SOLUTIONS LTD.
Regeneration and Local Services,Technical Services,Stock,926900,Stock in hand-Inventory system,05-May-2017,3278239-NI032864,"8,360.56",JOHN MACLEAN & SONS ELECTRICAL (DINGWALL) LTD.
Regeneration and Local Services,Technical Services,Stock,926900,Stock in hand-Inventory system,05-May-2017,3278239-NI032865,"17,652.48",JOHN MACLEAN & SONS ELECTRICAL (DINGWALL) LTD.
Regeneration and Local Services,Direct Services,Supplies and Services,304259,Equipment and Materials,05-May-2017,3278243-1109085,"2,618.75",JOHNSONS OF WHIXLEY LTD.
Regeneration and Local Services,Technical Services,Supplies and Services,304221,Equipment and Materials,05-May-2017,3278246-BII220718,736.96,JT DOVE LTD.
Children and Young Peoples Services,Early Help,Supplies and Services,364353,Grants to Voluntary Organisations,05-May-2017,3278247-CAS-05-2017-020,974.00,REDACTED - PAYMENT TO INDIVIDUAL
Children and Young Peoples Services,Early Help,Third Party Payments,440015,Other Third Party Payments,05-May-2017,3278248-CAS-05-2017-015,"1,052.58",REDACTED - PAYMENT TO INDIVIDUAL
Resources,I.C.T. Services,Supplies and Services,304303,Equipment and Materials,05-May-2017,3278249-38621,"4,094.16",KBR IT & NETWORKING SOLUTIONS.
Regeneration and Local Services,Technical Services,Supplies and Services,304221,Equipment and Materials,05-May-2017,3278252-9943,"2,014.53",KEN THOMAS (SITE CLEARANCE LTD).
Regeneration and Local Services,Technical Services,Supplies and Services,304358,Equipment and Materials,05-May-2017,3278253-1572,814.75,KEVIN SNOWDON GROUNDWORKS LTD.
Regeneration and Local Services,Technical Services,Supplies and Services,304358,Equipment and Materials,05-May-2017,3278253-1581,515.00,KEVIN SNOWDON GROUNDWORKS LTD.
Regeneration and Local Services,Technical Services,Supplies and Services,304358,Equipment and Materials,05-May-2017,3278253-1582,703.00,KEVIN SNOWDON GROUNDWORKS LTD.
Regeneration and Local Services,Technical Services,Supplies and Services,304358,Equipment and Materials,05-May-2017,3278253-1583,"1,190.00",KEVIN SNOWDON GROUNDWORKS LTD.
Regeneration and Local Services,Technical Services,Supplies and Services,304358,Equipment and Materials,05-May-2017,3278253-1589,"1,000.00",KEVIN SNOWDON GROUNDWORKS LTD.
Regeneration and Local Services,Technical Services,Supplies and Services,304358,Equipment and Materials,05-May-2017,3278253-1590,"1,002.00",KEVIN SNOWDON GROUNDWORKS LTD.
Regeneration and Local Services,Technical Services,Supplies and Services,304358,Equipment and Materials,05-May-2017,3278253-1594,814.00,KEVIN SNOWDON GROUNDWORKS LTD.
Regeneration and Local Services,Technical Services,Supplies and Services,304358,Equipment and Materials,05-May-2017,3278253-1596,"1,040.00",KEVIN SNOWDON GROUNDWORKS LTD.
Regeneration and Local Services,Technical Services,Supplies and Services,304358,Equipment and Materials,05-May-2017,3278253-1597,770.00,KEVIN SNOWDON GROUNDWORKS LTD.
Regeneration and Local Services,Technical Services,Supplies and Services,304358,Equipment and Materials,05-May-2017,3278253-1599,570.00,KEVIN SNOWDON GROUNDWORKS LTD.
Regeneration and Local Services,Technical Services,Supplies and Services,304358,Equipment and Materials,05-May-2017,3278253-1602,790.00,KEVIN SNOWDON GROUNDWORKS LTD.
Regeneration and Local Services,Technical Services,Supplies and Services,304358,Equipment and Materials,05-May-2017,3278253-1603,800.00,KEVIN SNOWDON GROUNDWORKS LTD.
Regeneration and Local Services,Technical Services,Supplies and Services,304358,Equipment and Materials,05-May-2017,3278253-1604,"1,676.50",KEVIN SNOWDON GROUNDWORKS LTD.
Regeneration and Local Services,Technical Services,Supplies and Services,304358,Equipment and Materials,05-May-2017,3278253-1605,"1,409.38",KEVIN SNOWDON GROUNDWORKS LTD.
Children and Young Peoples Services,Children Looked After,Transport,235073,Public Transport,05-May-2017,3278254-CAS-05-2017-010,518.97,REDACTED - PAYMENT TO INDIVIDUAL
Regeneration and Local Services,Technical Services,Supplies and Services,304221,Equipment and Materials,05-May-2017,3278266-CINV-068525,808.18,LIMELIGHT SIGNS LTD.
Children and Young Peoples Services,Children Looked After,Transport,230005,Contract Hire,05-May-2017,3278271-3186,"1,050.00",LOCAL TRANSPORT LTD.
Children and Young Peoples Services,Early Help,Transport,230005,Contract Hire,05-May-2017,3278271-3217,980.00,LOCAL TRANSPORT LTD.
Children and Young Peoples Services,Early Help,Transport,230005,Contract Hire,05-May-2017,3278271-3224,660.00,LOCAL TRANSPORT LTD.
Resources,I.C.T. Services,Debtors,930167,Debtor-Telephone Holding Account,05-May-2017,3278283-100068,"9,994.08",MAINTEL EUROPE LTD.
Regeneration and Local Services,Technical Services,Stock,926900,Stock in hand-Inventory system,05-May-2017,3278284-111025,"5,372.40",MALLATITE LTD T/A MALLATITE PLASTICS LTD.
Regeneration and Local Services,Technical Services,Stock,926900,Stock in hand-Inventory system,05-May-2017,3278284-111293,"3,581.60",MALLATITE LTD T/A MALLATITE PLASTICS LTD.
Children and Young Peoples Services,Children Looked After,Third Party Payments,440036,Other Third Party Payments,05-May-2017,3278292-CAS-05-2017-008,769.65,REDACTED - PAYMENT TO INDIVIDUAL
Adult and Health Services,Head of Adults,Transfer Payments,515201,Social Services Clients,05-May-2017,3278302-1700842H.,"3,844.00",REDACTED - PAYMENT TO INDIVIDUAL
Children and Young Peoples Services,Central Charges (CYPS),Creditors,952123,Creditor-Governorth,05-May-2017,3278310-FEES2017-003,"2,500.00",NATIONAL CO-ORDINATORS OF GOVERNOR SERVICES (NCOGS).
Resources,Legal & Democratic Services,Supplies and Services,384151,Miscellaneous Expenses,05-May-2017,3278313-R0277936,"3,580.00",NEWCASTLE UPON TYNE HOSPITALS NHS FOUNDATION TRUST.
Dedicated Schools Grant,Dedicated Schools Grant,Supplies and Services,338091,Services,05-May-2017,3278320-0000032918,"1,742.20",NORTH EAST AUTISM SOCIETY.
Regeneration and Local Services,Direct Services,Transport,230005,Contract Hire,05-May-2017,3278327-IW03360403,"1,163.41",NORTHGATE VEHICLE HIRE LTD.
Regeneration and Local Services,Direct Services,Transport,215005,Running Costs of Vehicles,05-May-2017,3278335-237697,"2,896.18",OIL NRG LTD.
Regeneration and Local Services,Direct Services,Transport,215022,Running Costs of Vehicles,05-May-2017,3278335-237698,"1,087.91",OIL NRG LTD.
Regeneration and Local Services,Direct Services,Transport,215005,Running Costs of Vehicles,05-May-2017,3278335-239848,952.30,OIL NRG LTD.
Regeneration and Local Services,Direct Services,Supplies and Services,304221,Equipment and Materials,05-May-2017,3278358-1738AD0398,997.68,PLUMBING TRADE SUPPLIES LTD.
Regeneration and Local Services,Technical Services,Third Party Payments,430100,Rendered by Private Contractors,05-May-2017,3278366-98410,550.00,PROTECTOR SECURITY GROUP LTD.
Regeneration and Local Services,Technical Services,Supplies and Services,304221,Equipment and Materials,05-May-2017,3278366-98411,550.00,PROTECTOR SECURITY GROUP LTD.
Regeneration and Local Services,Technical Services,Third Party Payments,430100,Rendered by Private Contractors,05-May-2017,3278366-98412,550.00,PROTECTOR SECURITY GROUP LTD.
Resources,I.C.T. Services,Supplies and Services,332029,Printing Stationery and Gen Off Exps,05-May-2017,3278371-14804,"1,495.00",RADECAL SIGNS GRAPHICS & ADVERTISING.
Regeneration and Local Services,Direct Services,Transport,210057,Repair and Maintenance of Vehicles,05-May-2017,3278383-767880,565.79,RICKERBY LTD.
Regeneration and Local Services,Economic Development and Housing,Construction Work,908105,Construction work,05-May-2017,3278388-9142,"7,126.00",RIVERGREEN DEVELOPMENTS PLC.
Children and Young Peoples Services,Early Help,Transport,230005,Contract Hire,05-May-2017,3278391-852,"2,720.00",ROAD RUNNERS (NE) LTD.
Regeneration and Local Services,Technical Services,Stock,926900,Stock in hand-Inventory system,05-May-2017,3278406-2096,776.70,SAFESOL LTD.
Regeneration and Local Services,Culture & Sport,Supplies and Services,338047,Services,05-May-2017,3278412-462,"5,870.36",SCAMP THEATRE LTD.
Regeneration and Local Services,Technical Services,Third Party Payments,430100,Rendered by Private Contractors,05-May-2017,3278413-1167,"1,064.00",SCHMUCK WHORLTON LTD.
Regeneration and Local Services,Direct Services,Transport,230005,Contract Hire,05-May-2017,3278426-10801692,572.56,SHB HIRE LTD.
Regeneration and Local Services,Direct Services,Transport,230005,Contract Hire,05-May-2017,3278426-10804353,533.00,SHB HIRE LTD.
Regeneration and Local Services,Direct Services,Supplies and Services,304259,Equipment and Materials,05-May-2017,3278428-CD970473992,517.48,SHERRIFF AMENITY.
Regeneration and Local Services,Direct Services,Debtors,930046,Debtor-leasing,05-May-2017,3278431-76098,"13,053.87",SIMON BAILES LTD.
Regeneration and Local Services,Direct Services,Debtors,930046,Debtor-leasing,05-May-2017,3278431-76099,"13,053.87",SIMON BAILES LTD.
Children and Young Peoples Services,Education,Supplies and Services,338027,Services,05-May-2017,3278438-4100571746,"1,200.00",SPECIALISED TRANSPORT ADVISORY NETWORK.
Children and Young Peoples Services,Education,Supplies and Services,384159,Miscellaneous Expenses,05-May-2017,3278447-11077,"5,179.80",STEADFAST SECURITY SYSTEMS LTD.
Children and Young Peoples Services,Early Help,Supplies and Services,364310,Grants to Voluntary Organisations,05-May-2017,3278449-CAS-05-2017-018,636.16,REDACTED - PAYMENT TO INDIVIDUAL
Regeneration and Local Services,Technical Services,Supplies and Services,304221,Equipment and Materials,05-May-2017,3278451-092694,"2,341.80",STONEGRAVE AGGREGATES LTD.
Regeneration and Local Services,Transport and Contracted Services,Supplies and Services,384540,Miscellaneous Expenses,05-May-2017,3278457-0591,"1,750.00",T2 CREATIVE INTELLIGENCE.
Regeneration and Local Services,Transport and Contracted Services,Supplies and Services,336005,Advertising,05-May-2017,3278467-115388,"1,394.40",TEESDALE MERCURY LTD.
Adult and Health Services,Commissioning inc Supporting People,Third Party Payments,479102,Purchase of Care,05-May-2017,3278469-33042,"5,451.25",THE APPROPRIATE ADULT SERVICE LTD.
Regeneration and Local Services,Spatial Policy Planning Assets & Environment,Supplies and Services,384899,Miscellaneous Expenses,05-May-2017,3278472-CF17/033,"2,500.00",THE NATIONAL ASSOCIATION FOR AONBS.
Regeneration and Local Services,Technical Services,Stock,926900,Stock in hand-Inventory system,05-May-2017,3278477-N/IN195279,812.35,THOMAS OWEN & SONS (NEWCASTLE) LTD.
Regeneration and Local Services,Direct Services,Transport,230005,Contract Hire,05-May-2017,3278505-72857,824.00,WARREN ACCESS LTD.
Regeneration and Local Services,Direct Services,Supplies and Services,304358,Equipment and Materials,05-May-2017,3278505-72900,"1,040.00",WARREN ACCESS LTD.
Regeneration and Local Services,Direct Services,Transport,230005,Contract Hire,05-May-2017,3278505-72914,576.00,WARREN ACCESS LTD.
Regeneration and Local Services,Culture & Sport,Premises,125009,Rents,05-May-2017,3278511-72/2016,"12,550.06",WOLSINGHAM PARISH COUNCIL.
Regeneration and Local Services,Technical Services,Supplies and Services,338027,Services,05-May-2017,3278512-64292028,"21,500.00",WSP UK LTD.
Regeneration and Local Services,Direct Services,Supplies and Services,304221,Equipment and Materials,05-May-2017,3278513-127999/B,"4,753.00",WYBONE LTD.
Resources,I.C.T. Services,Stock,926900,Stock in hand-Inventory system,05-May-2017,3278516-BK92051,708.17,XMA LTD.
Regeneration and Local Services,Technical Services,Supplies and Services,304221,Equipment and Materials,08-May-2017,3278530-24725476,"1,205.09",AGGREGATE INDUSTRIES UK LTD.
Regeneration and Local Services,Technical Services,Supplies and Services,304221,Equipment and Materials,08-May-2017,3278530-24725477,"1,882.12",AGGREGATE INDUSTRIES UK LTD.
Regeneration and Local Services,Technical Services,Supplies and Services,304221,Equipment and Materials,08-May-2017,3278530-24725478,"1,101.17",AGGREGATE INDUSTRIES UK LTD.
Regeneration and Local Services,Technical Services,Supplies and Services,304221,Equipment and Materials,08-May-2017,3278530-24725479,950.75,AGGREGATE INDUSTRIES UK LTD.
Resources,Legal & Democratic Services,Supplies and Services,338057,Services,08-May-2017,3278531-0000026869,"2,615.00",ALERE FORENSICS.
Regeneration and Local Services,Culture & Sport,Supplies and Services,304221,Equipment and Materials,08-May-2017,3278532-10071,"1,226.80",ALISON BLACK LTD T/A SPORTMAX.
Adult and Health Services,Commissioning inc Supporting People,Debtors,930138,Debtor IC+ Residential Care Voids - CCG,08-May-2017,3278534-BROVOID120220I7,"3,089.10",ALLIANCE CARE.
Adult and Health Services,Commissioning inc Supporting People,Third Party Payments,479111,Purchase of Care,08-May-2017,3278543-5019,"13,496.00",ASPIRE LEARNING SUPPORT & WELLBEING CIC.
Adult and Health Services,Commissioning inc Supporting People,Third Party Payments,473111,Purchase of Care,08-May-2017,3278544-4100577153,"2,500.00",ASSOCIATION OF TEESDALE DAY CLUBS.
Transformation and Partnerships,Partnerships & Community Engagement Div.,Cap Exp on Grants & Other Financial Assistance (REFCUS),918004,Contributions to other bodies,08-May-2017,3278561-VOUCHER16NB,"3,197.00",BINCHESTER COMMUNITY ASSOCIATION.
Transformation and Partnerships,Partnerships & Community Engagement Div.,Transfer Payments,525030,Other,08-May-2017,3278562-VOUCHER13AB,500.00,BISHOP AUCKLAND GIRLS FOOTBALL CLUB.
Regeneration and Local Services,Transport and Contracted Services,Third Party Payments,430109,Rendered by Private Contractors,08-May-2017,3278574-110137,"2,880.00",CA TRAFFIC LTD.
Regeneration and Local Services,Transport and Contracted Services,Third Party Payments,430109,Rendered by Private Contractors,08-May-2017,3278574-110138,700.00,CA TRAFFIC LTD.
Regeneration and Local Services,Culture & Sport,Supplies and Services,324001,Provisions,08-May-2017,3278580-843709054,"1,214.54",CARLSBERG UK LTD.
Regeneration and Local Services,Culture & Sport,Supplies and Services,304259,Equipment and Materials,08-May-2017,3278581-476885,671.64,CARRS BILLINGTON AGRICULTURE.
Children and Young Peoples Services,Education,Third Party Payments,440080,Other Third Party Payments,08-May-2017,3278583-CFSI465,"3,918.75",CATCOTE FUTURES.
Children and Young Peoples Services,Education,Transport,230003,Contract Hire,08-May-2017,3278597-45809,"1,490.00",CJ GRIERSON T/A GRIERSONS COACHES.
Children and Young Peoples Services,Education,Transport,230003,Contract Hire,08-May-2017,3278597-45810,"3,720.00",CJ GRIERSON T/A GRIERSONS COACHES.
Children and Young Peoples Services,Education,Transport,230007,Contract Hire,08-May-2017,3278597-45811,770.00,CJ GRIERSON T/A GRIERSONS COACHES.
Children and Young Peoples Services,Education,Transport,230003,Contract Hire,08-May-2017,3278597-45812,"1,400.00",CJ GRIERSON T/A GRIERSONS COACHES.
Children and Young Peoples Services,Education,Transport,230003,Contract Hire,08-May-2017,3278597-45813,"1,250.00",CJ GRIERSON T/A GRIERSONS COACHES.
Children and Young Peoples Services,Education,Transport,230003,Contract Hire,08-May-2017,3278597-45814,"1,300.00",CJ GRIERSON T/A GRIERSONS COACHES.
Children and Young Peoples Services,Education,Transport,230007,Contract Hire,08-May-2017,3278598-960,500.00,CLIVE HUBERY.
Adult and Health Services,Head of Adults,Third Party Payments,478151,Purchase of Care,08-May-2017,3278600-421R122193,"3,887.52",COMMUNITY INTEGRATED CARE LTD.
Transformation and Partnerships,Partnerships & Community Engagement Div.,Supplies and Services,384086,Miscellaneous Expenses,08-May-2017,3278608-VOUCHER16NB,"21,000.00",CROOK COMMUNITY LEISURE LTD.
Children and Young Peoples Services,Education,Supplies and Services,384540,Miscellaneous Expenses,08-May-2017,3278610-1117,"1,150.00",CURIOUS 12 LTD.
Children and Young Peoples Services,Education,Supplies and Services,384540,Miscellaneous Expenses,08-May-2017,3278610-1118,549.00,CURIOUS 12 LTD.
Adult and Health Services,Head of Adults,Third Party Payments,478151,Purchase of Care,08-May-2017,3278617-15-31,"1,295.06",DEACONSTAR LTD.
Adult and Health Services,Head of Adults,Third Party Payments,478151,Purchase of Care,08-May-2017,3278617-6-12,"2,159.50",DEACONSTAR LTD.
Resources,I.C.T. Services,Stock,926900,Stock in hand-Inventory system,08-May-2017,3278619-7402358113,"110,144.27",DELL COMPUTER CORPORATION LTD.
Resources,I.C.T. Services,Supplies and Services,342051,Computers and Communications,08-May-2017,3278626-19638,"2,230.00",DOTTED EYES LTD T/A MISO PORTAL.
Regeneration and Local Services,Economic Development and Housing,Supplies and Services,384700,Miscellaneous Expenses,08-May-2017,3278627-RED-05-2017-018,"2,000.00",DOWN TO EARTH ELECTRICAL.
Children and Young Peoples Services,Early Help,Transport,235073,Public Transport,08-May-2017,3278630-24289,810.00,DURHAM CITY COACHES.
Regeneration and Local Services,Direct Services,Supplies and Services,304221,Equipment and Materials,08-May-2017,3278637-059-203539,718.74,EDMUNDSON ELECTRICAL LTD.
Children and Young Peoples Services,Education,Transport,230007,Contract Hire,08-May-2017,3278645-0718,502.30,EN ROUTE TRAVEL.
Regeneration and Local Services,Economic Development and Housing,Supplies and Services,342053,Computers and Communications,08-May-2017,3278646-DKOS001633,"11,000.00",ENTITLEDTO LTD.
Children and Young Peoples Services,Education,Transport,230008,Contract Hire,08-May-2017,3278653-D060-008,609.50,FERRYHILL VILLAGE TRAVEL.
Children and Young Peoples Services,Education,Transport,230008,Contract Hire,08-May-2017,3278653-E046-030,"1,270.00",FERRYHILL VILLAGE TRAVEL.
Children and Young Peoples Services,Education,Transport,230008,Contract Hire,08-May-2017,3278653-N071-008,900.00,FERRYHILL VILLAGE TRAVEL.
Children and Young Peoples Services,Education,Transport,230008,Contract Hire,08-May-2017,3278653-S033-008,765.00,FERRYHILL VILLAGE TRAVEL.
Children and Young Peoples Services,Education,Transport,230008,Contract Hire,08-May-2017,3278653-W053-008,677.25,FERRYHILL VILLAGE TRAVEL.
Regeneration and Local Services,Economic Development and Housing,Supplies and Services,344033,Telephones,08-May-2017,3278657-134852,"1,098.81",FREEDOM COMMUNICATIONS (UK) LTD.
Regeneration and Local Services,Technical Services,Supplies and Services,304357,Equipment and Materials,08-May-2017,3278661-DCC160417,"13,559.38",GAP GROUP LTD.
Adult and Health Services,Head of Adults,Transport,230005,Contract Hire,08-May-2017,3278663-10746,"5,515.40",GATESHEAD CENTRAL TAXIS LTD.
Children and Young Peoples Services,Education,Transport,230003,Contract Hire,08-May-2017,3278664-3804,700.00,GEM TRAVEL.
Children and Young Peoples Services,Education,Transport,230003,Contract Hire,08-May-2017,3278664-3805,982.70,GEM TRAVEL.
Children and Young Peoples Services,Education,Transport,230007,Contract Hire,08-May-2017,3278664-3806,570.00,GEM TRAVEL.
Regeneration and Local Services,Direct Services,Premises,145023,Cleaning and Domestic Supplies,08-May-2017,3278670-06/640566,"1,468.00",GREENHAM TRADING LTD.
Children and Young Peoples Services,Education,Transport,230006,Contract Hire,08-May-2017,3278678-HT268,800.00,HARRY`S TAXI`S.
Children and Young Peoples Services,Education,Transport,230008,Contract Hire,08-May-2017,3278678-HT269,"1,170.00",HARRY`S TAXI`S.
Children and Young Peoples Services,Education,Transport,230008,Contract Hire,08-May-2017,3278678-HT270,850.00,HARRY`S TAXI`S.
Children and Young Peoples Services,Education,Transport,230008,Contract Hire,08-May-2017,3278678-HT271,900.00,HARRY`S TAXI`S.
Adult and Health Services,Head of Adults,Transport,230005,Contract Hire,08-May-2017,3278689-DW108-2/5/17,780.00,HIPPY`S TAXI.
Regeneration and Local Services,Transport and Contracted Services,Third Party Payments,430106,Rendered by Private Contractors,08-May-2017,3278690-11321,"3,224.81",HODGSONS COACH OPERATORS LTD.
Children and Young Peoples Services,Education,Transport,230008,Contract Hire,08-May-2017,3278692-INV155,585.00,HORNDALE TAXIS LTD.
Children and Young Peoples Services,Education,Transport,230012,Contract Hire,08-May-2017,3278696-41,650.00,IAN SHEPLEY T/A SHEPPA`S TAXIS.
Resources,I.C.T. Services,Stock,926900,Stock in hand-Inventory system,08-May-2017,3278697-3342877,"1,248.00",INSIGHT DIRECT (UK) LTD.
Regeneration and Local Services,Technical Services,Supplies and Services,304221,Equipment and Materials,08-May-2017,3278698-578502,"4,816.00",INSTARMAC GROUP PLC.
Children and Young Peoples Services,Education,Transport,230008,Contract Hire,08-May-2017,3278702-1924,530.00,J YOUNG T/A VIP TAXIS.
Regeneration and Local Services,Technical Services,Construction Work,908105,Construction work,08-May-2017,3278704-20326,"2,228.06",JACK COUPE & SONS LTD T/A COUPE LINE.
Regeneration and Local Services,Technical Services,Construction Work,908105,Construction work,08-May-2017,3278704-20328,"3,154.64",JACK COUPE & SONS LTD T/A COUPE LINE.
Regeneration and Local Services,Technical Services,Construction Work,908105,Construction work,08-May-2017,3278704-20329,"2,382.95",JACK COUPE & SONS LTD T/A COUPE LINE.
Regeneration and Local Services,Technical Services,Construction Work,908105,Construction work,08-May-2017,3278704-20330,928.67,JACK COUPE & SONS LTD T/A COUPE LINE.
Regeneration and Local Services,Technical Services,Construction Work,908105,Construction work,08-May-2017,3278704-20333,"2,825.15",JACK COUPE & SONS LTD T/A COUPE LINE.
Regeneration and Local Services,Technical Services,Construction Work,908105,Construction work,08-May-2017,3278704-20335,559.01,JACK COUPE & SONS LTD T/A COUPE LINE.
Regeneration and Local Services,Technical Services,Construction Work,908105,Construction work,08-May-2017,3278704-20336,"1,552.40",JACK COUPE & SONS LTD T/A COUPE LINE.
Adult and Health Services,Head of Adults,Transport,230005,Contract Hire,08-May-2017,3278707-1113,895.00,JDS PRIVATE HIRE DURHAM.
Children and Young Peoples Services,Education,Transport,230008,Contract Hire,08-May-2017,3278707-1115,864.00,JDS PRIVATE HIRE DURHAM.
Children and Young Peoples Services,Education,Transport,230003,Contract Hire,08-May-2017,3278711-2017/05,832.00,JM HUMBLE COACH HIRE.
Children and Young Peoples Services,Education,Transport,230003,Contract Hire,08-May-2017,3278711-2017/06,510.00,JM HUMBLE COACH HIRE.
Regeneration and Local Services,Transport and Contracted Services,Third Party Payments,430106,Rendered by Private Contractors,08-May-2017,3278712-DCC4/17,"1,397.36",JOHN JAMES BRUNSKILL.
Regeneration and Local Services,Culture & Sport,Supplies and Services,384199,Miscellaneous Expenses,08-May-2017,3278713-GALA2017APRIL,737.44,JOHN MURDOCH.
Regeneration and Local Services,Technical Services,Third Party Payments,430127,Rendered by Private Contractors,08-May-2017,3278717-5998,"17,997.50",JR TIPLADY.
Regeneration and Local Services,Direct Services,Supplies and Services,304221,Equipment and Materials,08-May-2017,3278718-GOI130/D,"2,061.41",JT DOVE LTD.
Children and Young Peoples Services,Education,Transport,230006,Contract Hire,08-May-2017,3278721-F702-28/4/17,940.00,K & R TAXIS.
Regeneration and Local Services,Technical Services,Stock,926900,Stock in hand-Inventory system,08-May-2017,3278735-LFP/17/5309,"1,000.15",LIFELINE FIRE PREVENTION LTD.
Resources,Corporate Finance,Supplies and Services,372009,Subscriptions,08-May-2017,3278737-40150122,"7,140.00",LOCAL GOVERNMENT ASSOCIATION.
Dedicated Schools Grant,Dedicated Schools Grant,Supplies and Services,338370,Services,08-May-2017,3278739-INV-0073,"1,340.00",LYNCH HEALTHCARE LTD.
Dedicated Schools Grant,Dedicated Schools Grant,Supplies and Services,338365,Services,08-May-2017,3278739-INV-0074,"1,340.00",LYNCH HEALTHCARE LTD.
Regeneration and Local Services,Culture & Sport,Supplies and Services,324117,Provisions,08-May-2017,3278743-19451,808.91,MARK TONEY & CO LTD.
Regeneration and Local Services,Technical Services,Supplies and Services,304221,Equipment and Materials,08-May-2017,3278744-ZBB1212938,"8,571.12",MARSHALLS MONO LTD.
Resources - C A C,Centrally Administered costs,Supplies and Services,338013,Services,08-May-2017,3278746-1266187,"25,068.00",MAZARS LLP.
Resources - C A C,Centrally Administered costs,Supplies and Services,338013,Services,08-May-2017,3278746-1277694,"25,068.00",MAZARS LLP.
Children and Young Peoples Services,Education,Transport,230008,Contract Hire,08-May-2017,3278755-KDC-010417,"1,729.00",MJ TIMNEY T/A KDC & C&M TAXIS.
Children and Young Peoples Services,Education,Transport,230008,Contract Hire,08-May-2017,3278762-27B,670.00,MR RAYMOND RENWICK.
Children and Young Peoples Services,Education,Transport,230008,Contract Hire,08-May-2017,3278762-28A,792.00,MR RAYMOND RENWICK.
Children and Young Peoples Services,Education,Transport,230008,Contract Hire,08-May-2017,3278763-AA375,903.69,MR T GUNN.
Regeneration and Local Services,Technical Services,Supplies and Services,304221,Equipment and Materials,08-May-2017,3278765-0000059906,"1,933.02",NAL LTD.
Regeneration and Local Services,Direct Services,Third Party Payments,430100,Rendered by Private Contractors,08-May-2017,3278768-635681,"2,604.00",NATIONWIDE CHIMNEY COMPONENTS LTD.
Children and Young Peoples Services,Education,Transport,230008,Contract Hire,08-May-2017,3278770-212,"1,056.00",NEVILLE FORBES T/A FORBES TAXIS.
Regeneration and Local Services,Culture & Sport,Supplies and Services,338047,Services,08-May-2017,3278775-NDZ0004F,"7,392.10",NICOLL LTD.
Regeneration and Local Services,Economic Development and Housing,Supplies and Services,304337,Equipment and Materials,08-May-2017,3278781-70583,817.81,NORTHERN HERITAGE SERVICES LTD.
Regeneration and Local Services,Direct Services,Transport,215005,Running Costs of Vehicles,08-May-2017,3278788-234213,"12,984.18",OIL NRG LTD.
Regeneration and Local Services,Direct Services,Transport,215005,Running Costs of Vehicles,08-May-2017,3278788-236192,"33,874.62",OIL NRG LTD.
Regeneration and Local Services,Direct Services,Supplies and Services,304999,Equipment and Materials,08-May-2017,3278798-250231,850.30,PALINTEST LTD.
Children and Young Peoples Services,Education,Transport,230008,Contract Hire,08-May-2017,3278803-08,575.96,PAUL ROSE T/A PAUL`S TAXIS.
Children and Young Peoples Services,Education,Transport,230008,Contract Hire,08-May-2017,3278804-DCC144,804.10,PAUL`S TAXIS..
Children and Young Peoples Services,Education,Transport,230012,Contract Hire,08-May-2017,3278814-1237-30/4/17,620.00,PODA LTD.
Children and Young Peoples Services,Education,Transport,230008,Contract Hire,08-May-2017,3278814-1240,916.00,PODA LTD.
Regeneration and Local Services,Technical Services,Stock,926900,Stock in hand-Inventory system,08-May-2017,3278816-8675184,930.00,PREMIER PAPER GROUP LTD.
Regeneration and Local Services,Technical Services,Third Party Payments,430100,Rendered by Private Contractors,08-May-2017,3278817-144416,"40,050.99",PREMIER TRAFFIC MANAGEMENT LTD.
Regeneration and Local Services,Technical Services,Third Party Payments,430100,Rendered by Private Contractors,08-May-2017,3278817-144458,"11,765.70",PREMIER TRAFFIC MANAGEMENT LTD.
Regeneration and Local Services,Technical Services,Third Party Payments,430100,Rendered by Private Contractors,08-May-2017,3278817-144492,"8,370.29",PREMIER TRAFFIC MANAGEMENT LTD.
Regeneration and Local Services,Direct Services,Third Party Payments,430100,Rendered by Private Contractors,08-May-2017,3278830-41849,"1,090.00",RJ UTILITY SERVICES LTD.
Children and Young Peoples Services,Education,Transport,230003,Contract Hire,08-May-2017,3278838-3208/08,890.00,S & S TRAVEL LTD.
Children and Young Peoples Services,Education,Transport,230008,Contract Hire,08-May-2017,3278838-W048/08,801.00,S & S TRAVEL LTD.
Children and Young Peoples Services,Education,Transport,230008,Contract Hire,08-May-2017,3278838-W052/08-30/4/17,855.00,S & S TRAVEL LTD.
Children and Young Peoples Services,Education,Transport,230008,Contract Hire,08-May-2017,3278838-W056/08,"1,134.00",S & S TRAVEL LTD.
Children and Young Peoples Services,Education,Transport,230008,Contract Hire,08-May-2017,3278838-W067/19,"1,023.00",S & S TRAVEL LTD.
Children and Young Peoples Services,Education,Transport,230008,Contract Hire,08-May-2017,3278838-W085/19,855.00,S & S TRAVEL LTD.
Regeneration and Local Services,Transport and Contracted Services,Third Party Payments,430106,Rendered by Private Contractors,08-May-2017,3278842-127,"2,520.72",SB TRAVEL.
Regeneration and Local Services,Economic Development and Housing,Supplies and Services,384700,Miscellaneous Expenses,08-May-2017,3278847-RED-05-2017-017,"1,500.00",SCOTT SHELDON PLUMBING & JOINERY SERVICES.
Regeneration and Local Services,Direct Services,Supplies and Services,304259,Equipment and Materials,08-May-2017,3278853-CD970475375,911.64,SHERRIFF AMENITY.
Children and Young Peoples Services,Education,Transport,230008,Contract Hire,08-May-2017,3278855-72566,"1,440.00",SHOTTON PRIVATE HIRE.
Children and Young Peoples Services,Education,Transport,230012,Contract Hire,08-May-2017,3278858-555,"1,045.00",SIMONS TAXIS.
Children and Young Peoples Services,Education,Transport,230008,Contract Hire,08-May-2017,3278858-556,774.00,SIMONS TAXIS.
Regeneration and Local Services,Culture & Sport,Premises,108099,Service Repairs and Maintenance,08-May-2017,3278861-RS/21750,"3,100.00",SMITH ENGINEERING (GB) LTD.
Resources,I.C.T. Services,Supplies and Services,338027,Services,08-May-2017,3278862-INV01603366,"4,649.92",SOFTCAT LTD.
Resources,I.C.T. Services,Supplies and Services,342033,Computers and Communications,08-May-2017,3278862-INV01603462,"1,235.25",SOFTCAT LTD.
Children and Young Peoples Services,Early Help,Supplies and Services,384199,Miscellaneous Expenses,08-May-2017,3278863-200P2017KP,550.00,SOUL PURPOSE LEARNING & LIFE MANAGEMENT LTD.
Children and Young Peoples Services,Education,Transport,230008,Contract Hire,08-May-2017,3278865-AAK341971,832.60,SPENNYMOOR TAXIS.
Children and Young Peoples Services,Education,Transport,230008,Contract Hire,08-May-2017,3278865-TJS59431,576.00,SPENNYMOOR TAXIS.
Regeneration and Local Services,Transport and Contracted Services,Third Party Payments,430106,Rendered by Private Contractors,08-May-2017,3278868-24518,"2,907.64",STANLEY TRAVEL (NORTH EAST) LTD.
Regeneration and Local Services,Transport and Contracted Services,Third Party Payments,430106,Rendered by Private Contractors,08-May-2017,3278868-24519,"9,659.52",STANLEY TRAVEL (NORTH EAST) LTD.
Children and Young Peoples Services,Education,Transport,230008,Contract Hire,08-May-2017,3278869-8,700.00,STEELYS TAXIS.
Children and Young Peoples Services,Education,Transport,230013,Contract Hire,08-May-2017,3278872-170404,500.00,STEVEN PRATT T/A PTL TAXIS DURHAM.
Regeneration and Local Services,Direct Services,Supplies and Services,304221,Equipment and Materials,08-May-2017,3278873-0000030492,"8,136.48",STRAIGHT MANUFACTURING LTD.
Regeneration and Local Services,Direct Services,Supplies and Services,304221,Equipment and Materials,08-May-2017,3278873-0000030532,"8,136.48",STRAIGHT MANUFACTURING LTD.
Regeneration and Local Services,Direct Services,Supplies and Services,304221,Equipment and Materials,08-May-2017,3278873-0000030590,"8,136.48",STRAIGHT MANUFACTURING LTD.
Adult and Health Services,Commissioning inc Supporting People,Transport,240045,Car Allowances,08-May-2017,3278878-7066,"10,850.62",SUPPORTIVE SRC LTD.
Children and Young Peoples Services,Childrens Services Operational Support,Supplies and Services,338089,Services,08-May-2017,3278879-PRACTICEEDUCATION,"1,716.00",SUSAN BELL (EXTERNAL TRAINER).
Regeneration and Local Services,Direct Services,Supplies and Services,304221,Equipment and Materials,08-May-2017,3278882-2319447,552.87,T CROSSLING & CO LTD.
Regeneration and Local Services,Direct Services,Supplies and Services,304221,Equipment and Materials,08-May-2017,3278882-2336554,950.00,T CROSSLING & CO LTD.
Regeneration and Local Services,Direct Services,Supplies and Services,304221,Equipment and Materials,08-May-2017,3278882-2338645,"1,584.77",T CROSSLING & CO LTD.
Regeneration and Local Services,Technical Services,Supplies and Services,304221,Equipment and Materials,08-May-2017,3278885-9036073477,"1,875.39",TARMAC TRADING LTD.
Regeneration and Local Services,Technical Services,Supplies and Services,304221,Equipment and Materials,08-May-2017,3278885-9036081049,583.17,TARMAC TRADING LTD.
Regeneration and Local Services,Technical Services,Supplies and Services,304221,Equipment and Materials,08-May-2017,3278885-9036088715,900.35,TARMAC TRADING LTD.
Regeneration and Local Services,Technical Services,Supplies and Services,304221,Equipment and Materials,08-May-2017,3278885-9036088718,614.67,TARMAC TRADING LTD.
Children and Young Peoples Services,Education,Transport,230008,Contract Hire,08-May-2017,3278886-04/2017/004,540.00,TARNS TAXIS LTD.
Children and Young Peoples Services,Education,Transport,230008,Contract Hire,08-May-2017,3278886-04/2017/006,528.00,TARNS TAXIS LTD.
Regeneration and Local Services,Spatial Policy Planning Assets & Environment,Supplies and Services,384199,Miscellaneous Expenses,08-May-2017,3278892-729NPENNAONB/1,"14,397.77",TERRA FIRMA ENVIRONMENTAL LTD.
Children and Young Peoples Services,Education,Employees,040001,Recruitment Instruction and Training,08-May-2017,3278893-TARINV/15463045,710.10,TES GLOBAL LTD.
Children and Young Peoples Services,Early Help,Supplies and Services,384491,Miscellaneous Expenses,08-May-2017,3278895-INV121,660.00,THE LAURELS CHILD CARE.
Children and Young Peoples Services,Education,Transport,230007,Contract Hire,08-May-2017,3278901-3367,"1,180.00",TM TRAVEL.
Children and Young Peoples Services,Education,Transport,230007,Contract Hire,08-May-2017,3278901-3368,"1,180.00",TM TRAVEL.
Regeneration and Local Services,Direct Services,Third Party Payments,430100,Rendered by Private Contractors,08-May-2017,3278909-54336,"4,635.00",TURF CARE SPECIALISTS LTD.
Adult and Health Services,Public Health,Third Party Payments,460803,Contract Payments,08-May-2017,3278919-1516/053,"7,000.00",WADDINGTON STREET CENTRE LTD.
Children and Young Peoples Services,Education,Transport,230007,Contract Hire,08-May-2017,3278925-1054,500.00,WE CONNOR.
Regeneration and Local Services,Transport and Contracted Services,Third Party Payments,430106,Rendered by Private Contractors,08-May-2017,3278926-1771,"24,385.14",WEARDALE MOTOR SERVICES LTD.
Children and Young Peoples Services,Education,Transport,230007,Contract Hire,08-May-2017,3278930-DC120,600.00,WHITTONSTALL TAXIS SERVICE.
Regeneration and Local Services,Direct Services,Supplies and Services,304221,Equipment and Materials,08-May-2017,3278935-42123048,"2,383.74",WOLSELEY UK LTD.
Children and Young Peoples Services,Education,Transport,230008,Contract Hire,09-May-2017,3278946-41707,765.00,24/7 TAXI SERVICES LTD.
Children and Young Peoples Services,Education,Transport,230008,Contract Hire,09-May-2017,3278946-41708,949.31,24/7 TAXI SERVICES LTD.
Children and Young Peoples Services,Education,Transport,230012,Contract Hire,09-May-2017,3278946-41709,753.70,24/7 TAXI SERVICES LTD.
Children and Young Peoples Services,Education,Transport,230008,Contract Hire,09-May-2017,3278946-41711,997.50,24/7 TAXI SERVICES LTD.
Children and Young Peoples Services,Education,Transport,230006,Contract Hire,09-May-2017,3278946-41714,800.00,24/7 TAXI SERVICES LTD.
Children and Young Peoples Services,Education,Transport,230008,Contract Hire,09-May-2017,3278946-41717,"1,003.50",24/7 TAXI SERVICES LTD.
Children and Young Peoples Services,Education,Transport,230008,Contract Hire,09-May-2017,3278948-EA220782,690.00,A MURRAY TRAVEL.
Children and Young Peoples Services,Education,Transport,230012,Contract Hire,09-May-2017,3278949-4/1/17,713.00,ABA TAXIS.
Children and Young Peoples Services,Education,Transport,230012,Contract Hire,09-May-2017,3278950-O346,840.00,ABC & OUSTON CABS.
Children and Young Peoples Services,Education,Transport,230008,Contract Hire,09-May-2017,3278950-O347,570.00,ABC & OUSTON CABS.
Children and Young Peoples Services,Education,Transport,230007,Contract Hire,09-May-2017,3278951-31/30/4/17,590.00,ABLE NOVAK TAXIS.
Adult and Health Services,Head of Adults,Transport,230005,Contract Hire,09-May-2017,3278956-0020A,528.00,AIRPORT TAXIS 4U.
Children and Young Peoples Services,Education,Transport,230008,Contract Hire,09-May-2017,3278961-113,540.00,ANDY CABS.
Children and Young Peoples Services,Education,Transport,230008,Contract Hire,09-May-2017,3278965-APRIL2017-01,756.00,ARMSTRONG`S TAXIS.
Regeneration and Local Services,Culture & Sport,Supplies and Services,304259,Equipment and Materials,09-May-2017,3278967-SIN189926,791.60,ASA AWARDS.
Regeneration and Local Services,Technical Services,Third Party Payments,430100,Rendered by Private Contractors,09-May-2017,3278968-7242,"18,788.25",ASPHALT REINFORCEMENT SERVICES LTD.
Regeneration and Local Services,Technical Services,Third Party Payments,430100,Rendered by Private Contractors,09-May-2017,3278968-7243,"18,513.50",ASPHALT REINFORCEMENT SERVICES LTD.
Children and Young Peoples Services,Education,Transport,230008,Contract Hire,09-May-2017,3278969-576,657.00,AT TAXIS LTD.
Adult and Health Services,Head of Adults,Transport,230005,Contract Hire,09-May-2017,3278970-DCC01APRIL17,"1,530.00",ATLAS TAXIS BISHOP AUCKLAND.
Adult and Health Services,Head of Adults,Transport,230005,Contract Hire,09-May-2017,3278970-DCC05APR17,810.00,ATLAS TAXIS BISHOP AUCKLAND.
Children and Young Peoples Services,Education,Transport,230008,Contract Hire,09-May-2017,3278970-DCC11APRIL17,"1,160.00",ATLAS TAXIS BISHOP AUCKLAND.
Children and Young Peoples Services,Education,Transport,230008,Contract Hire,09-May-2017,3278970-DCC13APR17,801.00,ATLAS TAXIS BISHOP AUCKLAND.
Children and Young Peoples Services,Education,Transport,230008,Contract Hire,09-May-2017,3278970-DCC7APRIL17,"1,125.00",ATLAS TAXIS BISHOP AUCKLAND.
Children and Young Peoples Services,Education,Transport,230008,Contract Hire,09-May-2017,3278970-DCC8APRIL17,"1,045.00",ATLAS TAXIS BISHOP AUCKLAND.
Children and Young Peoples Services,Education,Transport,230013,Contract Hire,09-May-2017,3278971-03572,520.00,ATLAS TAXIS CONSETT.
Regeneration and Local Services,Culture & Sport,Supplies and Services,338047,Services,09-May-2017,3278973-HS240217,"3,496.89",AVALON PROMOTIONS LTD.
Regeneration and Local Services,Direct Services,Supplies and Services,304221,Equipment and Materials,09-May-2017,3278991-4116485,"4,509.00",BROAG LTD.*
Regeneration and Local Services,Direct Services,Supplies and Services,304221,Equipment and Materials,09-May-2017,3278993-1660/0802898,831.72,BSS GROUP PLC.
Children and Young Peoples Services,Children Looked After,Employees,080025,Agency Staff,09-May-2017,3278995-03935539,547.50,CAPITA RESOURCING LTD T/A CAPITA EDUCATION RESOURCING.
Regeneration and Local Services,Culture & Sport,Supplies and Services,324117,Provisions,09-May-2017,3278996-843649332,722.16,CARLSBERG UK LTD.
Children and Young Peoples Services,Education,Transport,230007,Contract Hire,09-May-2017,3279004-45808,750.00,CJ GRIERSON T/A GRIERSONS COACHES.
Regeneration and Local Services,Culture & Sport,Supplies and Services,384956,Miscellaneous Expenses,09-May-2017,3279011-2343,600.00,CORE BUSINESS SYSTEMS LTD T/A CASCADE 3D.
Regeneration and Local Services,Technical Services,Third Party Payments,430100,Rendered by Private Contractors,09-May-2017,3279029-6760,"1,350.00",DUNELM GEOTECHNICAL & ENVIRONMENTAL LTD.
Regeneration and Local Services,Economic Development and Housing,Cap Exp on Grants & Other Financial Assistance (REFCUS),918401,Capital grants,09-May-2017,3279031-RED-05-2017-022,"14,750.00",DYNAMIC PROPERTY MANAGEMENT.
Adult and Health Services,Head of Adults,Supplies and Services,338365,Services,09-May-2017,3279033-33230,772.21,EASIBATHE LTD.
Children and Young Peoples Services,Education,Transport,230007,Contract Hire,09-May-2017,3279040-0719,723.42,EN ROUTE TRAVEL.
Regeneration and Local Services,Direct Services,Third Party Payments,430100,Rendered by Private Contractors,09-May-2017,3279042-1702-070231,"4,260.00",FLAME HEATING SPARES LTD.
Regeneration and Local Services,Direct Services,Third Party Payments,430100,Rendered by Private Contractors,09-May-2017,3279042-1702-070234,"2,840.00",FLAME HEATING SPARES LTD.
Regeneration and Local Services,Direct Services,Third Party Payments,430100,Rendered by Private Contractors,09-May-2017,3279042-1703-084182,"9,730.00",FLAME HEATING SPARES LTD.
Regeneration and Local Services,Economic Development and Housing,Cap Exp on Grants & Other Financial Assistance (REFCUS),918401,Capital grants,09-May-2017,3279048-RED-05-2017-034,520.00,CUMMINGS ARCHITECTS LTD.
Children and Young Peoples Services,Education,Transport,230007,Contract Hire,09-May-2017,3279050-19208,"1,840.00",GARNETTS LTD (COACHES).
Children and Young Peoples Services,Education,Transport,230007,Contract Hire,09-May-2017,3279050-19211,"1,170.00",GARNETTS LTD (COACHES).
Children and Young Peoples Services,Education,Transport,230007,Contract Hire,09-May-2017,3279050-19212,"1,698.10",GARNETTS LTD (COACHES).
Children and Young Peoples Services,Education,Transport,230007,Contract Hire,09-May-2017,3279050-19213,"7,470.30",GARNETTS LTD (COACHES).
Children and Young Peoples Services,Education,Transport,230007,Contract Hire,09-May-2017,3279050-19214,795.00,GARNETTS LTD (COACHES).
Children and Young Peoples Services,Education,Transport,230003,Contract Hire,09-May-2017,3279050-19215,"8,400.00",GARNETTS LTD (COACHES).
Children and Young Peoples Services,Education,Transport,230007,Contract Hire,09-May-2017,3279050-19216,"4,495.00",GARNETTS LTD (COACHES).
Children and Young Peoples Services,Education,Transport,230007,Contract Hire,09-May-2017,3279050-19217,"1,180.00",GARNETTS LTD (COACHES).
Children and Young Peoples Services,Education,Transport,230007,Contract Hire,09-May-2017,3279050-19219,"1,190.00",GARNETTS LTD (COACHES).
Children and Young Peoples Services,Education,Transport,230003,Contract Hire,09-May-2017,3279050-19220,"3,180.00",GARNETTS LTD (COACHES).
Children and Young Peoples Services,Education,Transport,230003,Contract Hire,09-May-2017,3279050-19221,"1,590.00",GARNETTS LTD (COACHES).
Children and Young Peoples Services,Education,Transport,230003,Contract Hire,09-May-2017,3279050-19222,"4,270.00",GARNETTS LTD (COACHES).
Children and Young Peoples Services,Education,Transport,230006,Contract Hire,09-May-2017,3279050-19233,"2,205.00",GARNETTS LTD (COACHES).
Children and Young Peoples Services,Education,Transport,230007,Contract Hire,09-May-2017,3279050-19242,"1,251.00",GARNETTS LTD (COACHES).
Dedicated Schools Grant,Dedicated Schools Grant,Transport,230007,Contract Hire,09-May-2017,3279051-007,540.00,GAVIN ELLIOTT T/A LOCATION TAXIS.
Regeneration and Local Services,Economic Development and Housing,Cap Exp on Grants & Other Financial Assistance (REFCUS),918401,Capital grants,09-May-2017,3279062-RED-05-2017-032,"3,801.00",HES GROUP UK LTD.
Regeneration and Local Services,Economic Development and Housing,Cap Exp on Grants & Other Financial Assistance (REFCUS),918401,Capital grants,09-May-2017,3279062-RED-05-2017-039,"3,373.00",HES GROUP UK LTD.
Regeneration and Local Services,Economic Development and Housing,Cap Exp on Grants & Other Financial Assistance (REFCUS),918401,Capital grants,09-May-2017,3279062-RED-05-2017-040,"3,320.00",HES GROUP UK LTD.
Regeneration and Local Services,Economic Development and Housing,Cap Exp on Grants & Other Financial Assistance (REFCUS),918401,Capital grants,09-May-2017,3279062-RED-05-2017-043,"2,979.00",HES GROUP UK LTD.
Regeneration and Local Services,Technical Services,Construction Work,908105,Construction work,09-May-2017,3279068-20344,676.78,JACK COUPE & SONS LTD T/A COUPE LINE.
Regeneration and Local Services,Direct Services,Third Party Payments,430100,Rendered by Private Contractors,09-May-2017,3279070-4888,689.50,JAMES INGLEFORD SCAFFOLDING LTD.
Children and Young Peoples Services,Education,Transport,230008,Contract Hire,09-May-2017,3279073-1101,737.60,JDS PRIVATE HIRE DURHAM.
Children and Young Peoples Services,Education,Transport,230008,Contract Hire,09-May-2017,3279073-1102,883.90,JDS PRIVATE HIRE DURHAM.
Children and Young Peoples Services,Education,Transport,230008,Contract Hire,09-May-2017,3279073-1103,693.30,JDS PRIVATE HIRE DURHAM.
Children and Young Peoples Services,Education,Transport,230008,Contract Hire,09-May-2017,3279073-1104,864.10,JDS PRIVATE HIRE DURHAM.
Children and Young Peoples Services,Education,Transport,230008,Contract Hire,09-May-2017,3279073-1105,580.00,JDS PRIVATE HIRE DURHAM.
Children and Young Peoples Services,Education,Transport,230008,Contract Hire,09-May-2017,3279073-1106,730.00,JDS PRIVATE HIRE DURHAM.
Children and Young Peoples Services,Education,Transport,230008,Contract Hire,09-May-2017,3279073-1109,"1,200.00",JDS PRIVATE HIRE DURHAM.
Children and Young Peoples Services,Education,Transport,230006,Contract Hire,09-May-2017,3279073-1111,"1,300.00",JDS PRIVATE HIRE DURHAM.
Children and Young Peoples Services,Education,Transport,230008,Contract Hire,09-May-2017,3279073-1112,"1,300.00",JDS PRIVATE HIRE DURHAM.
Children and Young Peoples Services,Education,Transport,230007,Contract Hire,09-May-2017,3279073-1114,520.00,JDS PRIVATE HIRE DURHAM.
Regeneration and Local Services,Transport and Contracted Services,Third Party Payments,430106,Rendered by Private Contractors,09-May-2017,3279073-1116,765.00,JDS PRIVATE HIRE DURHAM.
Adult and Health Services,Head of Adults,Transport,230005,Contract Hire,09-May-2017,3279073-1117,"1,106.10",JDS PRIVATE HIRE DURHAM.
Children and Young Peoples Services,Education,Transport,230008,Contract Hire,09-May-2017,3279074-2633,733.41,JEFF ANDERSON COACHES LTD.
Children and Young Peoples Services,Education,Transport,230008,Contract Hire,09-May-2017,3279074-2634,697.41,JEFF ANDERSON COACHES LTD.
Children and Young Peoples Services,Education,Transport,230007,Contract Hire,09-May-2017,3279074-2635,"1,049.90",JEFF ANDERSON COACHES LTD.
Children and Young Peoples Services,Education,Transport,230007,Contract Hire,09-May-2017,3279074-2636,939.90,JEFF ANDERSON COACHES LTD.
Regeneration and Local Services,Economic Development and Housing,Cap Exp on Grants & Other Financial Assistance (REFCUS),918401,Capital grants,09-May-2017,3279080-RED-05-2017-035,"4,925.00",K HARRISON (BUILDER) NE LTD.
Children and Young Peoples Services,Education,Transport,230008,Contract Hire,09-May-2017,3279081-01-N058-28/4/17,990.00,KD TAXIS.
Dedicated Schools Grant,Dedicated Schools Grant,Central Support and Capital,689996,Unclassified,09-May-2017,3279083-CAS-05-2017-022,"6,123.87",KING JAMES I ACADEMY.
Children and Young Peoples Services,Education,Supplies and Services,384199,Miscellaneous Expenses,09-May-2017,3279085-3466,"1,048.00",LEE`S COACHES LTD.
Children and Young Peoples Services,Education,Transport,230007,Contract Hire,09-May-2017,3279085-3467,"1,351.30",LEE`S COACHES LTD.
Children and Young Peoples Services,Education,Transport,230007,Contract Hire,09-May-2017,3279085-3468,"1,200.00",LEE`S COACHES LTD.
Children and Young Peoples Services,Education,Transport,230007,Contract Hire,09-May-2017,3279085-3469,"6,250.00",LEE`S COACHES LTD.
Children and Young Peoples Services,Education,Transport,230007,Contract Hire,09-May-2017,3279085-3470,990.00,LEE`S COACHES LTD.
Children and Young Peoples Services,Education,Transport,230008,Contract Hire,09-May-2017,3279086-176,737.00,LEE`S TAXIS (SACRISTON).
Regeneration and Local Services,Technical Services,Third Party Payments,430100,Rendered by Private Contractors,09-May-2017,3279090-IN006582,"1,260.00",LINBROOKE SERVICES LTD.
Regeneration and Local Services,Technical Services,Third Party Payments,430100,Rendered by Private Contractors,09-May-2017,3279090-IN006584,"1,080.00",LINBROOKE SERVICES LTD.
Regeneration and Local Services,Technical Services,Third Party Payments,430100,Rendered by Private Contractors,09-May-2017,3279090-IN006585,"4,000.00",LINBROOKE SERVICES LTD.
Regeneration and Local Services,Technical Services,Third Party Payments,430100,Rendered by Private Contractors,09-May-2017,3279090-IN006586,"6,970.00",LINBROOKE SERVICES LTD.
Regeneration and Local Services,Technical Services,Third Party Payments,430100,Rendered by Private Contractors,09-May-2017,3279090-IN006587,"2,880.00",LINBROOKE SERVICES LTD.
Dedicated Schools Grant,Dedicated Schools Grant,Transport,230010,Contract Hire,09-May-2017,3279091-3607,"1,199.00",LINCAB TAXIS.
Children and Young Peoples Services,Education,Transport,230008,Contract Hire,09-May-2017,3279091-3608,904.80,LINCAB TAXIS.
Children and Young Peoples Services,Education,Transport,230006,Contract Hire,09-May-2017,3279091-3610,968.00,LINCAB TAXIS.
Children and Young Peoples Services,Education,Transport,230006,Contract Hire,09-May-2017,3279091-3611,981.00,LINCAB TAXIS.
Regeneration and Local Services,Economic Development and Housing,Cap Exp on Grants & Other Financial Assistance (REFCUS),918401,Capital grants,09-May-2017,3279093-RED-05-2017-031,"2,754.69",LMC ELECTRICAL SERVICES T/A LMC ELECTRICAL & STAIRLIFT SERVICES LTD.
Children and Young Peoples Services,Education,Transport,230006,Contract Hire,09-May-2017,3279096-11,840.00,LORRAINES TAXIS.
Children and Young Peoples Services,Education,Transport,230008,Contract Hire,09-May-2017,3279096-9-28/4/17,750.00,LORRAINES TAXIS.
Children and Young Peoples Services,Education,Transport,230004,Contract Hire,09-May-2017,3279100-5421,759.00,MAKEPEACE MOTORS.
Children and Young Peoples Services,Education,Transport,230008,Contract Hire,09-May-2017,3279103-08-28/4/17,805.00,MARK SUMMERS T/A MARK`S TAXI.
Children and Young Peoples Services,Education,Transport,230008,Contract Hire,09-May-2017,3279107-MCD36112,954.50,MCDONALD TRAVEL.
Children and Young Peoples Services,Education,Transport,230008,Contract Hire,09-May-2017,3279107-MCD36114,666.00,MCDONALD TRAVEL.
Children and Young Peoples Services,Education,Transport,230008,Contract Hire,09-May-2017,3279107-MCD36115,759.00,MCDONALD TRAVEL.
Adult and Health Services,Head of Adults,Transport,230005,Contract Hire,09-May-2017,3279107-MCD36116,704.00,MCDONALD TRAVEL.
Children and Young Peoples Services,Education,Transport,230008,Contract Hire,09-May-2017,3279108-24A,935.50,MICHAEL A BODDY T/A MBS TAXIS.
Children and Young Peoples Services,Education,Transport,230008,Contract Hire,09-May-2017,3279108-78,650.00,MICHAEL A BODDY T/A MBS TAXIS.
Children and Young Peoples Services,Education,Transport,230007,Contract Hire,09-May-2017,3279110-00895,800.00,MICHAELS TRAVEL.
Children and Young Peoples Services,Education,Transport,230008,Contract Hire,09-May-2017,3279111-726,860.00,MOLLYS TAXIS.
Adult and Health Services,Head of Adults,Transport,230005,Contract Hire,09-May-2017,3279111-727,"1,602.00",MOLLYS TAXIS.
Children and Young Peoples Services,Education,Transport,230008,Contract Hire,09-May-2017,3279111-728,"1,160.00",MOLLYS TAXIS.
Children and Young Peoples Services,Education,Transport,230008,Contract Hire,09-May-2017,3279111-729,"1,300.00",MOLLYS TAXIS.
Children and Young Peoples Services,Education,Transport,230007,Contract Hire,09-May-2017,3279113-34,950.00,MORGAN`S TRAVEL.
Children and Young Peoples Services,Education,Transport,230008,Contract Hire,09-May-2017,3279117-0304851,820.80,MR GN ROBBINS T/A GNR MINIBUS HIRE.
Children and Young Peoples Services,Education,Transport,230008,Contract Hire,09-May-2017,3279117-0304852,"1,037.43",MR GN ROBBINS T/A GNR MINIBUS HIRE.
Children and Young Peoples Services,Education,Transport,230006,Contract Hire,09-May-2017,3279118-KDKWOL/7A,759.00,MR I KELSEY.
Children and Young Peoples Services,Education,Transport,230007,Contract Hire,09-May-2017,3279119-KH/04/17,508.00,MR J AGAR T/A PARK TAXIS.
Children and Young Peoples Services,Education,Transport,230007,Contract Hire,09-May-2017,3279120-63,510.00,MR JOHN ALLINSON T/A AALPHA TAXIS.
Children and Young Peoples Services,Education,Transport,230008,Contract Hire,09-May-2017,3279121-A057/04/17,840.00,MR M ALLISON T/A MACBETH TAXIS/COACHES.
Children and Young Peoples Services,Education,Transport,230012,Contract Hire,09-May-2017,3279121-N053/04/17,950.00,MR M ALLISON T/A MACBETH TAXIS/COACHES.
Regeneration and Local Services,Economic Development and Housing,Supplies and Services,384700,Miscellaneous Expenses,09-May-2017,3279122-RED-05-2017-044,"1,500.00",REDACTED - PAYMENT TO INDIVIDUAL
Children and Young Peoples Services,Education,Transport,230008,Contract Hire,09-May-2017,3279124-0132,"2,944.00",MR P CAHILL T/A KILEYS TAXIS.
Children and Young Peoples Services,Education,Transport,230008,Contract Hire,09-May-2017,3279124-0134,"1,280.00",MR P CAHILL T/A KILEYS TAXIS.
Children and Young Peoples Services,Early Help,Supplies and Services,338044,Services,09-May-2017,3279125-RES-05-2017-011,584.40,MR PG RICHARDS (CONSULTANT).
Children and Young Peoples Services,Education,Transport,230008,Contract Hire,09-May-2017,3279126-9-28/4/17,684.00,REDACTED - PAYMENT TO INDIVIDUAL
Children and Young Peoples Services,Early Help,Third Party Payments,486046,Service Level Agreements,09-May-2017,3279130-40295,"2,691.00",NATIONAL YOUTH ADVOCACY SERVICE.
Regeneration and Local Services,Technical Services,Supplies and Services,384194,Miscellaneous Expenses,09-May-2017,3279134-81566,980.00,NIRAMAX GROUP LTD.
Dedicated Schools Grant,Dedicated Schools Grant,Creditors,952011,Creditors-Government grants,09-May-2017,3279136-CAS-05-2017-030,"3,506.25",NORTH EAST AUTISM SOCIETY.
Dedicated Schools Grant,Dedicated Schools Grant,Creditors,952011,Creditors-Government grants,09-May-2017,3279137-CAS-05-2017-031,660.00,NORTH EAST LEARNING TRUST.
Children and Young Peoples Services,Children Looked After,Premises,120009,Energy Costs,09-May-2017,3279141-79305943270,673.08,NPOWER.
Regeneration and Local Services,Economic Development and Housing,Supplies and Services,304337,Equipment and Materials,09-May-2017,3279143-53692,664.60,NV BAGS & ACCESSORIES LTD.
Children and Young Peoples Services,Education,Transport,230007,Contract Hire,09-May-2017,3279149-1569,600.00,PAUL WATSON TRAVEL.
Children and Young Peoples Services,Education,Transport,230007,Contract Hire,09-May-2017,3279149-1570,800.00,PAUL WATSON TRAVEL.
Children and Young Peoples Services,Education,Transport,230007,Contract Hire,09-May-2017,3279149-1571,"1,200.00",PAUL WATSON TRAVEL.
Children and Young Peoples Services,Education,Transport,230007,Contract Hire,09-May-2017,3279149-1572,"1,100.00",PAUL WATSON TRAVEL.
Children and Young Peoples Services,Education,Transport,230009,Contract Hire,09-May-2017,3279150-DCC/7271/04/2017,660.00,PB PRIVATE HIRE.
Children and Young Peoples Services,Education,Transport,230008,Contract Hire,09-May-2017,3279150-DCC/N096/04/2017,801.00,PB PRIVATE HIRE.
Dedicated Schools Grant,Dedicated Schools Grant,Transport,230008,Contract Hire,09-May-2017,3279150-DCC/W162/04/2017,850.00,PB PRIVATE HIRE.
Regeneration and Local Services,Economic Development and Housing,Cap Exp on Grants & Other Financial Assistance (REFCUS),918401,Capital grants,09-May-2017,3279154-RED-05-2017-041,"2,653.00",PEART ACCESS RAMPS.
Regeneration and Local Services,Direct Services,Third Party Payments,430100,Rendered by Private Contractors,09-May-2017,3279161-18800,"2,129.21",POLAR (NE) LTD.
Regeneration and Local Services,Technical Services,Third Party Payments,430100,Rendered by Private Contractors,09-May-2017,3279162-144353,"25,462.83",PREMIER TRAFFIC MANAGEMENT LTD.
Adult and Health Services,Public Health,Third Party Payments,460803,Contract Payments,09-May-2017,3279184-BS0011340,"12,241.99",ST CUTHBERTS HOSPICE.
Children and Young Peoples Services,Education,Transport,230007,Contract Hire,09-May-2017,3279187-5273,680.00,STEPHEN MAUDE LTD T/A MAUDES COACHES.
Children and Young Peoples Services,Education,Transport,230007,Contract Hire,09-May-2017,3279187-5274,680.00,STEPHEN MAUDE LTD T/A MAUDES COACHES.
Children and Young Peoples Services,Education,Transport,230008,Contract Hire,09-May-2017,3279188-13,855.00,STEVEN HENDERSON T/A HENDYS TAXIS.
Regeneration and Local Services,Spatial Policy Planning Assets & Environment,Supplies and Services,384700,Miscellaneous Expenses,09-May-2017,3279189-BURSARYAPR17,555.00,REDACTED - PAYMENT TO INDIVIDUAL
Regeneration and Local Services,Economic Development and Housing,Cap Exp on Grants & Other Financial Assistance (REFCUS),918401,Capital grants,09-May-2017,3279191-RED-05-2017-036,"2,780.55",SUNTER LTD.
Regeneration and Local Services,Economic Development and Housing,Cap Exp on Grants & Other Financial Assistance (REFCUS),918401,Capital grants,09-May-2017,3279191-RED-05-2017-037,"2,584.74",SUNTER LTD.
Children and Young Peoples Services,Early Help,Transport,240045,Car Allowances,09-May-2017,3279194-6989,"61,914.09",SUPPORTIVE SRC LTD.
Regeneration and Local Services,Culture & Sport,Supplies and Services,324117,Provisions,09-May-2017,3279201-9410720951,894.85,TCHIBO COFFEE INTERNATIONAL LTD.
Regeneration and Local Services,Culture & Sport,Supplies and Services,324117,Provisions,09-May-2017,3279201-9411217002,535.40,TCHIBO COFFEE INTERNATIONAL LTD.
Regeneration and Local Services,Direct Services,Supplies and Services,384199,Miscellaneous Expenses,09-May-2017,3279204-26138,620.06,TEESDALE EVENT & SITE SERVICES LTD.
Regeneration and Local Services,Direct Services,Supplies and Services,384199,Miscellaneous Expenses,09-May-2017,3279204-26770,650.00,TEESDALE EVENT & SITE SERVICES LTD.
Dedicated Schools Grant,Dedicated Schools Grant,Central Support and Capital,689996,Unclassified,09-May-2017,3279206-CAS-05-2017-023,"9,717.00",THE ACADEMY AT SHOTTON HALL.
Regeneration and Local Services,Economic Development and Housing,Cap Exp on Grants & Other Financial Assistance (REFCUS),918401,Capital grants,09-May-2017,3279209-RED-05-2017-026,517.30,THYSSENKRUPP ENCASA A DIVISION OF THYSSENKRUPP ACCESS LTD.
Regeneration and Local Services,Economic Development and Housing,Cap Exp on Grants & Other Financial Assistance (REFCUS),918401,Capital grants,09-May-2017,3279209-RED-05-2017-027,"1,074.00",THYSSENKRUPP ENCASA A DIVISION OF THYSSENKRUPP ACCESS LTD.
Regeneration and Local Services,Economic Development and Housing,Cap Exp on Grants & Other Financial Assistance (REFCUS),918401,Capital grants,09-May-2017,3279209-RED-05-2017-028,"1,074.00",THYSSENKRUPP ENCASA A DIVISION OF THYSSENKRUPP ACCESS LTD.
Regeneration and Local Services,Economic Development and Housing,Cap Exp on Grants & Other Financial Assistance (REFCUS),918401,Capital grants,09-May-2017,3279209-RED-05-2017-029,"1,152.00",THYSSENKRUPP ENCASA A DIVISION OF THYSSENKRUPP ACCESS LTD.
Regeneration and Local Services,Economic Development and Housing,Cap Exp on Grants & Other Financial Assistance (REFCUS),918401,Capital grants,09-May-2017,3279209-RED-05-2017-030,"3,812.00",THYSSENKRUPP ENCASA A DIVISION OF THYSSENKRUPP ACCESS LTD.
Regeneration and Local Services,Economic Development and Housing,Cap Exp on Grants & Other Financial Assistance (REFCUS),918401,Capital grants,09-May-2017,3279209-RED-05-2017-042,"5,902.06",THYSSENKRUPP ENCASA A DIVISION OF THYSSENKRUPP ACCESS LTD.
Regeneration and Local Services,Technical Services,Supplies and Services,304221,Equipment and Materials,09-May-2017,3279216-172344,"1,048.38",TYNEDALE ROADSTONE LTD.
Regeneration and Local Services,Technical Services,Supplies and Services,304221,Equipment and Materials,09-May-2017,3279216-172403,724.16,TYNEDALE ROADSTONE LTD.
Regeneration and Local Services,Technical Services,Supplies and Services,304221,Equipment and Materials,09-May-2017,3279216-172477,535.61,TYNEDALE ROADSTONE LTD.
Regeneration and Local Services,Culture & Sport,Supplies and Services,338047,Services,09-May-2017,3279218-22314146114-1,723.37,UNIVERSAL PICTURES INTERNATIONAL UK & EIRE LTD.
Children and Young Peoples Services,Children Looked After,Employees,080025,Agency Staff,09-May-2017,3279222-257421,850.00,VISION FOR EDUCATION LTD.
Children and Young Peoples Services,Children Looked After,Employees,080025,Agency Staff,09-May-2017,3279222-257422,540.00,VISION FOR EDUCATION LTD.
Children and Young Peoples Services,Education,Transport,230012,Contract Hire,09-May-2017,3279229-0417,650.00,WEST AUCKLAND TOWN TRAVEL (WATT).
Children and Young Peoples Services,Children Looked After,Third Party Payments,440002,Other Third Party Payments,09-May-2017,3279254-1187890,621.86,REDACTED - PAYMENT TO INDIVIDUAL
Children and Young Peoples Services,Children Looked After,Third Party Payments,440027,Other Third Party Payments,09-May-2017,3279369-1187383,706.23,REDACTED - PAYMENT TO INDIVIDUAL
Children and Young Peoples Services,Children Looked After,Third Party Payments,440025,Other Third Party Payments,09-May-2017,3279616-1188594,525.78,REDACTED - PAYMENT TO INDIVIDUAL
Children and Young Peoples Services,Children Looked After,Third Party Payments,440036,Other Third Party Payments,09-May-2017,3279675-1188255,733.00,REDACTED - PAYMENT TO INDIVIDUAL
Children and Young Peoples Services,Children Looked After,Third Party Payments,440027,Other Third Party Payments,09-May-2017,3279892-1187059,"1,782.39",REDACTED - PAYMENT TO INDIVIDUAL
Children and Young Peoples Services,Education,Transport,230008,Contract Hire,10-May-2017,306896-M047/41,700.00,C STEWART.
Children and Young Peoples Services,Early Help,Supplies and Services,338043,Services,10-May-2017,306898-16D653,556.80,CLARK WILLIS LAW FIRM.
Children and Young Peoples Services,Education,Transport,230007,Contract Hire,10-May-2017,306899-36,560.00,DAVID WILKINSON...
Children and Young Peoples Services,Education,Transport,235073,Public Transport,10-May-2017,306918-346967-018,586.95,REDACTED - PAYMENT TO INDIVIDUAL
Resources,Legal & Democratic Services,Supplies and Services,338042,Services,10-May-2017,306921-242603,600.00,MRS KOSSAR KITCHING.
Children and Young Peoples Services,Education,Transport,230008,Contract Hire,10-May-2017,3279953-AA1359,859.00,AA MINIBUS HIRE.
Children and Young Peoples Services,Education,Transport,230012,Contract Hire,10-May-2017,3279953-AA1360,753.80,AA MINIBUS HIRE.
Children and Young Peoples Services,Education,Transport,230008,Contract Hire,10-May-2017,3279954-Y1/SB,756.00,AABAT TAXIS.
Children and Young Peoples Services,Education,Transport,230008,Contract Hire,10-May-2017,3279954-Y25/SX,"1,800.00",AABAT TAXIS.
Children and Young Peoples Services,Education,Transport,230008,Contract Hire,10-May-2017,3279954-Y4/SH,975.00,AABAT TAXIS.
Children and Young Peoples Services,Education,Transport,230007,Contract Hire,10-May-2017,3279954-Y5/SK,540.00,AABAT TAXIS.
Children and Young Peoples Services,Education,Transport,230007,Contract Hire,10-May-2017,3279955-608,500.00,AC TAXIS.
Dedicated Schools Grant,Dedicated Schools Grant,Transfer Payments,510034,School Children,10-May-2017,3279956-LACPPSPRINGTERM1617,913.20,ACRE RIGG ACADEMY.
Adult and Health Services,Head of Adults,Transport,230005,Contract Hire,10-May-2017,3279961-NCL0417,510.00,AIRPORT CARS DURHAM
Adult and Health Services,Commissioning inc Supporting People,Third Party Payments,442002,Supporting People,10-May-2017,3279980-1966321,"16,448.04",BID SERVICES WITH DEAF PEOPLE.
Adult and Health Services,Head of Adults,Supplies and Services,304516,Equipment and Materials,10-May-2017,3279981-56,933.50,BILL SCOTT TAXIS LTD.
Adult and Health Services,Head of Adults,Supplies and Services,304516,Equipment and Materials,10-May-2017,3279981-65-1/5/17,797.00,BILL SCOTT TAXIS LTD.
Dedicated Schools Grant,Dedicated Schools Grant,Transfer Payments,510034,School Children,10-May-2017,3279998-LACPPSPRINGTERM1617,900.00,CLEVES CROSS LEARNING TRUST T/A ROSA STREET PRIMARY SCHOOL.
Dedicated Schools Grant,Dedicated Schools Grant,Transfer Payments,510034,School Children,10-May-2017,3279998-LACPPSPRINGTERM1617ROSA,"6,160.00",CLEVES CROSS LEARNING TRUST T/A ROSA STREET PRIMARY SCHOOL.
Children and Young Peoples Services,Early Help,Supplies and Services,338044,Services,10-May-2017,3280001-101195,521.71,COMPLEMENT GENOMICS LTD.
Children and Young Peoples Services,Early Help,Supplies and Services,338044,Services,10-May-2017,3280001-101207,599.34,COMPLEMENT GENOMICS LTD.
Adult and Health Services,Commissioning inc Supporting People,Third Party Payments,442002,Supporting People,10-May-2017,3280009-1966300,"19,868.48",CREATIVE SUPPORT LTD.
Children and Young Peoples Services,Education,Transport,230008,Contract Hire,10-May-2017,3280015-DI201704,517.00,D&I TAXIS.
Children and Young Peoples Services,Education,Transport,230008,Contract Hire,10-May-2017,3280016-1514,621.00,DA TAXIS.
Children and Young Peoples Services,Education,Transport,230008,Contract Hire,10-May-2017,3280016-1516,670.00,DA TAXIS.
Children and Young Peoples Services,Education,Transport,230008,Contract Hire,10-May-2017,3280017-222,870.00,DA TRAVEL.
Children and Young Peoples Services,Education,Transport,230008,Contract Hire,10-May-2017,3280017-223,924.00,DA TRAVEL.
Children and Young Peoples Services,Education,Transport,230008,Contract Hire,10-May-2017,3280019-3100,"1,130.00",DAVES MINIBUSES.
Children and Young Peoples Services,Education,Transport,230008,Contract Hire,10-May-2017,3280019-3101,"1,000.00",DAVES MINIBUSES.
Children and Young Peoples Services,Education,Transport,230008,Contract Hire,10-May-2017,3280019-3102,"1,275.00",DAVES MINIBUSES.
Children and Young Peoples Services,Education,Transport,230012,Contract Hire,10-May-2017,3280020-A21,900.00,DAVES TAXIS.
Children and Young Peoples Services,Education,Transport,230008,Contract Hire,10-May-2017,3280020-A22,750.00,DAVES TAXIS.
Regeneration and Local Services,Economic Development and Housing,Supplies and Services,384700,Miscellaneous Expenses,10-May-2017,3280021-RED-05-2017-054,"1,500.00",DAVID GOUNDRY PAINTING & DECORATING.
Children and Young Peoples Services,Early Help,Employees,080025,Agency Staff,10-May-2017,3280025-1000318,"109,535.19",DE POEL MANAGED SERVICES LTD.
Dedicated Schools Grant,Dedicated Schools Grant,Transfer Payments,510034,School Children,10-May-2017,3280026-LACPPSPRINGTERM1617,"1,709.04",DENE HOUSE PRIMARY SCHOOL (ACADEMY).
Children and Young Peoples Services,Education,Transfer Payments,510028,School Children,10-May-2017,3280028-4,"2,500.00",DIANE DIXON ASSOCIATES LTD.
Adult and Health Services,Commissioning inc Supporting People,Third Party Payments,442002,Supporting People,10-May-2017,3280029-1966299,"5,668.48",DISC LTD.
Adult and Health Services,Commissioning inc Supporting People,Third Party Payments,442002,Supporting People,10-May-2017,3280029-1966350,"27,885.68",DISC LTD.
Children and Young Peoples Services,Education,Transport,230006,Contract Hire,10-May-2017,3280030-17/27,544.00,DMG PRIVATE HIRE.
Children and Young Peoples Services,Education,Transport,230012,Contract Hire,10-May-2017,3280030-17/28,695.40,DMG PRIVATE HIRE.
Adult and Health Services,Commissioning inc Supporting People,Third Party Payments,441001,Supporting People,10-May-2017,3280033-1966353,"20,819.76",DURHAM ACTION ON SINGLE HOUSING.
Adult and Health Services,Commissioning inc Supporting People,Third Party Payments,443001,Supporting People,10-May-2017,3280033-1966356,"1,475.92",DURHAM ACTION ON SINGLE HOUSING.
Adult and Health Services,Commissioning inc Supporting People,Third Party Payments,443001,Supporting People,10-May-2017,3280033-1966358,"2,213.88",DURHAM ACTION ON SINGLE HOUSING.
Dedicated Schools Grant,Dedicated Schools Grant,Transfer Payments,510034,School Children,10-May-2017,3280035-LACPPSPRINGTERM1617,"2,400.00",DURHAM MARTYRS MULTI ACADEMY TRUST T/A ST LEONARD`S CATHOLIC SCHOOL.
Dedicated Schools Grant,Dedicated Schools Grant,Transfer Payments,510034,School Children,10-May-2017,3280042-LACPPSPRINGTERM1617,"4,002.00",EASINGTON ACADEMY.
Adult and Health Services,Commissioning inc Supporting People,Third Party Payments,441001,Supporting People,10-May-2017,3280044-1966318,"5,483.40",EAST DURHAM COMMUNITY INITIATIVES LTD.
Children and Young Peoples Services,Early Help,Supplies and Services,364353,Grants to Voluntary Organisations,10-May-2017,3280050-CAS-05-2017-048,538.16,REDACTED - PAYMENT TO INDIVIDUAL
Dedicated Schools Grant,Dedicated Schools Grant,Transfer Payments,510034,School Children,10-May-2017,3280054-LACPPSPRINGTERM1617,"3,900.00",EXCEL ACADEMY PARTNERSHIP T/A FRAMWELLGATE SCHOOL DURHAM.
Regeneration and Local Services,Projects and Business services,Fees,901002,Professional fees,10-May-2017,3280055-2370,"3,450.00",FIRMSTEP LTD.
Regeneration and Local Services,Projects and Business services,Fees,901002,Professional fees,10-May-2017,3280055-2439,"6,900.00",FIRMSTEP LTD.
Adult and Health Services,Commissioning inc Supporting People,Third Party Payments,442002,Supporting People,10-May-2017,3280056-1966352,"19,776.44",FOUNDATION.
Adult and Health Services,Commissioning inc Supporting People,Third Party Payments,442002,Supporting People,10-May-2017,3280057-1966375,"32,194.64",FOUR HOUSING GROUP & CARE & REPAIR HANDYPERSON SERVICE.*
Regeneration and Local Services,Economic Development and Housing,Cap Exp on Grants & Other Financial Assistance (REFCUS),918401,Capital grants,10-May-2017,3280064-RED-05-2017-033,"26,576.02",REDACTED - PAYMENT TO INDIVIDUAL
Transformation and Partnerships,Partnerships & Community Engagement Div.,Transfer Payments,525030,Other,10-May-2017,3280067-VOUCHER16AB,"6,207.00",GO AHEAD TRAINING CIC.
Regeneration and Local Services,Direct Services,Construction Work,908105,Construction work,10-May-2017,3280071-ROSEB,"63,421.45",HALL CONSTRUCTION SERVICES LTD.
Adult and Health Services,Commissioning inc Supporting People,Third Party Payments,442002,Supporting People,10-May-2017,3280073-1966361,"3,297.48",HANOVER HOUSING ASSOCIATION.
Adult and Health Services,Commissioning inc Supporting People,Third Party Payments,441001,Supporting People,10-May-2017,3280074-1966301,"18,082.80",HARBOUR SUPPORT SERVICES.
Dedicated Schools Grant,Dedicated Schools Grant,Transfer Payments,510034,School Children,10-May-2017,3280080-LACPPSPRINGTERM1617,"2,700.00",HERMITAGE ACADEMY.
Children and Young Peoples Services,Children Looked After,Supplies and Services,364340,Grants to Voluntary Organisations,10-May-2017,3280081-CAS-05-2017-034,"2,955.60",HOME ON THE RANGE LTD.
Dedicated Schools Grant,Dedicated Schools Grant,Transfer Payments,510034,School Children,10-May-2017,3280082-LACPPSPRINGTERM1617,"9,220.00",HOPE WOOD ACADEMY.
Resources,Financial Services,Supplies and Services,384197,Miscellaneous Expenses,10-May-2017,3280084-2044APRIL102017,"1,392.00",INGRAMS REMOVERS & STORERS.
Regeneration and Local Services,Direct Services,Third Party Payments,430100,Rendered by Private Contractors,10-May-2017,3280086-31080,"1,150.00",JACK TIGHE DECORATING LTD.
Regeneration and Local Services,Direct Services,Construction Work,908105,Construction work,10-May-2017,3280091-00504,"1,610.00",JN KEARTON.
Regeneration and Local Services,Spatial Policy Planning Assets & Environment,Supplies and Services,338066,Services,10-May-2017,3280092-RED-05-2017-057,957.75,REDACTED - PAYMENT TO INDIVIDUAL
Children and Young Peoples Services,Education,Construction Work,908105,Construction work,10-May-2017,3280093-INS1SEAHAMSCHOOL,"34,876.35",JOHN WADE (HAULAGE) LTD.
Regeneration and Local Services,Economic Development and Housing,Supplies and Services,384700,Miscellaneous Expenses,10-May-2017,3280099-RED-05-2017-051,546.92,REDACTED - PAYMENT TO INDIVIDUAL
Dedicated Schools Grant,Dedicated Schools Grant,Transfer Payments,510034,School Children,10-May-2017,3280101-LACPPSPRINGTERM1617,"4,377.00",KING JAMES I ACADEMY.
Adult and Health Services,Commissioning inc Supporting People,Third Party Payments,442002,Supporting People,10-May-2017,3280117-1966302,"5,469.72",MENTAL HEALTH MATTERS.
Dedicated Schools Grant,Dedicated Schools Grant,Transport,230010,Contract Hire,10-May-2017,3280119-725,"1,230.00",MOLLYS TAXIS.
Adult and Health Services,Commissioning inc Supporting People,Third Party Payments,442002,Supporting People,10-May-2017,3280121-1966362,"2,620.48",MOVING ON.
Dedicated Schools Grant,Dedicated Schools Grant,Transport,230010,Contract Hire,10-May-2017,3280126-2964,613.00,MR S BOWERS T/A DH7 TAXIS.
Regeneration and Local Services,Technical Services,Supplies and Services,378002,Levies,10-May-2017,3280129-NEI-EXP-05-2017-004,"4,496.00",REDACTED - PAYMENT TO INDIVIDUAL
Dedicated Schools Grant,Dedicated Schools Grant,Transfer Payments,510034,School Children,10-May-2017,3280137-LACPPSPRINGTERM1617,"7,311.00",NEW COLLEGE ACADEMIES TRUST - CONSETT ACADEMY.
Regeneration and Local Services,Direct Services,Supplies and Services,304259,Equipment and Materials,10-May-2017,3280141-241000,"19,100.00",NIFTYLIFT LTD.
Dedicated Schools Grant,Dedicated Schools Grant,Transfer Payments,510034,School Children,10-May-2017,3280143-LACPPSPRINGTERM1617,"4,644.92",NORTH DURHAM ACADEMY.
Dedicated Schools Grant,Dedicated Schools Grant,Transfer Payments,510034,School Children,10-May-2017,3280144-LACPPSPRINGTERM1617,900.00,NORTH EAST LEARNING TRUST.
Regeneration and Local Services,Culture & Sport,Supplies and Services,338047,Services,10-May-2017,3280146-INV0007043,"2,223.15",NORTHERN BALLET THEATRE LTD.
Dedicated Schools Grant,Dedicated Schools Grant,Transfer Payments,510034,School Children,10-May-2017,3280151-LACPPSPRINGTERM1617,"11,150.00",PARK VIEW ACADEMY.
Dedicated Schools Grant,Dedicated Schools Grant,Transfer Payments,510034,School Children,10-May-2017,3280152-LACPPSPRINGTERM1617,"3,510.00",PARKSIDE SPORTS COLLEGE ACADEMY.
Regeneration and Local Services,Culture & Sport,Supplies and Services,384199,Miscellaneous Expenses,10-May-2017,3280153-GALABIGBAND,630.00,PAUL RICHARD EDIS.
Regeneration and Local Services,Spatial Policy Planning Assets & Environment,Creditors,952146,Creditor-Section 106 agreement,10-May-2017,3280154-RED-05-2017-060,"1,231.00",PELTON FELL COMMUNITY PARTNERSHIP.
Regeneration and Local Services,Technical Services,Third Party Payments,430100,Rendered by Private Contractors,10-May-2017,3280160-143791,"33,237.17",PREMIER TRAFFIC MANAGEMENT LTD.
Children and Young Peoples Services,Education,Transport,230009,Contract Hire,10-May-2017,3280163-1733,580.00,RAPID MINIBUSES.
Children and Young Peoples Services,Education,Transport,230008,Contract Hire,10-May-2017,3280163-1736,675.00,RAPID MINIBUSES.
Children and Young Peoples Services,Education,Transport,230008,Contract Hire,10-May-2017,3280163-1737,720.00,RAPID MINIBUSES.
Children and Young Peoples Services,Education,Transport,230008,Contract Hire,10-May-2017,3280163-1738,763.47,RAPID MINIBUSES.
Children and Young Peoples Services,Education,Transport,230007,Contract Hire,10-May-2017,3280164-50A,643.30,RAYNERS COACHES.
Children and Young Peoples Services,Education,Transport,230007,Contract Hire,10-May-2017,3280164-50C,"3,015.30",RAYNERS COACHES.
Dedicated Schools Grant,Dedicated Schools Grant,Transfer Payments,510034,School Children,10-May-2017,3280166-LACPPSPRINGTERM1617,"4,300.00",RIBBON ACADEMY TRUST.
Adult and Health Services,Commissioning inc Supporting People,Third Party Payments,442002,Supporting People,10-May-2017,3280168-1966304,"7,356.72",RICHMOND FELLOWSHIP.
Adult and Health Services,Commissioning inc Supporting People,Third Party Payments,444002,Supporting People,10-May-2017,3280168-1966305,"4,068.24",RICHMOND FELLOWSHIP.
Adult and Health Services,Commissioning inc Supporting People,Third Party Payments,441001,Supporting People,10-May-2017,3280168-1966317,"9,423.88",RICHMOND FELLOWSHIP.
Regeneration and Local Services,Direct Services,Supplies and Services,304259,Equipment and Materials,10-May-2017,3280169-RSIN0210406,951.12,RIGBY TAYLOR LTD.
Regeneration and Local Services,Direct Services,Supplies and Services,304259,Equipment and Materials,10-May-2017,3280169-RSIN0215426,"4,982.00",RIGBY TAYLOR LTD.
Regeneration and Local Services,Direct Services,Supplies and Services,304259,Equipment and Materials,10-May-2017,3280169-RSIN0215427,"4,860.00",RIGBY TAYLOR LTD.
Children and Young Peoples Services,Education,Transport,230008,Contract Hire,10-May-2017,3280172-964,540.00,ROAD RUNNERS (NE) LTD.
Children and Young Peoples Services,Education,Transport,230008,Contract Hire,10-May-2017,3280172-966,666.00,ROAD RUNNERS (NE) LTD.
Children and Young Peoples Services,Education,Transport,230008,Contract Hire,10-May-2017,3280172-967,"1,197.00",ROAD RUNNERS (NE) LTD.
Children and Young Peoples Services,Education,Transport,230008,Contract Hire,10-May-2017,3280172-968,888.00,ROAD RUNNERS (NE) LTD.
Children and Young Peoples Services,Education,Transport,230006,Contract Hire,10-May-2017,3280172-969,"1,100.00",ROAD RUNNERS (NE) LTD.
Children and Young Peoples Services,Education,Transport,230008,Contract Hire,10-May-2017,3280172-971,594.00,ROAD RUNNERS (NE) LTD.
Children and Young Peoples Services,Education,Transport,230008,Contract Hire,10-May-2017,3280172-972,920.00,ROAD RUNNERS (NE) LTD.
Children and Young Peoples Services,Education,Transport,230008,Contract Hire,10-May-2017,3280172-973,680.00,ROAD RUNNERS (NE) LTD.
Children and Young Peoples Services,Education,Transport,230012,Contract Hire,10-May-2017,3280172-974,750.00,ROAD RUNNERS (NE) LTD.
Adult and Health Services,Head of Adults,Transport,230005,Contract Hire,10-May-2017,3280172-975,960.00,ROAD RUNNERS (NE) LTD.
Adult and Health Services,Head of Adults,Transport,230005,Contract Hire,10-May-2017,3280172-976,"1,200.00",ROAD RUNNERS (NE) LTD.
Children and Young Peoples Services,Education,Transport,230008,Contract Hire,10-May-2017,3280172-978,750.00,ROAD RUNNERS (NE) LTD.
Dedicated Schools Grant,Dedicated Schools Grant,Transport,230010,Contract Hire,10-May-2017,3280172-981,680.00,ROAD RUNNERS (NE) LTD.
Children and Young Peoples Services,Education,Transport,230008,Contract Hire,10-May-2017,3280172-982,680.00,ROAD RUNNERS (NE) LTD.
Children and Young Peoples Services,Education,Transport,230008,Contract Hire,10-May-2017,3280172-983,596.00,ROAD RUNNERS (NE) LTD.
Children and Young Peoples Services,Education,Transport,230008,Contract Hire,10-May-2017,3280172-985,"1,220.00",ROAD RUNNERS (NE) LTD.
Adult and Health Services,Head of Adults,Transport,230005,Contract Hire,10-May-2017,3280172-986,648.00,ROAD RUNNERS (NE) LTD.
Children and Young Peoples Services,Education,Transport,230008,Contract Hire,10-May-2017,3280173-189,"1,194.05",ROBBIE`S PRIVATE HIRE.
Children and Young Peoples Services,Education,Transport,230008,Contract Hire,10-May-2017,3280174-0039-30/4/17,850.00,RONS TAXI (CHESTER LE ST).
Children and Young Peoples Services,Education,Transport,230008,Contract Hire,10-May-2017,3280175-1700,880.00,RON`S TAXIS (FISHBURN).
Children and Young Peoples Services,Education,Transport,230008,Contract Hire,10-May-2017,3280175-1701,"1,000.00",RON`S TAXIS (FISHBURN).
Children and Young Peoples Services,Education,Transport,230006,Contract Hire,10-May-2017,3280175-1702,540.00,RON`S TAXIS (FISHBURN).
Regeneration and Local Services,Technical Services,Stock,926900,Stock in hand-Inventory system,10-May-2017,3280185-46652,"4,048.00",USE (196869) SG BAKER LTD.
Regeneration and Local Services,Technical Services,Stock,926900,Stock in hand-Inventory system,10-May-2017,3280185-46704,"4,048.00",USE (196869) SG BAKER LTD.
Adult and Health Services,Commissioning inc Supporting People,Third Party Payments,442002,Supporting People,10-May-2017,3280187-1966363,"6,331.08",SHAID.
Dedicated Schools Grant,Dedicated Schools Grant,Transfer Payments,510034,School Children,10-May-2017,3280188-LACPPSPRINGTERM1617,"2,490.00",SHIELD ROW ACADEMY.
Dedicated Schools Grant,Dedicated Schools Grant,Transfer Payments,510034,School Children,10-May-2017,3280198-LACPPSPRINGTERM1617,"5,064.00",ST BEDES CATHOLIC ACADEMY (LANCHESTER).
Dedicated Schools Grant,Dedicated Schools Grant,Transfer Payments,510034,School Children,10-May-2017,3280199-LACPPSPRINGTERM1617,"3,000.00",ST JOHN`S SCHOOL & SIXTH FORM COLLEGE A CATHOLIC ACADEMY.
Dedicated Schools Grant,Dedicated Schools Grant,Transfer Payments,510034,School Children,10-May-2017,3280200-LACPPSPRINGTERM1617,"1,631.00",STAINDROP SCHOOL.
Regeneration and Local Services,Culture & Sport,Third Party Payments,430100,Rendered by Private Contractors,10-May-2017,3280201-NEI-HCL-05-2017-01,"15,200.00",STANHOPE SWIMMING POOL LTD.
Dedicated Schools Grant,Dedicated Schools Grant,Transfer Payments,510034,School Children,10-May-2017,3280202-LACPPSPRINGTERM1617,"3,330.00",STANLEY LEARNING PARTNERSHIP.
Dedicated Schools Grant,Dedicated Schools Grant,Transfer Payments,510034,School Children,10-May-2017,3280204-LACPPSPRINGTERM1617,"4,760.00",STEPHENSON WAY COMMUNITY PRIMARY SCHOOL.
Regeneration and Local Services,Culture & Sport,Income,715460,Sales,10-May-2017,3280205-NEI-EXP-05-2017-002,"1,180.00",STEVEN LLOYD PROMOTIONS LTD.
Adult and Health Services,Commissioning inc Supporting People,Third Party Payments,442002,Supporting People,10-May-2017,3280206-1966298,"113,942.68",STONHAM HOUSING ASSOCIATION LTD.
Adult and Health Services,Commissioning inc Supporting People,Third Party Payments,443001,Supporting People,10-May-2017,3280206-1966324,529.76,STONHAM HOUSING ASSOCIATION LTD.
Adult and Health Services,Commissioning inc Supporting People,Third Party Payments,443001,Supporting People,10-May-2017,3280206-1966329,578.88,STONHAM HOUSING ASSOCIATION LTD.
Adult and Health Services,Commissioning inc Supporting People,Third Party Payments,441001,Supporting People,10-May-2017,3280206-1966368,"54,465.72",STONHAM HOUSING ASSOCIATION LTD.
Adult and Health Services,Commissioning inc Supporting People,Third Party Payments,443001,Supporting People,10-May-2017,3280206-1966370,"11,506.84",STONHAM HOUSING ASSOCIATION LTD.
Adult and Health Services,Commissioning inc Supporting People,Third Party Payments,442002,Supporting People,10-May-2017,3280206-1966373,"27,962.72",STONHAM HOUSING ASSOCIATION LTD.
Adult and Health Services,Commissioning inc Supporting People,Third Party Payments,441001,Supporting People,10-May-2017,3280206-1966374,"15,342.48",STONHAM HOUSING ASSOCIATION LTD.
Dedicated Schools Grant,Dedicated Schools Grant,Transfer Payments,510034,School Children,10-May-2017,3280217-LACPPSPRINGTERM1617,"9,999.36",THE ACADEMY AT SHOTTON HALL.
Adult and Health Services,Commissioning inc Supporting People,Third Party Payments,441001,Supporting People,10-May-2017,3280219-1966322,"19,231.20",THE CYRENIANS LTD T/A CHANGING LIVES.
Adult and Health Services,Commissioning inc Supporting People,Third Party Payments,442002,Supporting People,10-May-2017,3280223-1966340,"5,088.84",THIRTEEN CARE & SUPPORT.
Adult and Health Services,Commissioning inc Supporting People,Third Party Payments,441001,Supporting People,10-May-2017,3280223-1966341,"7,776.68",THIRTEEN CARE & SUPPORT.
Adult and Health Services,Commissioning inc Supporting People,Third Party Payments,441001,Supporting People,10-May-2017,3280223-1966342,"23,518.04",THIRTEEN CARE & SUPPORT.
Regeneration and Local Services,Direct Services,Third Party Payments,430100,Rendered by Private Contractors,10-May-2017,3280225-DCC/GT/21,558.00,TYNE VALLEY FLOORING & CARPETS.
Regeneration and Local Services,Technical Services,Supplies and Services,304221,Equipment and Materials,10-May-2017,3280226-172345,552.35,TYNEDALE ROADSTONE LTD.
Regeneration and Local Services,Technical Services,Supplies and Services,304221,Equipment and Materials,10-May-2017,3280229-INV040185,"5,198.41",URBIS SCHREDER LTD.
Regeneration and Local Services,Economic Development and Housing,Supplies and Services,384199,Miscellaneous Expenses,10-May-2017,3280230-CONF/VID100,550.00,USHAW COLLEGE.
Adult and Health Services,Commissioning inc Supporting People,Third Party Payments,441001,Supporting People,10-May-2017,3280236-1966319,"2,367.20",WADDINGTON STREET CENTRE LTD.
Adult and Health Services,Commissioning inc Supporting People,Third Party Payments,441001,Supporting People,10-May-2017,3280237-1966303,"7,157.00",WEAR VALLEY WOMENS AID.
Dedicated Schools Grant,Dedicated Schools Grant,Transfer Payments,510034,School Children,10-May-2017,3280241-LACPPSPRINGTERM1617,"5,172.00",WOODHAM ACADEMY.
Children and Young Peoples Services,Education,Transport,230008,Contract Hire,11-May-2017,3280265-Y18/SA,"1,200.00",AABAT TAXIS.
Children and Young Peoples Services,Education,Transport,230008,Contract Hire,11-May-2017,3280265-Y6/SP,"1,200.00",AABAT TAXIS.
Children and Young Peoples Services,Education,Transport,230006,Contract Hire,11-May-2017,3280265-Y8/ST,"1,071.00",AABAT TAXIS.
Regeneration and Local Services,Technical Services,Supplies and Services,304221,Equipment and Materials,11-May-2017,3280271-24698675,961.82,AGGREGATE INDUSTRIES UK LTD.
Regeneration and Local Services,Technical Services,Supplies and Services,304221,Equipment and Materials,11-May-2017,3280271-24717807,"2,059.61",AGGREGATE INDUSTRIES UK LTD.
Regeneration and Local Services,Technical Services,Supplies and Services,304221,Equipment and Materials,11-May-2017,3280271-24734002,"1,646.92",AGGREGATE INDUSTRIES UK LTD.
Regeneration and Local Services,Technical Services,Supplies and Services,304221,Equipment and Materials,11-May-2017,3280271-24734003,"1,112.76",AGGREGATE INDUSTRIES UK LTD.
Regeneration and Local Services,Culture & Sport,Supplies and Services,384199,Miscellaneous Expenses,11-May-2017,3280276-GALA090517,500.00,AMANDA WOODS.
Adult and Health Services,Head of Adults,Supplies and Services,338365,Services,11-May-2017,3280286-14141,724.55,ASTOR BANNERMAN (MEDICAL) LTD.
Children and Young Peoples Services,Education,Transport,230008,Contract Hire,11-May-2017,3280296-646,749.30,BEELINE MINI BUSES.
Children and Young Peoples Services,Education,Transport,230008,Contract Hire,11-May-2017,3280296-648,776.00,BEELINE MINI BUSES.
Children and Young Peoples Services,Education,Transport,230012,Contract Hire,11-May-2017,3280297-SMITH/10APRIL07,854.10,BEELINE PRIVATE HIRE.
Children and Young Peoples Services,Education,Transport,230008,Contract Hire,11-May-2017,3280297-SMITH/APRIL17,703.30,BEELINE PRIVATE HIRE.
Children and Young Peoples Services,Education,Transport,230003,Contract Hire,11-May-2017,3280299-STJOHNS8030506042017,"3,760.00",BELL BROTHERS TRAVEL.
Children and Young Peoples Services,Education,Transport,230008,Contract Hire,11-May-2017,3280305-169,558.00,BG TAXIS.
Dedicated Schools Grant,Dedicated Schools Grant,Transport,230010,Contract Hire,11-May-2017,3280307-B009-APR17,"1,235.00",BIG MAMA`S TAXI.
Children and Young Peoples Services,Education,Transport,230006,Contract Hire,11-May-2017,3280307-F689-APR17,660.00,BIG MAMA`S TAXI.
Regeneration and Local Services,Technical Services,Supplies and Services,304221,Equipment and Materials,11-May-2017,3280311-BMPR/070/LW,611.00,BISHOP MIDDLEHAM PLANT & RECYCLING LTD.
Children and Young Peoples Services,Education,Transport,230007,Contract Hire,11-May-2017,3280313-41-30/4/17,600.00,BL TAXIS.
Children and Young Peoples Services,Education,Transport,230006,Contract Hire,11-May-2017,3280316-1431,"1,666.60",BOBBY DOVE.
Adult and Health Services,Head of Adults,Transport,230005,Contract Hire,11-May-2017,3280316-1471,900.00,BOBBY DOVE.
Regeneration and Local Services,Direct Services,Transport,210057,Repair and Maintenance of Vehicles,11-May-2017,3280319-3040442093,555.70,BOC LTD.
Regeneration and Local Services,Direct Services,Supplies and Services,304259,Equipment and Materials,11-May-2017,3280325-170377,850.00,BRAMBLEDOWN LANDSCAPE SERVICES LTD.
Regeneration and Local Services,Culture & Sport,Premises,145023,Cleaning and Domestic Supplies,11-May-2017,3280326-22SI2225037,"1,094.00",BRENNTAG UK LTD.
Children and Young Peoples Services,Education,Transport,230008,Contract Hire,11-May-2017,3280327-BZ00220,729.00,BREZ`S TAXIS.
Regeneration and Local Services,Transport and Contracted Services,Supplies and Services,304245,Equipment and Materials,11-May-2017,3280332-51801,900.00,BUDDI.
Children and Young Peoples Services,Education,Transport,230008,Contract Hire,11-May-2017,3280333-PS0159,632.00,BURNDALE PRIVATE HIRE.
Children and Young Peoples Services,Education,Transport,230008,Contract Hire,11-May-2017,3280334-BIL0100-27/4/17,893.50,CA MUSGROVE.
Adult and Health Services,Head of Adults,Supplies and Services,338366,Services,11-May-2017,3280339-39930,965.55,CARE ABILITY.
Children and Young Peoples Services,Early Help,Supplies and Services,342033,Computers and Communications,11-May-2017,3280341-5444,"15,754.00",CAREWORKS (IRELAND) LTD.
Regeneration and Local Services,Technical Services,Stock,926900,Stock in hand-Inventory system,11-May-2017,3280342-851700933,"2,842.00",CARLISLE CONSTRUCTION MATERIALS LTD.
Regeneration and Local Services,Culture & Sport,Supplies and Services,324117,Provisions,11-May-2017,3280343-843713910,"1,444.92",CARLSBERG UK LTD.
Children and Young Peoples Services,Education,Transport,230008,Contract Hire,11-May-2017,3280354-43/2017,"1,200.00",CHRIS`S TAXI.
Regeneration and Local Services,Technical Services,Premises,150015,Apportioned Exps of Operational Blds,11-May-2017,3280360-67656,821.40,CLEE HILL PLANT LTD.
Regeneration and Local Services,Technical Services,Premises,150015,Apportioned Exps of Operational Blds,11-May-2017,3280360-67657,821.40,CLEE HILL PLANT LTD.
Regeneration and Local Services,Technical Services,Premises,150015,Apportioned Exps of Operational Blds,11-May-2017,3280360-67658,821.40,CLEE HILL PLANT LTD.
Regeneration and Local Services,Technical Services,Premises,150015,Apportioned Exps of Operational Blds,11-May-2017,3280360-67659,821.40,CLEE HILL PLANT LTD.
Children and Young Peoples Services,Early Help,Premises,145009,Cleaning and Domestic Supplies,11-May-2017,3280363-3980022777,840.63,CO DURHAM & DARLINGTON NHS FOUNDATION TRUST.
Resources,Corporate Finance,Third Party Payments,479112,Purchase of Care,11-May-2017,3280363-3980022912,766.12,CO DURHAM & DARLINGTON NHS FOUNDATION TRUST.
Children and Young Peoples Services,Early Help,Supplies and Services,338094,Services,11-May-2017,3280363-3980023237,670.34,CO DURHAM & DARLINGTON NHS FOUNDATION TRUST.
Resources,Legal & Democratic Services,Supplies and Services,384151,Miscellaneous Expenses,11-May-2017,3280363-3980023238,"32,896.44",CO DURHAM & DARLINGTON NHS FOUNDATION TRUST.
Resources,Legal & Democratic Services,Supplies and Services,384151,Miscellaneous Expenses,11-May-2017,3280363-3980023253,"9,042.00",CO DURHAM & DARLINGTON NHS FOUNDATION TRUST.
Children and Young Peoples Services,Children Looked After,Third Party Payments,486044,Service Level Agreements,11-May-2017,3280363-3980023473,"3,109.00",CO DURHAM & DARLINGTON NHS FOUNDATION TRUST.
Children and Young Peoples Services,Children Looked After,Third Party Payments,486044,Service Level Agreements,11-May-2017,3280363-3980023484,"3,109.00",CO DURHAM & DARLINGTON NHS FOUNDATION TRUST.
Adult and Health Services,Public Health,Third Party Payments,460803,Contract Payments,11-May-2017,3280363-CAS-05-2017-050,"165,338.75",CO DURHAM & DARLINGTON NHS FOUNDATION TRUST.
Children and Young Peoples Services,Early Help,Supplies and Services,384491,Miscellaneous Expenses,11-May-2017,3280374-NA192365,510.00,CORECARE NA LTD.
Adult and Health Services,Public Health,Third Party Payments,460802,Contract Payments,11-May-2017,3280376-A83027Q3LATE,721.27,COXHOE MEDICAL PRACTICE.
Transformation and Partnerships,Partnerships & Community Engagement Div.,Cap Exp on Grants & Other Financial Assistance (REFCUS),918004,Contributions to other bodies,11-May-2017,3280379-VOUCHERCCL6,"135,444.06",CROOK COMMUNITY LEISURE LTD.
Regeneration and Local Services,Direct Services,Third Party Payments,430100,Rendered by Private Contractors,11-May-2017,3280389-301059,"1,448.93",DENNIS EAGLE LTD.
Resources,Legal & Democratic Services,Supplies and Services,338042,Services,11-May-2017,3280390-329797/INVDR420,725.00,DERE STREET BARRISTERS.
Regeneration and Local Services,Technical Services,Third Party Payments,430100,Rendered by Private Contractors,11-May-2017,3280395-6808,"1,350.00",DUNELM GEOTECHNICAL & ENVIRONMENTAL LTD.
Dedicated Schools Grant,Dedicated Schools Grant,Supplies and Services,384302,Miscellaneous Expenses,11-May-2017,3280398-LMS41769,"4,477.12",DURHAM MARTYRS MULTI ACADEMY TRUST T/A ST LEONARD`S CATHOLIC SCHOOL.
Children and Young Peoples Services,Early Help,Central Support and Capital,615092,Support Services,11-May-2017,3280399-20016061,500.27,DURHAM POLICE & CRIME COMMISSIONER.
Regeneration and Local Services,Economic Development and Housing,Construction Work,908105,Construction work,11-May-2017,3280412-S0016894,"2,496.50",ENERGY ASSETS LTD.
Regeneration and Local Services,Direct Services,Transport,230005,Contract Hire,11-May-2017,3280414-8136167,569.51,ENTERPRISE FLEX-E-RENT T/A BURNT TREE GROUP LTD.
Regeneration and Local Services,Direct Services,Transport,230005,Contract Hire,11-May-2017,3280414-8136168,"1,206.80",ENTERPRISE FLEX-E-RENT T/A BURNT TREE GROUP LTD.
Regeneration and Local Services,Direct Services,Transport,230005,Contract Hire,11-May-2017,3280414-8136811,501.40,ENTERPRISE FLEX-E-RENT T/A BURNT TREE GROUP LTD.
Regeneration and Local Services,Direct Services,Transport,230005,Contract Hire,11-May-2017,3280414-8136816,501.28,ENTERPRISE FLEX-E-RENT T/A BURNT TREE GROUP LTD.
Regeneration and Local Services,Direct Services,Transport,230005,Contract Hire,11-May-2017,3280414-8136820,984.10,ENTERPRISE FLEX-E-RENT T/A BURNT TREE GROUP LTD.
Regeneration and Local Services,Direct Services,Transport,230005,Contract Hire,11-May-2017,3280414-8136823,984.10,ENTERPRISE FLEX-E-RENT T/A BURNT TREE GROUP LTD.
Regeneration and Local Services,Direct Services,Transport,230005,Contract Hire,11-May-2017,3280414-8136825,961.80,ENTERPRISE FLEX-E-RENT T/A BURNT TREE GROUP LTD.
Regeneration and Local Services,Direct Services,Transport,230005,Contract Hire,11-May-2017,3280414-8136826,984.10,ENTERPRISE FLEX-E-RENT T/A BURNT TREE GROUP LTD.
Regeneration and Local Services,Direct Services,Transport,230005,Contract Hire,11-May-2017,3280414-8136827,984.10,ENTERPRISE FLEX-E-RENT T/A BURNT TREE GROUP LTD.
Regeneration and Local Services,Direct Services,Transport,230005,Contract Hire,11-May-2017,3280414-8136845,794.85,ENTERPRISE FLEX-E-RENT T/A BURNT TREE GROUP LTD.
Regeneration and Local Services,Transport and Contracted Services,Supplies and Services,338080,Services,11-May-2017,3280416-987906,"11,570.96",ESP SYSTEX LTD.
Resources,I.C.T. Services,Supplies and Services,342051,Computers and Communications,11-May-2017,3280417-UK-SIN005604,"125,000.00",ESRI (UK) LTD.
Regeneration and Local Services,Projects and Business services,Fees,901002,Professional fees,11-May-2017,3280426-2828,"13,250.00",FIRMSTEP LTD.
Children and Young Peoples Services,Children Looked After,Supplies and Services,364352,Grants to Voluntary Organisations,11-May-2017,3280430-294,"11,440.00",FOREVER CARE.
Regeneration and Local Services,Technical Services,Supplies and Services,304357,Equipment and Materials,11-May-2017,3280435-DCC230417,"13,061.18",GAP GROUP LTD.
Regeneration and Local Services,Transport and Contracted Services,Third Party Payments,430106,Rendered by Private Contractors,11-May-2017,3280436-19246,590.14,GARNETTS LTD (COACHES).
Regeneration and Local Services,Direct Services,Stock,926004,Stock,11-May-2017,3280439-IN186854,695.25,GB LUBRICANTS LTD.
Resources,I.C.T. Services,Supplies and Services,372009,Subscriptions,11-May-2017,3280442-3550940,"1,499.00",GETTY IMAGES INTERNATIONAL LTD.
Resources,Legal & Democratic Services,Supplies and Services,338025,Services,11-May-2017,3280443-SI41417,520.00,REDACTED - PAYMENT TO INDIVIDUAL
Regeneration and Local Services,Technical Services,Third Party Payments,430127,Rendered by Private Contractors,11-May-2017,3280445-14725,"13,706.00",GJ CONTRACTORS.
Regeneration and Local Services,Technical Services,Supplies and Services,304221,Equipment and Materials,11-May-2017,3280447-728210,"1,664.28",GLASDON UK LTD.
Children and Young Peoples Services,Early Help,Supplies and Services,338076,Services,11-May-2017,3280449-729,"12,900.00",GRANGE VILLA COMMUNITY ENTERPRISE CENTRE.
Adult and Health Services,Public Health,Third Party Payments,460802,Contract Payments,11-May-2017,3280450-A83029Q3LATE,924.00,GREAT LUMLEY SURGERY.
Regeneration and Local Services,Technical Services,Stock,926900,Stock in hand-Inventory system,11-May-2017,3280451-06/635799,"3,179.52",GREENHAM TRADING LTD.
Children and Young Peoples Services,Education,Supplies and Services,352001,Conference Expenses,11-May-2017,3280457-07/03/2017,"1,357.50",HARDWICK HALL HOTEL.*
Regeneration and Local Services,Direct Services,Supplies and Services,304259,Equipment and Materials,11-May-2017,3280470-1444499366,"4,923.85",HILTI (GB) LTD.
Regeneration and Local Services,Direct Services,Third Party Payments,430100,Rendered by Private Contractors,11-May-2017,3280476-68025,505.08,HOGARTH COACHWORKS LTD.
Children and Young Peoples Services,Education,Transport,230008,Contract Hire,11-May-2017,3280480-223,"1,166.00",I CLYDESDALE T/A BURNOPFIELD TAXIS.
Children and Young Peoples Services,Education,Transport,230006,Contract Hire,11-May-2017,3280480-224,816.00,I CLYDESDALE T/A BURNOPFIELD TAXIS.
Regeneration and Local Services,Direct Services,Third Party Payments,430100,Rendered by Private Contractors,11-May-2017,3280482-7077,750.00,IBA FABRICATIONS LTD.
Children and Young Peoples Services,Childrens Services Operational Support,Supplies and Services,338089,Services,11-May-2017,3280486-5196,625.00,IN TRAC TRAINING & CONSULTANCY LTD.
Regeneration and Local Services,Technical Services,Stock,926900,Stock in hand-Inventory system,11-May-2017,3280490-578794,"2,424.80",INSTARMAC GROUP PLC.
Children and Young Peoples Services,Children Looked After,Supplies and Services,338076,Services,11-May-2017,3280494-L2C0062016,"1,514.43",INVESTING IN CHILDREN CIC.
Regeneration and Local Services,Technical Services,Stock,926900,Stock in hand-Inventory system,11-May-2017,3280508-NI032872,"9,929.52",JOHN MACLEAN & SONS ELECTRICAL (DINGWALL) LTD.
Regeneration and Local Services,Technical Services,Premises,150015,Apportioned Exps of Operational Blds,11-May-2017,3280509-1876145,703.00,JOHN NIXON LTD.
Regeneration and Local Services,Spatial Policy Planning Assets & Environment,Supplies and Services,338066,Services,11-May-2017,3280511-326,"1,280.00",JOHN VAN BREDA T/A BIODIVERSE IT.
Regeneration and Local Services,Technical Services,Stock,926900,Stock in hand-Inventory system,11-May-2017,3280515-STI455992,643.72,JT DOVE LTD.
Regeneration and Local Services,Technical Services,Supplies and Services,304221,Equipment and Materials,11-May-2017,3280515-STI455995,505.50,JT DOVE LTD.
Adult and Health Services,Head of Adults,Transport,230005,Contract Hire,11-May-2017,3280517-110,850.00,KEN CHAMBERS T/A SHILDON TRANSPORT LTD.
Regeneration and Local Services,Economic Development and Housing,Supplies and Services,338027,Services,11-May-2017,3280527-BD0701,"2,495.00",LEC CONSULTANCY LTD.
Regeneration and Local Services,Direct Services,Transport,230005,Contract Hire,11-May-2017,3280534-134973,"1,900.00",LONDONDERRY GARAGE (S.E) LTD.
Regeneration and Local Services,Direct Services,Transport,230005,Contract Hire,11-May-2017,3280534-135892,"1,235.00",LONDONDERRY GARAGE (S.E) LTD.
Regeneration and Local Services,Direct Services,Third Party Payments,430100,Rendered by Private Contractors,11-May-2017,3280534-136647,"1,940.61",LONDONDERRY GARAGE (S.E) LTD.
Resources,Financial Services,Supplies and Services,384180,Miscellaneous Expenses,11-May-2017,3280536-0953320,"4,699.97",LOOMIS UK LTD.
Adult and Health Services,Commissioning inc Supporting People,Third Party Payments,479101,Purchase of Care,11-May-2017,3280539-8065,"11,583.33",MAIN - TAKING AUTISM PERSONALLY.
Children and Young Peoples Services,Early Help,Supplies and Services,384638,Miscellaneous Expenses,11-May-2017,3280540-MCT-07,"5,000.00",MAKING CHANGES TOGETHER PARENTS STEERING GROUP.
Children and Young Peoples Services,Education,Transport,230008,Contract Hire,11-May-2017,3280542-000011,882.00,MARK HUSBAND T/A TEAK`S TAXIS.
Regeneration and Local Services,Technical Services,Supplies and Services,304221,Equipment and Materials,11-May-2017,3280543-ZDB0029113,"11,958.20",MARSHALLS MONO LTD.
Children and Young Peoples Services,Education,Transport,230007,Contract Hire,11-May-2017,3280554-898,770.00,MR AD HOWARD T/A TOFT HILL TAXIS.
Children and Young Peoples Services,Education,Transport,230008,Contract Hire,11-May-2017,3280559-SFB/04/17,840.00,MR J AGAR T/A PARK TAXIS.
Children and Young Peoples Services,Education,Transport,230007,Contract Hire,11-May-2017,3280560-401/17,600.00,MR REES WILKINSON T/A B & L MINIBUS HIRE.
Regeneration and Local Services,Direct Services,Stock,926004,Stock,11-May-2017,3280562-66240,620.00,MTS BOBCAT.
Resources,Legal & Democratic Services,Transport,245007,Members etc Travelling,11-May-2017,3280565-2017/26,940.00,NATIONAL ASSOCIATION OF COUNCILLORS.*
Regeneration and Local Services,Direct Services,Transport,230005,Contract Hire,11-May-2017,3280567-112233,"2,850.00",ND BROWN LTD.
Regeneration and Local Services,Direct Services,Stock,926004,Stock,11-May-2017,3280568-INVDUR00312829,571.30,NE TRUCK SPARES LTD.
Regeneration and Local Services,Culture & Sport,Supplies and Services,332029,Printing Stationery and Gen Off Exps,11-May-2017,3280576-19514310,510.08,NEWSQUEST (YORKSHIRE & NORTH EAST) LTD.
Regeneration and Local Services,Technical Services,Other Expenses,914002,Capital - Advertisments,11-May-2017,3280576-19748880,824.68,NEWSQUEST (YORKSHIRE & NORTH EAST) LTD.
Regeneration and Local Services,Spatial Policy Planning Assets & Environment,Supplies and Services,336005,Advertising,11-May-2017,3280576-19748940,850.45,NEWSQUEST (YORKSHIRE & NORTH EAST) LTD.
Transformation and Partnerships,Comms & Information Management,Supplies and Services,384956,Miscellaneous Expenses,11-May-2017,3280580-Q390073,"2,420.00",NLA MEDIA ACCESS LTD.
Regeneration and Local Services,Transport and Contracted Services,Construction Work,908105,Construction work,11-May-2017,3280590-043067,"158,629.00",NSL LTD.
Regeneration and Local Services,Direct Services,Third Party Payments,430100,Rendered by Private Contractors,11-May-2017,3280593-6605,"1,600.00",OCTANE HOLDING GROUP LTD.
Children and Young Peoples Services,Children Looked After,Supplies and Services,338060,Services,11-May-2017,3280594-SINCC3F38582,"2,659.00",OFSTED.
Children and Young Peoples Services,Children Looked After,Supplies and Services,338060,Services,11-May-2017,3280594-SINCC3F38693,"1,702.00",OFSTED.
Regeneration and Local Services,Direct Services,Transport,215005,Running Costs of Vehicles,11-May-2017,3280595-239487,"13,984.50",OIL NRG LTD.
Regeneration and Local Services,Direct Services,Transport,215022,Running Costs of Vehicles,11-May-2017,3280595-239492,"1,428.00",OIL NRG LTD.
Regeneration and Local Services,Direct Services,Transport,215005,Running Costs of Vehicles,11-May-2017,3280595-239495,"2,775.82",OIL NRG LTD.
Regeneration and Local Services,Technical Services,Stock,926900,Stock in hand-Inventory system,11-May-2017,3280603-XL197722,546.00,PARK ELECTRICAL DISTRIBUTORS LTD.
Regeneration and Local Services,Culture & Sport,Supplies and Services,338099,Services,11-May-2017,3280604-UK96516,733.00,PARKEON LTD.
Regeneration and Local Services,Culture & Sport,Supplies and Services,338047,Services,11-May-2017,3280605-3257,"3,594.05",PASSWORD PRODUCTIONS LTD.
Children and Young Peoples Services,Education,Transport,230008,Contract Hire,11-May-2017,3280606-SC-115,855.00,PAUL BURRELL T/A PAUL BURRELL TAXIS.
Children and Young Peoples Services,Education,Transport,230012,Contract Hire,11-May-2017,3280606-SC-116,800.00,PAUL BURRELL T/A PAUL BURRELL TAXIS.
Regeneration and Local Services,Projects and Business services,Third Party Payments,430119,Rendered by Private Contractors,11-May-2017,3280610-AVV13627,"1,133.17",PEAK PIPE SYSTEMS LTD.*
Children and Young Peoples Services,Education,Transport,230008,Contract Hire,11-May-2017,3280615-549,640.00,PETERLEE EXECUTIVE CARS.
Children and Young Peoples Services,Education,Transport,230008,Contract Hire,11-May-2017,3280615-550,630.00,PETERLEE EXECUTIVE CARS.
Dedicated Schools Grant,Dedicated Schools Grant,Transport,230009,Contract Hire,11-May-2017,3280615-552,500.00,PETERLEE EXECUTIVE CARS.
Adult and Health Services,Head of Adults,Transport,230005,Contract Hire,11-May-2017,3280618-0534,792.00,PETER`S PRIVATE HIRE/PETER BEST.
Children and Young Peoples Services,Education,Transport,230008,Contract Hire,11-May-2017,3280620-783,"1,783.50",PG TRIPS.
Regeneration and Local Services,Direct Services,Supplies and Services,304259,Equipment and Materials,11-May-2017,3280623-11153,"1,376.00",PIXL ID LTD.
Regeneration and Local Services,Technical Services,Third Party Payments,430100,Rendered by Private Contractors,11-May-2017,3280628-144062,"9,078.19",PREMIER TRAFFIC MANAGEMENT LTD.
Regeneration and Local Services,Technical Services,Third Party Payments,430100,Rendered by Private Contractors,11-May-2017,3280632-98551,550.00,PROTECTOR SECURITY GROUP LTD.
Regeneration and Local Services,Technical Services,Supplies and Services,304221,Equipment and Materials,11-May-2017,3280632-98552,550.00,PROTECTOR SECURITY GROUP LTD.
Regeneration and Local Services,Technical Services,Third Party Payments,430100,Rendered by Private Contractors,11-May-2017,3280632-98553,550.00,PROTECTOR SECURITY GROUP LTD.
Children and Young Peoples Services,Education,Transport,230006,Contract Hire,11-May-2017,3280646-RDS026,550.00,RDS TAXI.
Adult and Health Services,Commissioning inc Supporting People,Third Party Payments,479102,Purchase of Care,11-May-2017,3280649-12431,"7,500.00",RETHINK MENTAL ILLNESS.
Adult and Health Services,Commissioning inc Supporting People,Third Party Payments,479102,Purchase of Care,11-May-2017,3280649-12432,"17,500.00",RETHINK MENTAL ILLNESS.
Regeneration and Local Services,Economic Development and Housing,Supplies and Services,304337,Equipment and Materials,11-May-2017,3280650-388874,691.50,RICHARD LANG & SON LTD.
Children and Young Peoples Services,Education,Transport,230008,Contract Hire,11-May-2017,3280652-3078,740.00,RICHIES TAXIS.
Regeneration and Local Services,Direct Services,Supplies and Services,304221,Equipment and Materials,11-May-2017,3280654-RSIN0216893,"4,770.00",RIGBY TAYLOR LTD.
Regeneration and Local Services,Direct Services,Transport,230005,Contract Hire,11-May-2017,3280656-IV278198,"4,600.00",RIVERSIDE TRUCK RENTAL LTD (RTR).
Regeneration and Local Services,Direct Services,Transport,230005,Contract Hire,11-May-2017,3280656-IV278200,"4,600.00",RIVERSIDE TRUCK RENTAL LTD (RTR).
Regeneration and Local Services,Direct Services,Transport,230005,Contract Hire,11-May-2017,3280656-IV278344,"3,100.00",RIVERSIDE TRUCK RENTAL LTD (RTR).
Adult and Health Services,Head of Adults,Transport,230005,Contract Hire,11-May-2017,3280659-20,550.00,ROUTE 1.
Regeneration and Local Services,Direct Services,Transport,210057,Repair and Maintenance of Vehicles,11-May-2017,3280666-463075,527.36,S JENNINGS LTD.
Children and Young Peoples Services,Education,Transport,230006,Contract Hire,11-May-2017,3280670-101,"1,276.00",SAZ CABS.
Regeneration and Local Services,Transport and Contracted Services,Third Party Payments,430106,Rendered by Private Contractors,11-May-2017,3280671-2413,"86,310.06",SCARLET BAND BUS & COACH LTD.
Resources,Legal & Democratic Services,Supplies and Services,338025,Services,11-May-2017,3280677-3463,"1,450.00",SEATON LENG & SON LTD.
Children and Young Peoples Services,Education,Transport,230008,Contract Hire,11-May-2017,3280680-19-28/4/17,540.00,SHARON`S TAXI.
Regeneration and Local Services,Direct Services,Supplies and Services,304259,Equipment and Materials,11-May-2017,3280681-CD970476613,"2,851.12",SHERRIFF AMENITY.
Children and Young Peoples Services,Education,Transport,230012,Contract Hire,11-May-2017,3280682-72568,800.00,SHOTTON PRIVATE HIRE.
Regeneration and Local Services,Direct Services,Debtors,930046,Debtor-leasing,11-May-2017,3280685-76233,"18,356.30",SIMON BAILES LTD.
Children and Young Peoples Services,Education,Transport,230008,Contract Hire,11-May-2017,3280687-401A,550.00,SJ MACKENZIE T/A SCOTTS TAXIS.
Children and Young Peoples Services,Education,Transport,230008,Contract Hire,11-May-2017,3280687-402A,700.00,SJ MACKENZIE T/A SCOTTS TAXIS.
Children and Young Peoples Services,Education,Transport,230012,Contract Hire,11-May-2017,3280687-405A,650.00,SJ MACKENZIE T/A SCOTTS TAXIS.
Children and Young Peoples Services,Education,Transport,230008,Contract Hire,11-May-2017,3280687-406A,585.00,SJ MACKENZIE T/A SCOTTS TAXIS.
Children and Young Peoples Services,Education,Transport,230008,Contract Hire,11-May-2017,3280687-410A,675.00,SJ MACKENZIE T/A SCOTTS TAXIS.
Children and Young Peoples Services,Education,Transport,230008,Contract Hire,11-May-2017,3280687-411A,"1,440.00",SJ MACKENZIE T/A SCOTTS TAXIS.
Children and Young Peoples Services,Education,Transport,230008,Contract Hire,11-May-2017,3280687-412A,960.00,SJ MACKENZIE T/A SCOTTS TAXIS.
Regeneration and Local Services,Direct Services,Third Party Payments,430100,Rendered by Private Contractors,11-May-2017,3280691-011/17/615,700.00,SOCIETE GENERALE EQUIPMENT FINANCE LTD.
Children and Young Peoples Services,Education,Transport,230008,Contract Hire,11-May-2017,3280692-147,550.00,SODA TAXIS.
Children and Young Peoples Services,Education,Transport,230006,Contract Hire,11-May-2017,3280692-159-A039,504.00,SODA TAXIS.
Children and Young Peoples Services,Education,Transport,230008,Contract Hire,11-May-2017,3280695-DR00942,658.00,SPENNYMOOR TAXIS.
Regeneration and Local Services,Direct Services,Third Party Payments,430100,Rendered by Private Contractors,11-May-2017,3280698-5755,"13,857.96",ST ASTIER LTD.
Dedicated Schools Grant,Dedicated Schools Grant,Transport,230010,Contract Hire,11-May-2017,3280700-0008,"1,068.00",STEPHEN REED T/A STEVE`S TAXIS.
Children and Young Peoples Services,Education,Transport,230008,Contract Hire,11-May-2017,3280708-1417-27/4/17,560.00,TALBOTS TAXIS.
Children and Young Peoples Services,Education,Transport,230008,Contract Hire,11-May-2017,3280708-1424,734.00,TALBOTS TAXIS.
Adult and Health Services,Head of Adults,Transport,230005,Contract Hire,11-May-2017,3280709-B877,"1,299.96",TALBOTS TRAVEL LTD.
Children and Young Peoples Services,Education,Transport,230008,Contract Hire,11-May-2017,3280709-B880,554.70,TALBOTS TRAVEL LTD.
Children and Young Peoples Services,Education,Transport,230008,Contract Hire,11-May-2017,3280713-DCC/2016/144,939.60,TAYLOR`S TAXIS.
Children and Young Peoples Services,Education,Transport,230008,Contract Hire,11-May-2017,3280713-DCC/2016/145,760.00,TAYLOR`S TAXIS.
Children and Young Peoples Services,Education,Transport,230008,Contract Hire,11-May-2017,3280713-DCC/2016/146,711.00,TAYLOR`S TAXIS.
Children and Young Peoples Services,Education,Transport,230008,Contract Hire,11-May-2017,3280713-DCC/2016/147,702.00,TAYLOR`S TAXIS.
Regeneration and Local Services,Direct Services,Transport,210057,Repair and Maintenance of Vehicles,11-May-2017,3280715-156708,752.40,TECALEMIT GARAGE EQUIPMENT CO LTD.
Regeneration and Local Services,Direct Services,Third Party Payments,430100,Rendered by Private Contractors,11-May-2017,3280718-96340972,769.63,DENNIS EAGLE LTD T/A TERBERG MATEC (UK) LTD.
Adult and Health Services,EnvironmentHealth & Consumer Protection,Supplies and Services,338027,Services,11-May-2017,3280721-983158,"1,950.00",THE ENVIRONMENTAL PROTECTION GROUP LTD.
Adult and Health Services,Head of Adults,Transport,230005,Contract Hire,11-May-2017,3280727-179,560.00,THE TAXI COMPANY (MURTON) LTD.
Regeneration and Local Services,Technical Services,Stock,926900,Stock in hand-Inventory system,11-May-2017,3280729-N/IN195471,"2,160.00",THOMAS OWEN & SONS (NEWCASTLE) LTD.
Regeneration and Local Services,Technical Services,Stock,926900,Stock in hand-Inventory system,11-May-2017,3280729-N/IN195475,"1,560.00",THOMAS OWEN & SONS (NEWCASTLE) LTD.
Dedicated Schools Grant,Dedicated Schools Grant,Transport,230010,Contract Hire,11-May-2017,3280736-26009,612.00,TRAVEL 6.
Children and Young Peoples Services,Education,Transport,230008,Contract Hire,11-May-2017,3280738-07-28/4/17,"1,274.00",TRIDENT TAXIS.
Regeneration and Local Services,Culture & Sport,Supplies and Services,332029,Printing Stationery and Gen Off Exps,11-May-2017,3280739-3341966,"1,020.00",TRINITY MIRROR PUBLISHING LTD.*
Regeneration and Local Services,Direct Services,Transport,230005,Contract Hire,11-May-2017,3280757-43149,730.00,W MARLEY AGRICULTURAL CONTRACTORS LTD.
Regeneration and Local Services,Culture & Sport,Supplies and Services,338047,Services,11-May-2017,3280758-1569211,"3,339.50",WALT DISNEY CO LTD.
Regeneration and Local Services,Culture & Sport,Supplies and Services,338047,Services,11-May-2017,3280758-1593440,787.25,WALT DISNEY CO LTD.
Regeneration and Local Services,Culture & Sport,Supplies and Services,338047,Services,11-May-2017,3280758-1593445,"4,678.75",WALT DISNEY CO LTD.
Regeneration and Local Services,Direct Services,Transport,230005,Contract Hire,11-May-2017,3280760-72964,685.00,WARREN ACCESS LTD.
Regeneration and Local Services,Technical Services,Premises,150015,Apportioned Exps of Operational Blds,11-May-2017,3280764-648024,569.80,WERNICK HIRE LTD.
Regeneration and Local Services,Technical Services,Premises,150015,Apportioned Exps of Operational Blds,11-May-2017,3280764-648043,569.80,WERNICK HIRE LTD.
Regeneration and Local Services,Technical Services,Premises,150015,Apportioned Exps of Operational Blds,11-May-2017,3280764-648044,569.80,WERNICK HIRE LTD.
Regeneration and Local Services,Technical Services,Premises,150015,Apportioned Exps of Operational Blds,11-May-2017,3280764-648047,666.00,WERNICK HIRE LTD.
Regeneration and Local Services,Direct Services,Third Party Payments,430100,Rendered by Private Contractors,11-May-2017,3280766-43617,"1,078.72",WILLOWCRETE MANUFACTURING COMPANY LTD (MFG).
Regeneration and Local Services,Technical Services,Supplies and Services,384110,Miscellaneous Expenses,11-May-2017,3280776-160425380,"3,335.00",XP SOLUTIONS SOFTWARE LTD.
Children and Young Peoples Services,Education,Transport,230008,Contract Hire,12-May-2017,3280782-A220786,893.50,A MURRAY TRAVEL.
Children and Young Peoples Services,Education,Transport,230006,Contract Hire,12-May-2017,3280782-HA220788,640.00,A MURRAY TRAVEL.
Children and Young Peoples Services,Education,Transport,230008,Contract Hire,12-May-2017,3280784-Y19/SC,855.00,AABAT TAXIS.
Regeneration and Local Services,Culture & Sport,Supplies and Services,384199,Miscellaneous Expenses,12-May-2017,3280785-116305708,563.79,AC ENTERTAINMENT TECHNOLOGIES.
Regeneration and Local Services,Technical Services,Supplies and Services,304221,Equipment and Materials,12-May-2017,3280789-24702197,"2,496.85",AGGREGATE INDUSTRIES UK LTD.
Regeneration and Local Services,Technical Services,Supplies and Services,304221,Equipment and Materials,12-May-2017,3280789-24709316,"2,955.69",AGGREGATE INDUSTRIES UK LTD.
Regeneration and Local Services,Technical Services,Supplies and Services,304221,Equipment and Materials,12-May-2017,3280789-24740441,"1,090.98",AGGREGATE INDUSTRIES UK LTD.
Children and Young Peoples Services,Children Looked After,Premises,108251,Service Repairs and Maintenance,12-May-2017,3280791-47219,"1,250.00",ALARM RADIO MONITORING LTD.
Children and Young Peoples Services,Children Looked After,Supplies and Services,338078,Services,12-May-2017,3280795-06784,"1,503.60",ALL EVENTS SECURITY LTD (AES).
Children and Young Peoples Services,Children Looked After,Supplies and Services,338078,Services,12-May-2017,3280795-06808,"1,503.60",ALL EVENTS SECURITY LTD (AES).
Children and Young Peoples Services,Children Looked After,Supplies and Services,338078,Services,12-May-2017,3280795-06815,"1,503.60",ALL EVENTS SECURITY LTD (AES).
Children and Young Peoples Services,Children Looked After,Supplies and Services,338078,Services,12-May-2017,3280795-06835,"1,503.60",ALL EVENTS SECURITY LTD (AES).
Regeneration and Local Services,Culture & Sport,Supplies and Services,384199,Miscellaneous Expenses,12-May-2017,3280797-DANCECOACHENSEMBLE,562.50,AMANDA WOODS.
Children and Young Peoples Services,Education,Supplies and Services,312009,Newspapers Books and Periodicals,12-May-2017,3280802-5373740,643.12,ASKEWS & HOLTS LIBRARY SERVICES LTD.
Regeneration and Local Services,Direct Services,Supplies and Services,304259,Equipment and Materials,12-May-2017,3280806-96675468,"3,486.02",BALL COLEGRAVE LTD.
Regeneration and Local Services,Direct Services,Supplies and Services,304259,Equipment and Materials,12-May-2017,3280806-96675469,"2,729.95",BALL COLEGRAVE LTD.
Regeneration and Local Services,Direct Services,Supplies and Services,304259,Equipment and Materials,12-May-2017,3280806-96675471,"2,088.48",BALL COLEGRAVE LTD.
Regeneration and Local Services,Direct Services,Third Party Payments,430100,Rendered by Private Contractors,12-May-2017,3280807-DCC/170011,565.60,BEACON BUILDING & ASSOCIATED SERVICES LTD.
Children and Young Peoples Services,Early Help,Supplies and Services,384302,Miscellaneous Expenses,12-May-2017,3280808-INV21436,520.83,BEAMISH HALL LTD.
Dedicated Schools Grant,Dedicated Schools Grant,Transfer Payments,510034,School Children,12-May-2017,3280811-RES-05-2017-015,"1,900.00",BURRADON PRIMARY SCHOOL.
Regeneration and Local Services,Direct Services,Third Party Payments,430100,Rendered by Private Contractors,12-May-2017,3280813-851700547,"4,200.00",CARLISLE CONSTRUCTION MATERIALS LTD.
Regeneration and Local Services,Direct Services,Supplies and Services,304221,Equipment and Materials,12-May-2017,3280813-851700548,"13,499.00",CARLISLE CONSTRUCTION MATERIALS LTD.
Regeneration and Local Services,Direct Services,Supplies and Services,304221,Equipment and Materials,12-May-2017,3280813-851700566,"4,132.80",CARLISLE CONSTRUCTION MATERIALS LTD.
Regeneration and Local Services,Direct Services,Supplies and Services,304221,Equipment and Materials,12-May-2017,3280813-851700578,"5,296.00",CARLISLE CONSTRUCTION MATERIALS LTD.
Regeneration and Local Services,Direct Services,Supplies and Services,304221,Equipment and Materials,12-May-2017,3280813-851700665,"8,075.66",CARLISLE CONSTRUCTION MATERIALS LTD.
Regeneration and Local Services,Direct Services,Supplies and Services,304221,Equipment and Materials,12-May-2017,3280813-851700678,"14,438.00",CARLISLE CONSTRUCTION MATERIALS LTD.
Regeneration and Local Services,Direct Services,Supplies and Services,304221,Equipment and Materials,12-May-2017,3280813-851700760,"4,270.00",CARLISLE CONSTRUCTION MATERIALS LTD.
Regeneration and Local Services,Direct Services,Supplies and Services,304221,Equipment and Materials,12-May-2017,3280813-851700783,"1,058.05",CARLISLE CONSTRUCTION MATERIALS LTD.
Regeneration and Local Services,Direct Services,Supplies and Services,304221,Equipment and Materials,12-May-2017,3280813-851700944,"1,671.30",CARLISLE CONSTRUCTION MATERIALS LTD.
Regeneration and Local Services,Culture & Sport,Supplies and Services,324001,Provisions,12-May-2017,3280814-843731017,757.16,CARLSBERG UK LTD.
Regeneration and Local Services,Technical Services,Supplies and Services,304221,Equipment and Materials,12-May-2017,3280818-3009491030,"2,367.00",CEMEX UK MATERIALS LTD.
Regeneration and Local Services,Direct Services,Premises,106082,Centrally Controlled Rep and Maint,12-May-2017,3280819-88421,757.25,CENTRAL POWER SERVICES LTD.
Resources,Legal & Democratic Services,Supplies and Services,384151,Miscellaneous Expenses,12-May-2017,3280825-3980023538,"26,846.52",CO DURHAM & DARLINGTON NHS FOUNDATION TRUST.
Children and Young Peoples Services,Education,Transport,230003,Contract Hire,12-May-2017,3280826-C/9732,"1,285.00",COCHRANES T/A KELVIN TRAVEL.
Children and Young Peoples Services,Education,Transport,230003,Contract Hire,12-May-2017,3280826-C/9733,"1,385.00",COCHRANES T/A KELVIN TRAVEL.
Children and Young Peoples Services,Education,Transport,230008,Contract Hire,12-May-2017,3280830-1154,860.00,CONNORS MINI BUSES.*
Children and Young Peoples Services,Education,Transport,230008,Contract Hire,12-May-2017,3280830-1155,860.00,CONNORS MINI BUSES.*
Children and Young Peoples Services,Education,Transport,230006,Contract Hire,12-May-2017,3280830-1157,940.00,CONNORS MINI BUSES.*
Children and Young Peoples Services,Education,Transport,230008,Contract Hire,12-May-2017,3280830-1157A,"1,161.00",CONNORS MINI BUSES.*
Adult and Health Services,Public Health,Third Party Payments,460803,Contract Payments,12-May-2017,3280832-TVDA00207,"10,000.00",CRUSE BEREAVEMENT CARE.
Regeneration and Local Services,Culture & Sport,Supplies and Services,304259,Equipment and Materials,12-May-2017,3280833-SI-64,"1,727.40",CULLERCOATS BIKE & KAYAK LTD.
Resources,Legal & Democratic Services,Supplies and Services,338057,Services,12-May-2017,3280847-FEBRUARY/MARCH-17U,871.20,DR SREE MUSSUNOOR.
Resources,Legal & Democratic Services,Supplies and Services,338057,Services,12-May-2017,3280848-FEBRUARY/MARCH-17D,"2,100.00",DR SREE MUSSUNOOR.
Children and Young Peoples Services,Education,Transport,230003,Contract Hire,12-May-2017,3280849-7465,"10,568.50",DURHAM CITY COACHES.
Children and Young Peoples Services,Education,Transport,230008,Contract Hire,12-May-2017,3280854-E014/0417,719.10,ELLIOTTS OF TRIMDON.
Children and Young Peoples Services,Education,Transport,230006,Contract Hire,12-May-2017,3280854-E122/0417,881.00,ELLIOTTS OF TRIMDON.
Regeneration and Local Services,Culture & Sport,Premises,106080,Centrally Controlled Rep and Maint,12-May-2017,3280855-16502423,691.38,ENER-G COMBINED POWER LTD.
Adult and Health Services,Head of Adults,Transport,230005,Contract Hire,12-May-2017,3280860-56,656.00,EXTREME TAXI`S.
Children and Young Peoples Services,Education,Transport,230008,Contract Hire,12-May-2017,3280860-57,513.25,EXTREME TAXI`S.
Children and Young Peoples Services,Education,Transport,230008,Contract Hire,12-May-2017,3280860-58,535.00,EXTREME TAXI`S.
Regeneration and Local Services,Direct Services,Premises,108099,Service Repairs and Maintenance,12-May-2017,3280862-3509,"1,145.00",F WARREN (ELECTRICAL) LTD.
Regeneration and Local Services,Spatial Policy Planning Assets & Environment,Premises,125009,Rents,12-May-2017,3280869-SIGN/00069092,"5,000.00",GENTOO GROUP LTD.*
Resources,I.C.T. Services,Employees,040149,Recruitment Instruction and Training,12-May-2017,3280872-17214,"3,300.00",GOSS INTERACTIVE LTD.
Resources,I.C.T. Services,Supplies and Services,338066,Services,12-May-2017,3280872-17215,"2,460.00",GOSS INTERACTIVE LTD.
Regeneration and Local Services,Technical Services,Employees,040149,Recruitment Instruction and Training,12-May-2017,3280873-INV06956,660.00,GREAT AYCLIFFE TOWN COUNCIL.
Children and Young Peoples Services,Early Help,Supplies and Services,384302,Miscellaneous Expenses,12-May-2017,3280875-R056,503.13,HALL HILL FARM ENTERPRISES.
Regeneration and Local Services,Spatial Policy Planning Assets & Environment,Supplies and Services,384700,Miscellaneous Expenses,12-May-2017,3280879-RED-05-2017-067,836.45,HERITAGE LOTTERY FUND.
Adult and Health Services,Head of Adults,Third Party Payments,478151,Purchase of Care,12-May-2017,3280880-HCL30-APRIL2017,937.02,HIGHLEA CARE LTD.
Adult and Health Services,Head of Adults,Third Party Payments,478151,Purchase of Care,12-May-2017,3280880-HCL32-APRIL2017,"1,328.18",HIGHLEA CARE LTD.
Adult and Health Services,Head of Adults,Third Party Payments,478151,Purchase of Care,12-May-2017,3280880-HCL33-APRIL2017,535.48,HIGHLEA CARE LTD.
Children and Young Peoples Services,Education,Transport,230007,Contract Hire,12-May-2017,3280881-11371,790.00,HODGSONS COACH OPERATORS LTD.
Children and Young Peoples Services,Education,Transport,230007,Contract Hire,12-May-2017,3280881-11372,945.00,HODGSONS COACH OPERATORS LTD.
Children and Young Peoples Services,Education,Transport,230007,Contract Hire,12-May-2017,3280881-11373,947.00,HODGSONS COACH OPERATORS LTD.
Children and Young Peoples Services,Education,Transport,230007,Contract Hire,12-May-2017,3280881-11374,994.00,HODGSONS COACH OPERATORS LTD.
Children and Young Peoples Services,Education,Transport,230007,Contract Hire,12-May-2017,3280881-11375,592.00,HODGSONS COACH OPERATORS LTD.
Children and Young Peoples Services,Education,Transport,230007,Contract Hire,12-May-2017,3280881-11380,"1,670.00",HODGSONS COACH OPERATORS LTD.
Children and Young Peoples Services,Education,Transport,230007,Contract Hire,12-May-2017,3280881-11381,"1,100.00",HODGSONS COACH OPERATORS LTD.
Children and Young Peoples Services,Education,Transport,230007,Contract Hire,12-May-2017,3280881-11382,795.00,HODGSONS COACH OPERATORS LTD.
Children and Young Peoples Services,Education,Transport,230007,Contract Hire,12-May-2017,3280881-11383,"1,295.00",HODGSONS COACH OPERATORS LTD.
Regeneration and Local Services,Direct Services,Third Party Payments,430100,Rendered by Private Contractors,12-May-2017,3280882-68109A,604.23,HOGARTH COACHWORKS LTD.
Regeneration and Local Services,Direct Services,Premises,108099,Service Repairs and Maintenance,12-May-2017,3280883-7080616292,672.96,HONEYWELL NOVAR SYSTEMS LTD.
Dedicated Schools Grant,Dedicated Schools Grant,Transport,230010,Contract Hire,12-May-2017,3280886-BRIDGE004,554.00,IAN SOULSBY.
Transformation and Partnerships,Comms & Information Management,Supplies and Services,384199,Miscellaneous Expenses,12-May-2017,3280887-7012841,"4,000.00",IDOX SOFTWARE LTD.
Resources,I.C.T. Services,Stock,926900,Stock in hand-Inventory system,12-May-2017,3280889-SIN404716,"1,555.00",INFORMATION & DATA NETWORK SUPPLIES LTD (IDN).
Resources,I.C.T. Services,Stock,926900,Stock in hand-Inventory system,12-May-2017,3280890-3344946,600.00,INSIGHT DIRECT (UK) LTD.
Regeneration and Local Services,Direct Services,Premises,108099,Service Repairs and Maintenance,12-May-2017,3280893-14638,"11,623.80",JC MAINTENANCE SERVICES LTD.
Children and Young Peoples Services,Education,Transport,230003,Contract Hire,12-May-2017,3280894-19917,"1,149.50",JIM HUGHES COACHES LTD.
Children and Young Peoples Services,Education,Transport,230003,Contract Hire,12-May-2017,3280894-19918,600.00,JIM HUGHES COACHES LTD.
Children and Young Peoples Services,Education,Transport,230003,Contract Hire,12-May-2017,3280894-19919,699.75,JIM HUGHES COACHES LTD.
Children and Young Peoples Services,Education,Transport,230008,Contract Hire,12-May-2017,3280895-28/04/17A,530.00,JL EBDON. T/A DIAL-A-CAB.
Children and Young Peoples Services,Education,Transport,230008,Contract Hire,12-May-2017,3280895-28/04/17B,792.00,JL EBDON. T/A DIAL-A-CAB.
Children and Young Peoples Services,Education,Transport,230008,Contract Hire,12-May-2017,3280895-28/04/17C,730.00,JL EBDON. T/A DIAL-A-CAB.
Children and Young Peoples Services,Education,Transport,230012,Contract Hire,12-May-2017,3280895-28/04/17D,870.00,JL EBDON. T/A DIAL-A-CAB.
Children and Young Peoples Services,Education,Transport,230008,Contract Hire,12-May-2017,3280895-28/04/17E,612.00,JL EBDON. T/A DIAL-A-CAB.
Children and Young Peoples Services,Education,Transport,230008,Contract Hire,12-May-2017,3280895-28/04/17F,882.00,JL EBDON. T/A DIAL-A-CAB.
Children and Young Peoples Services,Education,Transport,230008,Contract Hire,12-May-2017,3280895-28/04/17G,540.00,JL EBDON. T/A DIAL-A-CAB.
Regeneration and Local Services,Technical Services,Stock,926900,Stock in hand-Inventory system,12-May-2017,3280896-NI032876,"8,682.12",JOHN MACLEAN & SONS ELECTRICAL (DINGWALL) LTD.
Regeneration and Local Services,Spatial Policy Planning Assets & Environment,Supplies and Services,338066,Services,12-May-2017,3280897-322,720.00,JOHN VAN BREDA T/A BIODIVERSE IT.
Regeneration and Local Services,Technical Services,Supplies and Services,304221,Equipment and Materials,12-May-2017,3280904-BA1284324,572.92,JT DOVE LTD.
Regeneration and Local Services,Direct Services,Supplies and Services,304221,Equipment and Materials,12-May-2017,3280904-BI1221199,513.79,JT DOVE LTD.
Children and Young Peoples Services,Education,Supplies and Services,384199,Miscellaneous Expenses,12-May-2017,3280907-3501,"1,028.00",LEE`S COACHES LTD.
Children and Young Peoples Services,Education,Transport,230003,Contract Hire,12-May-2017,3280907-3513,"6,321.00",LEE`S COACHES LTD.
Adult and Health Services,Head of Adults,Premises,125009,Rents,12-May-2017,3280908-SI-003265,"10,000.00",LEISUREWORKS.
Adult and Health Services,Head of Adults,Premises,125009,Rents,12-May-2017,3280908-SI-003271,"12,000.00",LEISUREWORKS.
Adult and Health Services,Public Health,Third Party Payments,460803,Contract Payments,12-May-2017,3280910-0000008468,"449,361.00",LIFELINE PROJECT LTD.
Regeneration and Local Services,Direct Services,Supplies and Services,304221,Equipment and Materials,12-May-2017,3280913-4008305,"1,786.49",LONDON GENERAL SALES LTD.
Resources,Financial Services,Supplies and Services,384180,Miscellaneous Expenses,12-May-2017,3280914-0947261,"4,559.15",LOOMIS UK LTD.
Regeneration and Local Services,Technical Services,Supplies and Services,304221,Equipment and Materials,12-May-2017,3280917-ZBB1214865,"5,178.00",MARSHALLS MONO LTD.
Children and Young Peoples Services,Education,Transport,230008,Contract Hire,12-May-2017,3280919-2A,590.00,MR BW YOUNG T/A ESH TAXIS.
